Body,Body Name,Date,Transaction Number,Amount,Invoice Number,Supplier Name,Supplier ID,Vat Registration Number,Expense Area,Expense Type,Expense Code,BVACOP,Proclass,Extended Description,Expenditure Type
http://statistics.data.gov.uk/doc/local-authority/33,Norfolk County Council,01-Jan-11,2634689,475.31,,Southern Electric,74726,,Corporate Resources,Electricity,24340,,,,Revenue
http://statistics.data.gov.uk/doc/local-authority/33,Norfolk County Council,01-Jan-11,2634693,899.4,,Southern Electric,74726,,Corporate Resources,Electricity,24340,,,,Revenue
http://statistics.data.gov.uk/doc/local-authority/33,Norfolk County Council,01-Jan-11,2762144,4684.3,,Clean Machine UK Limited,67525,,Community Services,Purchase Of Equipment,C3100,,,,Capital
http://statistics.data.gov.uk/doc/local-authority/33,Norfolk County Council,04-Jan-11,2810294,144.19,,Shell Oil Uk Ltd,86669,,Environment Transport & Development,Petrol,33410,,,,Revenue
http://statistics.data.gov.uk/doc/local-authority/33,Norfolk County Council,04-Jan-11,2810294,616.35,,Shell Oil Uk Ltd,86669,,Environment Transport & Development,Direct Materials,42150,,,,Revenue
http://statistics.data.gov.uk/doc/local-authority/33,Norfolk County Council,04-Jan-11,2846964,52,,RSP Ltd,86341,,Children's Services,Staff Public Transport Costs,35420,,,,Revenue
http://statistics.data.gov.uk/doc/local-authority/33,Norfolk County Council,04-Jan-11,2846964,82,,RSP Ltd,86341,,Community Services,Staff Public Transport Costs,35420,,,,Revenue
http://statistics.data.gov.uk/doc/local-authority/33,Norfolk County Council,04-Jan-11,2846964,194.4,,RSP Ltd,86341,,,Staff Public Transport Costs,35420,,,,Revenue
http://statistics.data.gov.uk/doc/local-authority/33,Norfolk County Council,04-Jan-11,2846964,2082.7,,RSP Ltd,86341,,Corporate Resources,Staff Public Transport Costs,35420,,,,Revenue
http://statistics.data.gov.uk/doc/local-authority/33,Norfolk County Council,04-Jan-11,2847865,875,,Visionsports Ltd,442275,,Children's Services,Staff Training Costs,17450,,,,Revenue
http://statistics.data.gov.uk/doc/local-authority/33,Norfolk County Council,04-Jan-11,2848863,1466,,RSP Ltd,86341,,Children's Services,Staff Public Transport Costs,35420,,,,Revenue
http://statistics.data.gov.uk/doc/local-authority/33,Norfolk County Council,04-Jan-11,2848880,2110.5,,RSP Ltd,86341,,Children's Services,Staff Public Transport Costs,35420,,,,Revenue
http://statistics.data.gov.uk/doc/local-authority/33,Norfolk County Council,04-Jan-11,2848898,1165.4,,RSP Ltd,86341,,Children's Services,Staff Public Transport Costs,35420,,,,Revenue
http://statistics.data.gov.uk/doc/local-authority/33,Norfolk County Council,04-Jan-11,2852968,29.1,,RSP Ltd,86341,,Environment Transport & Development,Staff Subsistence & Conference Expenses,46700,,,,Revenue
http://statistics.data.gov.uk/doc/local-authority/33,Norfolk County Council,04-Jan-11,2852968,98.25,,RSP Ltd,86341,,Environment Transport & Development,Staff Public Transport Costs,35420,,,,Revenue
http://statistics.data.gov.uk/doc/local-authority/33,Norfolk County Council,04-Jan-11,2852968,160,,RSP Ltd,86341,,Environment Transport & Development,Room Hire,17600,,,,Revenue
http://statistics.data.gov.uk/doc/local-authority/33,Norfolk County Council,04-Jan-11,2852968,218.25,,RSP Ltd,86341,,Corporate Resources,Staff Public Transport Costs,35420,,,,Revenue
http://statistics.data.gov.uk/doc/local-authority/33,Norfolk County Council,04-Jan-11,2852968,477,,RSP Ltd,86341,,Environment Transport & Development,Staff Conference Expenses Travel & Subsistence,46720,,,,Revenue
http://statistics.data.gov.uk/doc/local-authority/33,Norfolk County Council,04-Jan-11,2852968,514.7,,RSP Ltd,86341,,Environment Transport & Development,Training Travel & Subsistence,17550,,,,Revenue
http://statistics.data.gov.uk/doc/local-authority/33,Norfolk County Council,04-Jan-11,2852968,1409.2,,RSP Ltd,86341,,Environment Transport & Development,Staff Public Transport Costs,35420,,,,Revenue
http://statistics.data.gov.uk/doc/local-authority/33,Norfolk County Council,04-Jan-11,2853291,4002.2,,RSP Ltd,86341,,Community Services,Staff Public Transport Costs,35420,,,,Revenue
http://statistics.data.gov.uk/doc/local-authority/33,Norfolk County Council,04-Jan-11,2854658,13423.11,,Southern Electric,74726,,Environment Transport & Development,Highway Traffic Signals and Systems Energy,59570,,,,Revenue
http://statistics.data.gov.uk/doc/local-authority/33,Norfolk County Council,04-Jan-11,2856977,585,,Vegetation Projects Ltd,196396,,Environment Transport & Development,Road Maintenance Contractor Payments,45070,,,,Revenue
http://statistics.data.gov.uk/doc/local-authority/33,Norfolk County Council,04-Jan-11,2858234,185.1,,Shell Oil Uk Ltd,86669,,Environment Transport & Development,Petrol,33410,,,,Revenue
http://statistics.data.gov.uk/doc/local-authority/33,Norfolk County Council,04-Jan-11,2858234,861.96,,Shell Oil Uk Ltd,86669,,Environment Transport & Development,Direct Materials,42150,,,,Revenue
http://statistics.data.gov.uk/doc/local-authority/33,Norfolk County Council,04-Jan-11,2863595,254800,,Mills & Reeve LLP,189496,,Environment Transport & Development,Purchase Of Land,C0100,,,,Capital
http://statistics.data.gov.uk/doc/local-authority/33,Norfolk County Council,04-Jan-11,2863599,7443.12,,Amey Lighting (Norfolk) Limited,145796,,Environment Transport & Development,Highway Street Lighting Non-Routine Maintenance,59690,,,,Revenue
http://statistics.data.gov.uk/doc/local-authority/33,Norfolk County Council,04-Jan-11,2863599,16769.7,,Amey Lighting (Norfolk) Limited,145796,,Environment Transport & Development,Construction Costs - Roads - Amey,C2540,,,,Capital
http://statistics.data.gov.uk/doc/local-authority/33,Norfolk County Council,04-Jan-11,2863599,379381.85,,Amey Lighting (Norfolk) Limited,145796,,Environment Transport & Development,Private Finance Initiative Payments,49800,,,,Revenue
http://statistics.data.gov.uk/doc/local-authority/33,Norfolk County Council,04-Jan-11,2866180,780,,Redacted - Personal Data,Redacted,,Environment Transport & Development,Advanced Driving Instructor Fees,44740,,,,Revenue
http://statistics.data.gov.uk/doc/local-authority/33,Norfolk County Council,04-Jan-11,2866357,630,,Redacted - Personal Data,Redacted,,Environment Transport & Development,Advanced Driving Instructor Fees,44740,,,,Revenue
http://statistics.data.gov.uk/doc/local-authority/33,Norfolk County Council,04-Jan-11,2866765,780,,Redacted - Personal Data,Redacted,,Environment Transport & Development,Other Hired & Contracted Services,44810,,,,Revenue
http://statistics.data.gov.uk/doc/local-authority/33,Norfolk County Council,04-Jan-11,2866766,1141.79,,BERTRAMS,66641,,Community Services,Library Books-Adult Non Fiction,42620,,,,Revenue
http://statistics.data.gov.uk/doc/local-authority/33,Norfolk County Council,04-Jan-11,2866769,934.95,,Flagship Housing Group Ltd,79648,,Community Services,Admin & Clerical - Scale A to J,13600,,,,Revenue
http://statistics.data.gov.uk/doc/local-authority/33,Norfolk County Council,04-Jan-11,2866769,2367.28,,Flagship Housing Group Ltd,79648,,Community Services,Purchase Of Domiciliary Care-Non Grant,51630,,,,Revenue
http://statistics.data.gov.uk/doc/local-authority/33,Norfolk County Council,04-Jan-11,2866771,845.69,,BERTRAMS,66641,,Community Services,Library Books-Adult Non Fiction,42620,,,,Revenue
http://statistics.data.gov.uk/doc/local-authority/33,Norfolk County Council,04-Jan-11,2866772,6530,,Discovery Research Ltd,245259,,Corporate Resources,Customer Research & Insight,44610,,,,Revenue
http://statistics.data.gov.uk/doc/local-authority/33,Norfolk County Council,04-Jan-11,2866780,1173.56,,BERTRAMS,66641,,Community Services,Library Books-Adult Non Fiction,42620,,,,Revenue
http://statistics.data.gov.uk/doc/local-authority/33,Norfolk County Council,04-Jan-11,2866784,23525,,TimeLine Auctions Ltd,449307,,Community Services,General Equipment/Tools/Materials-Purchase,41490,,,,Revenue
http://statistics.data.gov.uk/doc/local-authority/33,Norfolk County Council,04-Jan-11,2866791,1137.5,,Redacted - Personal Data,Redacted,,Other inc Agency,Fees/Expenses - Other Consultants,44530,,,,Revenue
http://statistics.data.gov.uk/doc/local-authority/33,Norfolk County Council,04-Jan-11,2866814,553.81,,Peters Ltd,73217,,Community Services,Library Books - Junior Non Fiction,42680,,,,Revenue
http://statistics.data.gov.uk/doc/local-authority/33,Norfolk County Council,04-Jan-11,2866832,164204.17,,Hertfordshire Partnership NHS Trust,114530,,,Health Placement,50910,,,,Revenue
http://statistics.data.gov.uk/doc/local-authority/33,Norfolk County Council,04-Jan-11,2866836,2474.74,,Inntel Ltd,210718,,Corporate Resources,Contracted Overnight Accommodation,46780,,,,Revenue
http://statistics.data.gov.uk/doc/local-authority/33,Norfolk County Council,04-Jan-11,2866841,978.6,,Yell Ltd,76433,,Environment Transport & Development,Non Staff Advertising - Discretionary,47100,,,,Revenue
http://statistics.data.gov.uk/doc/local-authority/33,Norfolk County Council,04-Jan-11,2866843,22763,,Great Yarmouth College,83141,,Children's Services,School Academy Payments,54210,,,,Revenue
http://statistics.data.gov.uk/doc/local-authority/33,Norfolk County Council,04-Jan-11,2866847,542.64,,Bigod Care Ltd,390036,,Community Services,Domiciliary Care,51610,,,,Revenue
http://statistics.data.gov.uk/doc/local-authority/33,Norfolk County Council,04-Jan-11,2866852,126.84,,Aspires Limited,115804,,Community Services,Personal Budget - Day Care,60120,,,,Revenue
http://statistics.data.gov.uk/doc/local-authority/33,Norfolk County Council,04-Jan-11,2866852,3666.72,,Aspires Limited,115804,,Community Services,Day Care / Supported Activities,52160,,,,Revenue
http://statistics.data.gov.uk/doc/local-authority/33,Norfolk County Council,04-Jan-11,2866855,5280,,Hilson Moran Partnership Ltd,454295,,Children's Services,Architects Fees,C5120,,,,Capital
http://statistics.data.gov.uk/doc/local-authority/33,Norfolk County Council,04-Jan-11,2866894,1520.12,,Autism Anglia,159584,,Community Services,Day Care / Supported Activities,52160,,,,Revenue
http://statistics.data.gov.uk/doc/local-authority/33,Norfolk County Council,04-Jan-11,2866895,620,,Mears,336001,,Community Services,Domiciliary Care,51610,,,,Revenue
http://statistics.data.gov.uk/doc/local-authority/33,Norfolk County Council,04-Jan-11,2866902,40117.4,,Manor Court Care (Norfolk) Ltd,84819,,Community Services,Domiciliary Care,51610,,,,Revenue
http://statistics.data.gov.uk/doc/local-authority/33,Norfolk County Council,04-Jan-11,2866904,430,,Bedford Town Football Club Ltd,454296,,Children's Services,Hire Of Premises,24540,,,,Revenue
http://statistics.data.gov.uk/doc/local-authority/33,Norfolk County Council,04-Jan-11,2866906,20819,,Ripplevale School Ltd,86249,,Children's Services,Payment to Independent Schools,52200,,,,Revenue
http://statistics.data.gov.uk/doc/local-authority/33,Norfolk County Council,04-Jan-11,2866954,3463.56,,Studio Landia Limited,75004,,Community Services,Day Care / Supported Activities,52160,,,,Revenue
http://statistics.data.gov.uk/doc/local-authority/33,Norfolk County Council,04-Jan-11,2866963,2189.48,,Studio Landia Limited,75004,,Community Services,Day Care / Supported Activities,52160,,,,Revenue
http://statistics.data.gov.uk/doc/local-authority/33,Norfolk County Council,04-Jan-11,2866965,5183.2,,Redacted - Personal Data,Redacted,,Children's Services,Fees/Expenses - Other Consultants,44530,,,,Revenue
http://statistics.data.gov.uk/doc/local-authority/33,Norfolk County Council,04-Jan-11,2866970,1914.05,,Southern Electric,74726,,Community Services,Electricity,24340,,,,Revenue
http://statistics.data.gov.uk/doc/local-authority/33,Norfolk County Council,04-Jan-11,2866971,3089.11,,Studio Landia Limited,75004,,Community Services,Day Care / Supported Activities,52160,,,,Revenue
http://statistics.data.gov.uk/doc/local-authority/33,Norfolk County Council,04-Jan-11,2866975,875,,HSBC Invoice Finance (UK) Ltd,449322,,Children's Services,Providing Financial Assistance to Service Users,45650,,,,Revenue
http://statistics.data.gov.uk/doc/local-authority/33,Norfolk County Council,04-Jan-11,2866978,-2072.91,,Southern Electric,74726,,,Electricity,24340,,,,Revenue
http://statistics.data.gov.uk/doc/local-authority/33,Norfolk County Council,04-Jan-11,2866979,-5736.95,,Southern Electric,74726,,,Electricity,24340,,,,Revenue
http://statistics.data.gov.uk/doc/local-authority/33,Norfolk County Council,04-Jan-11,2866980,-3614.19,,Southern Electric,74726,,,Electricity,24340,,,,Revenue
http://statistics.data.gov.uk/doc/local-authority/33,Norfolk County Council,04-Jan-11,2866982,1884.5,,Studio Landia Limited,75004,,Community Services,Day Care / Supported Activities,52160,,,,Revenue
http://statistics.data.gov.uk/doc/local-authority/33,Norfolk County Council,04-Jan-11,2866987,746.5,,Overburys,85572,,Children's Services,Providing Financial Assistance to Service Users,45650,,,,Revenue
http://statistics.data.gov.uk/doc/local-authority/33,Norfolk County Council,04-Jan-11,2867000,7500,,Redacted - Personal Data,Redacted,,Children's Services,Grant Payments,49090,,,,Revenue
http://statistics.data.gov.uk/doc/local-authority/33,Norfolk County Council,04-Jan-11,2867003,7500,,Redacted - Personal Data,Redacted,,Children's Services,Grant Payments,49090,,,,Revenue
http://statistics.data.gov.uk/doc/local-authority/33,Norfolk County Council,04-Jan-11,2867012,1705,,Cephas Care Ltd,163634,,Community Services,Domiciliary Care,51610,,,,Revenue
http://statistics.data.gov.uk/doc/local-authority/33,Norfolk County Council,04-Jan-11,2867015,542.5,,Cephas Care Ltd,163634,,Community Services,Domiciliary Care,51610,,,,Revenue
http://statistics.data.gov.uk/doc/local-authority/33,Norfolk County Council,04-Jan-11,2867020,542.5,,Cephas Care Ltd,163634,,Community Services,Domiciliary Care,51610,,,,Revenue
http://statistics.data.gov.uk/doc/local-authority/33,Norfolk County Council,04-Jan-11,2867024,1687.5,,NPS Property Consultants Ltd,72669,,Community Services,Architects Fees,C5120,,,,Capital
http://statistics.data.gov.uk/doc/local-authority/33,Norfolk County Council,04-Jan-11,2867025,-6030.77,,ESPO,68527,,,Gas (mains supplied),24360,,,,Revenue
http://statistics.data.gov.uk/doc/local-authority/33,Norfolk County Council,04-Jan-11,2867027,6030.77,,Espo,68527,,Community Services,Gas (mains supplied),24360,,,,Revenue
http://statistics.data.gov.uk/doc/local-authority/33,Norfolk County Council,04-Jan-11,2867034,29.2,,Redacted - Personal Data,Redacted,,Children's Services,Voluntary Driver Payments,35700,,,,Revenue
http://statistics.data.gov.uk/doc/local-authority/33,Norfolk County Council,04-Jan-11,2867034,484.1,,Redacted - Personal Data,Redacted,,Children's Services,Short Term Care Relief Scheme,47610,,,,Revenue
http://statistics.data.gov.uk/doc/local-authority/33,Norfolk County Council,04-Jan-11,2867046,14673.09,,Hilton Community Services Ltd,154104,,Community Services,Purchase of Care - Unspecified,52270,,,,Revenue
http://statistics.data.gov.uk/doc/local-authority/33,Norfolk County Council,04-Jan-11,2867049,10632.11,,Hilton Community Services Ltd,154104,,Community Services,Purchase of Care - Unspecified,52270,,,,Revenue
http://statistics.data.gov.uk/doc/local-authority/33,Norfolk County Council,04-Jan-11,2867056,3332,,Norfolk Community Health & Care,188303,,Children's Services,Other Hired & Contracted Services,44810,,,,Revenue
http://statistics.data.gov.uk/doc/local-authority/33,Norfolk County Council,04-Jan-11,2867118,1896.64,,Perth & Kinross Council,220967,,Community Services,Long Term Residential Care,52070,,,,Revenue
http://statistics.data.gov.uk/doc/local-authority/33,Norfolk County Council,04-Jan-11,2867121,10357.14,,Pri-Med Group Ltd T/A Pri-Med Care Homes,122609,,Community Services,Long Term Residential Care,52070,,,,Revenue
http://statistics.data.gov.uk/doc/local-authority/33,Norfolk County Council,04-Jan-11,2867124,5200,,CTBF,412128,,Community Services,Long Term Residential Care,52070,,,,Revenue
http://statistics.data.gov.uk/doc/local-authority/33,Norfolk County Council,04-Jan-11,2867125,4369.85,,HRVAB,412125,,Community Services,Long Term Residential Care,52070,,,,Revenue
http://statistics.data.gov.uk/doc/local-authority/33,Norfolk County Council,04-Jan-11,2867143,850,,Hallmark Healthcare (Gaywood) Ltd,69612,,Community Services,Short Term Residential Care,50210,,,,Revenue
http://statistics.data.gov.uk/doc/local-authority/33,Norfolk County Council,04-Jan-11,2867144,2975,,Hallmark Healthcare (Gaywood) Ltd,69612,,Community Services,Long Term Residential Care,52070,,,,Revenue
http://statistics.data.gov.uk/doc/local-authority/33,Norfolk County Council,04-Jan-11,2867146,4067.86,,Hallmark Healthcare (Gaywood) Ltd,69612,,Community Services,Long Term Residential Care,52070,,,,Revenue
http://statistics.data.gov.uk/doc/local-authority/33,Norfolk County Council,04-Jan-11,2867158,2928,,Redacted - Personal Data,Redacted,,Community Services,Long Term Residential Care,52070,,,,Revenue
http://statistics.data.gov.uk/doc/local-authority/33,Norfolk County Council,04-Jan-11,2867159,2352.86,,Redacted - Personal Data,Redacted,,Community Services,Long Term Residential Care,52070,,,,Revenue
http://statistics.data.gov.uk/doc/local-authority/33,Norfolk County Council,04-Jan-11,2867160,2928,,Redacted - Personal Data,Redacted,,Community Services,Short Term Residential Care,50210,,,,Revenue
http://statistics.data.gov.uk/doc/local-authority/33,Norfolk County Council,04-Jan-11,2867161,732,,Redacted - Personal Data,Redacted,,Community Services,Long Term Residential Care,52070,,,,Revenue
http://statistics.data.gov.uk/doc/local-authority/33,Norfolk County Council,04-Jan-11,2867167,606.57,,Ashbourne Homes Ltd,121789,,Community Services,Long Term Residential Care,52070,,,,Revenue
http://statistics.data.gov.uk/doc/local-authority/33,Norfolk County Council,04-Jan-11,2867168,1548.86,,The Beeches (East Harling Limited),75372,,Community Services,Long Term Residential Care,52070,,,,Revenue
http://statistics.data.gov.uk/doc/local-authority/33,Norfolk County Council,04-Jan-11,2867169,2323.29,,The Beeches (East Harling Limited),75372,,Community Services,Long Term Residential Care,52070,,,,Revenue
http://statistics.data.gov.uk/doc/local-authority/33,Norfolk County Council,04-Jan-11,2867170,834,,The Beeches (East Harling Limited),75372,,Community Services,Short Term Residential Care,50210,,,,Revenue
http://statistics.data.gov.uk/doc/local-authority/33,Norfolk County Council,04-Jan-11,2867171,1464,,Ingham Healthcare Ltd,97508,,Community Services,Long Term Residential Care,52070,,,,Revenue
http://statistics.data.gov.uk/doc/local-authority/33,Norfolk County Council,04-Jan-11,2867173,4228.71,,Manorcourt Care Ltd,71702,,Community Services,Long Term Residential Care,52070,,,,Revenue
http://statistics.data.gov.uk/doc/local-authority/33,Norfolk County Council,04-Jan-11,2867174,612.86,,Manorcourt Care Ltd,71702,,Community Services,Short Term Residential Care,50210,,,,Revenue
http://statistics.data.gov.uk/doc/local-authority/33,Norfolk County Council,04-Jan-11,2867178,9100,,Redacted - Personal Data,Redacted,,Community Services,Long Term Residential Care,52070,,,,Revenue
http://statistics.data.gov.uk/doc/local-authority/33,Norfolk County Council,04-Jan-11,2867179,5214.29,,Redacted - Personal Data,Redacted,,Community Services,Long Term Residential Care,52070,,,,Revenue
http://statistics.data.gov.uk/doc/local-authority/33,Norfolk County Council,04-Jan-11,2867182,3631.43,,Redacted - Personal Data,Redacted,,Community Services,Personal Budget - Long Term Residential Care,60150,,,,Revenue
http://statistics.data.gov.uk/doc/local-authority/33,Norfolk County Council,04-Jan-11,2867183,6000,,Redacted - Personal Data,Redacted,,Community Services,Long Term Residential Care,52070,,,,Revenue
http://statistics.data.gov.uk/doc/local-authority/33,Norfolk County Council,04-Jan-11,2867184,732,,Redacted - Personal Data,Redacted,,Community Services,Short Term Residential Care,50210,,,,Revenue
http://statistics.data.gov.uk/doc/local-authority/33,Norfolk County Council,04-Jan-11,2867189,2661.47,,London & West Investments Limited,71295,,Community Services,Long Term Care with Nursing,51550,,,,Revenue
http://statistics.data.gov.uk/doc/local-authority/33,Norfolk County Council,04-Jan-11,2867190,605.61,,London & West Investments Limited,71295,,Community Services,Free Nursing Care,55560,,,,Revenue
http://statistics.data.gov.uk/doc/local-authority/33,Norfolk County Council,04-Jan-11,2867192,6778.57,,Brooklyn House Ltd,66896,,Community Services,Long Term Residential Care,52070,,,,Revenue
http://statistics.data.gov.uk/doc/local-authority/33,Norfolk County Council,04-Jan-11,2867196,5721.43,,Baytree Community Care (Lon) Ltd,122161,,Community Services,Long Term Residential Care,52070,,,,Revenue
http://statistics.data.gov.uk/doc/local-authority/33,Norfolk County Council,04-Jan-11,2867197,2206.29,,Inh - Holmwood Kings Lynn,94855,,Community Services,Short Term Residential Care,50210,,,,Revenue
http://statistics.data.gov.uk/doc/local-authority/33,Norfolk County Council,04-Jan-11,2867199,5280.86,,Inh - Holmwood Kings Lynn,94855,,Community Services,Long Term Residential Care,52070,,,,Revenue
http://statistics.data.gov.uk/doc/local-authority/33,Norfolk County Council,04-Jan-11,2867200,732,,Inh - Holmwood Kings Lynn,94855,,Community Services,Short Term Residential Care,50210,,,,Revenue
http://statistics.data.gov.uk/doc/local-authority/33,Norfolk County Council,04-Jan-11,2867201,1303.71,,Inh - Holmwood Kings Lynn,94855,,Community Services,Short Term Residential Care,50210,,,,Revenue
http://statistics.data.gov.uk/doc/local-authority/33,Norfolk County Council,04-Jan-11,2867202,2356.71,,Inh - Holmwood Kings Lynn,94855,,Community Services,Long Term Residential Care,52070,,,,Revenue
http://statistics.data.gov.uk/doc/local-authority/33,Norfolk County Council,04-Jan-11,2867204,1770,,Socitm Ltd,74675,,Corporate Resources,Cost of Licenses & Subscriptions,49020,,,,Revenue
http://statistics.data.gov.uk/doc/local-authority/33,Norfolk County Council,05-Jan-11,2668425,600,,Anglian Pest Control,66153,,Environment Transport & Development,Pest Control,48100,,,,Revenue
http://statistics.data.gov.uk/doc/local-authority/33,Norfolk County Council,05-Jan-11,2668426,600,,Anglian Pest Control,66153,,Environment Transport & Development,Pest Control,48100,,,,Revenue
http://statistics.data.gov.uk/doc/local-authority/33,Norfolk County Council,05-Jan-11,2821246,1224,,Redacted - Personal Data,Redacted,,Children's Services,Fees & Charges,44500,,,,Revenue
http://statistics.data.gov.uk/doc/local-authority/33,Norfolk County Council,05-Jan-11,2821815,762.3,,Millar West Ltd,84924,,Fire & Rescue,Loose Furniture & Fittings-General,41250,,,,Revenue
http://statistics.data.gov.uk/doc/local-authority/33,Norfolk County Council,05-Jan-11,2834292,1256.68,,Misco (Computer Supplies) Ltd,71935,,Corporate Resources,ICT Equipment Purchases,43900,,,,Revenue
http://statistics.data.gov.uk/doc/local-authority/33,Norfolk County Council,05-Jan-11,2834508,1206.56,,Redacted - Personal Data,Redacted,,Community Services,Purchase Of IT,C3200,,,,Capital
http://statistics.data.gov.uk/doc/local-authority/33,Norfolk County Council,05-Jan-11,2837584,478,,QA Ltd,174500,,Corporate Resources,Staff Training Costs,17450,,,,Revenue
http://statistics.data.gov.uk/doc/local-authority/33,Norfolk County Council,05-Jan-11,2838361,2049,,Dell Corporation Ltd,68158,,Children's Services,ICT Equipment Purchases,43900,,,,Revenue
http://statistics.data.gov.uk/doc/local-authority/33,Norfolk County Council,05-Jan-11,2840889,994,,NORSE Commercial Services,179148,,Children's Services,Printing,46510,,,,Revenue
http://statistics.data.gov.uk/doc/local-authority/33,Norfolk County Council,05-Jan-11,2841873,13.31,,Staff Call Recruitment Specialists Ltd,74897,,Children's Services,Staff Excess Travel Expenses,18120,,,,Revenue
http://statistics.data.gov.uk/doc/local-authority/33,Norfolk County Council,05-Jan-11,2841873,232.73,,Staff Call Recruitment Specialists Ltd,74897,,Children's Services,Other Professional Services,44650,,,,Revenue
http://statistics.data.gov.uk/doc/local-authority/33,Norfolk County Council,05-Jan-11,2841873,456.66,,Staff Call Recruitment Specialists Ltd,74897,,Children's Services,Temporary Staff Admin & Clerical,13750,,,,Revenue
http://statistics.data.gov.uk/doc/local-authority/33,Norfolk County Council,05-Jan-11,2841873,477.67,,Staff Call Recruitment Specialists Ltd,74897,,Children's Services,Standard Fund Other Staff,16450,,,,Revenue
http://statistics.data.gov.uk/doc/local-authority/33,Norfolk County Council,05-Jan-11,2841873,649.3,,Staff Call Recruitment Specialists Ltd,74897,,Children's Services,Admin & Clerical - Scale A to J,13600,,,,Revenue
http://statistics.data.gov.uk/doc/local-authority/33,Norfolk County Council,05-Jan-11,2841873,1388.07,,Staff Call Recruitment Specialists Ltd,74897,,Children's Services,Agency Staff,13800,,,,Revenue
http://statistics.data.gov.uk/doc/local-authority/33,Norfolk County Council,05-Jan-11,2841884,520,,Redacted - Personal Data,Redacted,,Corporate Resources,Contract Taxi Hire,35400,,,,Revenue
http://statistics.data.gov.uk/doc/local-authority/33,Norfolk County Council,05-Jan-11,2843506,1125,,Construction Skills,148065,,Environment Transport & Development,Staff Training Costs,17450,,,,Revenue
http://statistics.data.gov.uk/doc/local-authority/33,Norfolk County Council,05-Jan-11,2844302,564,,Eyre (Electrical) Limited,68818,,Corporate Resources,Building Maintenance & Repairs,23300,,,,Revenue
http://statistics.data.gov.uk/doc/local-authority/33,Norfolk County Council,05-Jan-11,2844348,940,,Mervyn Lambert Plant Ltd,71849,,Environment Transport & Development,Contract Plant & Machinery Hire,34930,,,,Revenue
http://statistics.data.gov.uk/doc/local-authority/33,Norfolk County Council,05-Jan-11,2844657,762.72,,Eyre (Electrical) Limited,68818,,Children's Services,Office Equipment & Supplies,40000,,,,Revenue
http://statistics.data.gov.uk/doc/local-authority/33,Norfolk County Council,05-Jan-11,2844698,1321.13,,Province Building Services Ltd,171598,,Corporate Resources,Building Repairs,A1780,,,,Revenue
http://statistics.data.gov.uk/doc/local-authority/33,Norfolk County Council,05-Jan-11,2844749,1201.5,,Johnson Controls Ltd,129482,,Corporate Resources,Boiler Servicing,A1660,,,,Revenue
http://statistics.data.gov.uk/doc/local-authority/33,Norfolk County Council,05-Jan-11,2844861,480.49,,NORSE Commercial Services,179148,,Children's Services,School Equipment Inspection/Testing,A3610,,,,Revenue
http://statistics.data.gov.uk/doc/local-authority/33,Norfolk County Council,05-Jan-11,2845295,912.34,,T C Garrett Ltd,75121,,Children's Services,Building Repairs,A3780,,,,Revenue
http://statistics.data.gov.uk/doc/local-authority/33,Norfolk County Council,05-Jan-11,2845318,1677,,Ergo Computing Uk Limited,68752,,Children's Services,Purchase Of Furniture,C3000,,,,Capital
http://statistics.data.gov.uk/doc/local-authority/33,Norfolk County Council,05-Jan-11,2845318,3913,,Ergo Computing Uk Limited,68752,,Children's Services,Equipment Purchases,40850,,,,Revenue
http://statistics.data.gov.uk/doc/local-authority/33,Norfolk County Council,05-Jan-11,2847195,510,,EventGuard Ltd,90244,,Environment Transport & Development,Other Miscellaneous Expenses,48080,,,,Revenue
http://statistics.data.gov.uk/doc/local-authority/33,Norfolk County Council,05-Jan-11,2847198,446.25,,EventGuard Ltd,90244,,Environment Transport & Development,Other Miscellaneous Expenses,48080,,,,Revenue
http://statistics.data.gov.uk/doc/local-authority/33,Norfolk County Council,05-Jan-11,2847301,8208.56,,Dimensions (NSO) Ltd,144113,,Community Services,Domiciliary Care,51610,,,,Revenue
http://statistics.data.gov.uk/doc/local-authority/33,Norfolk County Council,05-Jan-11,2847302,1271,,Allied Healthcare Group Ltd,104517,,Community Services,Domiciliary Care,51610,,,,Revenue
http://statistics.data.gov.uk/doc/local-authority/33,Norfolk County Council,05-Jan-11,2847303,1278.75,,Allied Healthcare Group Ltd,104517,,Community Services,Domiciliary Care,51610,,,,Revenue
http://statistics.data.gov.uk/doc/local-authority/33,Norfolk County Council,05-Jan-11,2847332,1262.63,,IRS Limited,70031,,Environment Transport & Development,Materials Purchases,42160,,,,Revenue
http://statistics.data.gov.uk/doc/local-authority/33,Norfolk County Council,05-Jan-11,2847687,867,,Eyre (Electrical) Limited,68818,,Corporate Resources,Building Alterations & Improvements,23610,,,,Revenue
http://statistics.data.gov.uk/doc/local-authority/33,Norfolk County Council,05-Jan-11,2848241,797,,T Farrow Construction Ltd,75144,,Children's Services,Building Repairs,A3780,,,,Revenue
http://statistics.data.gov.uk/doc/local-authority/33,Norfolk County Council,05-Jan-11,2848371,1515.9,,T C Garrett Ltd,75121,,Children's Services,Building Repairs,A3780,,,,Revenue
http://statistics.data.gov.uk/doc/local-authority/33,Norfolk County Council,05-Jan-11,2848432,716.18,,Peters Ltd,73217,,Community Services,Library Books - Junior Non Fiction,42680,,,,Revenue
http://statistics.data.gov.uk/doc/local-authority/33,Norfolk County Council,05-Jan-11,2848442,640.92,,Peters Ltd,73217,,Community Services,Library Books - Junior Non Fiction,42680,,,,Revenue
http://statistics.data.gov.uk/doc/local-authority/33,Norfolk County Council,05-Jan-11,2848445,773.82,,Peters Ltd,73217,,Community Services,Library Books - Junior Non Fiction,42680,,,,Revenue
http://statistics.data.gov.uk/doc/local-authority/33,Norfolk County Council,05-Jan-11,2848471,527.6,,Peters Ltd,73217,,Community Services,Library Books - Junior Fiction,42640,,,,Revenue
http://statistics.data.gov.uk/doc/local-authority/33,Norfolk County Council,05-Jan-11,2848472,636,,Peters Ltd,73217,,Community Services,Library Books - Junior Fiction,42640,,,,Revenue
http://statistics.data.gov.uk/doc/local-authority/33,Norfolk County Council,05-Jan-11,2848476,520.9,,Peters Ltd,73217,,Community Services,Library Books - Junior Fiction,42640,,,,Revenue
http://statistics.data.gov.uk/doc/local-authority/33,Norfolk County Council,05-Jan-11,2848480,636,,Peters Ltd,73217,,Community Services,Library Books - Junior Fiction,42640,,,,Revenue
http://statistics.data.gov.uk/doc/local-authority/33,Norfolk County Council,05-Jan-11,2848482,636,,Peters Ltd,73217,,Community Services,Library Books - Junior Fiction,42640,,,,Revenue
http://statistics.data.gov.uk/doc/local-authority/33,Norfolk County Council,05-Jan-11,2848487,694.5,,Peters Ltd,73217,,Community Services,Library Books - Junior Fiction,42640,,,,Revenue
http://statistics.data.gov.uk/doc/local-authority/33,Norfolk County Council,05-Jan-11,2848490,601.6,,Peters Ltd,73217,,Community Services,Library Books - Junior Fiction,42640,,,,Revenue
http://statistics.data.gov.uk/doc/local-authority/33,Norfolk County Council,05-Jan-11,2848493,636,,Peters Ltd,73217,,Community Services,Library Books - Junior Fiction,42640,,,,Revenue
http://statistics.data.gov.uk/doc/local-authority/33,Norfolk County Council,05-Jan-11,2849100,19667.34,,NORSE Commercial Services,179148,,Community Services,Private Contractor Catering Payments,52600,,,,Revenue
http://statistics.data.gov.uk/doc/local-authority/33,Norfolk County Council,05-Jan-11,2849103,7840.4,,NORSE Commercial Services,179148,,Community Services,Service Level Agreement With Organisations Providing Services to NCC,52260,,,,Revenue
http://statistics.data.gov.uk/doc/local-authority/33,Norfolk County Council,05-Jan-11,2849105,68126.26,,NORSE Commercial Services,179148,,Community Services,Private Contractor Catering Payments,52600,,,,Revenue
http://statistics.data.gov.uk/doc/local-authority/33,Norfolk County Council,05-Jan-11,2849108,1695,,NORSE Commercial Services,179148,,Children's Services,Construction Cost-Adoption/Improvement Building,C2450,,,,Capital
http://statistics.data.gov.uk/doc/local-authority/33,Norfolk County Council,05-Jan-11,2849117,1590,,NORSE Commercial Services,179148,,Community Services,Grounds Maintenance Costs,22500,,,,Revenue
http://statistics.data.gov.uk/doc/local-authority/33,Norfolk County Council,05-Jan-11,2849119,585,,NORSE Commercial Services,179148,,Community Services,Grounds Maintenance Costs,22500,,,,Revenue
http://statistics.data.gov.uk/doc/local-authority/33,Norfolk County Council,05-Jan-11,2849143,750,,NORSE Commercial Services,179148,,Environment Transport & Development,Tree Planting/Landscaping,C0170,,,,Capital
http://statistics.data.gov.uk/doc/local-authority/33,Norfolk County Council,05-Jan-11,2849213,900,,Freescape,69075,,Children's Services,Staff Training Costs,17450,,,,Revenue
http://statistics.data.gov.uk/doc/local-authority/33,Norfolk County Council,05-Jan-11,2849254,18000,,North Lynn Discovery Limited,72554,,Children's Services,Service Level Agreement With Organisations Providing Services to NCC,52260,,,,Revenue
http://statistics.data.gov.uk/doc/local-authority/33,Norfolk County Council,05-Jan-11,2849290,518.04,,NORSE Commercial Services,179148,,Community Services,Grounds Maintenance Costs,22500,,,,Revenue
http://statistics.data.gov.uk/doc/local-authority/33,Norfolk County Council,05-Jan-11,2849336,11,,Anglia Air Conditioning Ltd,80619,,Environment Transport & Development,Delivery Service Charge,43070,,,,Revenue
http://statistics.data.gov.uk/doc/local-authority/33,Norfolk County Council,05-Jan-11,2849336,485.52,,Anglia Air Conditioning Ltd,80619,,Environment Transport & Development,Operational Equipment,40380,,,,Revenue
http://statistics.data.gov.uk/doc/local-authority/33,Norfolk County Council,05-Jan-11,2849422,757.8,,NORSE Commercial Services,179148,,Children's Services,Contract Cleaning & Other Cleaning Services,25300,,,,Revenue
http://statistics.data.gov.uk/doc/local-authority/33,Norfolk County Council,05-Jan-11,2849456,1053.5,,Abacus Care (Norfolk & Suffolk) Ltd,65849,,Community Services,Operational - Manual,8800,,,,Revenue
http://statistics.data.gov.uk/doc/local-authority/33,Norfolk County Council,05-Jan-11,2849583,1075,,Southery & District Internal Drainage Bo,86786,,Corporate Resources,Dyking & Drainage Schemes,22570,,,,Revenue
http://statistics.data.gov.uk/doc/local-authority/33,Norfolk County Council,05-Jan-11,2850265,2000,,Redacted - Personal Data,Redacted,,Children's Services,Fees/Expenses - Other Consultants,44530,,,,Revenue
http://statistics.data.gov.uk/doc/local-authority/33,Norfolk County Council,05-Jan-11,2851093,9170,,Fronter UK Ltd,167986,,Children's Services,ICT Equipment Purchases,43900,,,,Revenue
http://statistics.data.gov.uk/doc/local-authority/33,Norfolk County Council,05-Jan-11,2851234,567.77,,Reeve Property Restoration Limited,73858,,Children's Services,Minor Building Repairs,A3800,,,,Revenue
http://statistics.data.gov.uk/doc/local-authority/33,Norfolk County Council,05-Jan-11,2851270,961,,Allied Healthcare Group Ltd,104517,,Community Services,Domiciliary Care,51610,,,,Revenue
http://statistics.data.gov.uk/doc/local-authority/33,Norfolk County Council,05-Jan-11,2851299,503.55,,Konica Minolta Business Solutions East Ltd,70912,,Children's Services,"Printing, Stationery and Photocopying",46500,,,,Revenue
http://statistics.data.gov.uk/doc/local-authority/33,Norfolk County Council,05-Jan-11,2851306,503.55,,Konica Minolta Business Solutions East Ltd,70912,,Children's Services,"Printing, Stationery and Photocopying",46500,,,,Revenue
http://statistics.data.gov.uk/doc/local-authority/33,Norfolk County Council,05-Jan-11,2851389,1053,,Matrix Display Systems Ltd,84854,,Children's Services,Purchase Of IT,C3200,,,,Capital
http://statistics.data.gov.uk/doc/local-authority/33,Norfolk County Council,05-Jan-11,2851392,1228,,Matrix Display Systems Ltd,84854,,Children's Services,ICT Equipment Purchases,43900,,,,Revenue
http://statistics.data.gov.uk/doc/local-authority/33,Norfolk County Council,05-Jan-11,2851434,1090,,Direct Plant Supplies Limited,68254,,Environment Transport & Development,Materials Purchases,42160,,,,Revenue
http://statistics.data.gov.uk/doc/local-authority/33,Norfolk County Council,05-Jan-11,2851435,465.6,,Cemex UK Operations Ltd,104398,,Environment Transport & Development,Materials Purchases,42160,,,,Revenue
http://statistics.data.gov.uk/doc/local-authority/33,Norfolk County Council,05-Jan-11,2852159,521.53,,Eyre (Electrical) Limited,68818,,Community Services,Boiler Servicing,A1660,,,,Revenue
http://statistics.data.gov.uk/doc/local-authority/33,Norfolk County Council,05-Jan-11,2852159,6727.84,,Eyre (Electrical) Limited,68818,,Children's Services,Boiler Servicing,A1660,,,,Revenue
http://statistics.data.gov.uk/doc/local-authority/33,Norfolk County Council,05-Jan-11,2852393,15044,,UK Power Networks (Operations) Ltd,420270,,Environment Transport & Development,Alterations To Service - Electricity,C2700,,,,Capital
http://statistics.data.gov.uk/doc/local-authority/33,Norfolk County Council,05-Jan-11,2852597,986.99,,Eyre (Electrical) Limited,68818,,Community Services,Boiler Servicing,A1660,,,,Revenue
http://statistics.data.gov.uk/doc/local-authority/33,Norfolk County Council,05-Jan-11,2852685,2233.71,,Coutts Information Services Ltd,100866,,Community Services,Library Books-Standing Orders,42630,,,,Revenue
http://statistics.data.gov.uk/doc/local-authority/33,Norfolk County Council,05-Jan-11,2854653,776.32,,Eyre (Electrical) Limited,68818,,Children's Services,Boiler Servicing,A3660,,,,Revenue
http://statistics.data.gov.uk/doc/local-authority/33,Norfolk County Council,05-Jan-11,2855032,8000,,Local Government Information House Ltd,139635,,Children's Services,Fees & Charges,44500,,,,Revenue
http://statistics.data.gov.uk/doc/local-authority/33,Norfolk County Council,05-Jan-11,2855115,5324,,Inchcape Fleet Solutions Ltd,131195,,Environment Transport & Development,Leased Car Maintenance Agreement,36280,,,,Revenue
http://statistics.data.gov.uk/doc/local-authority/33,Norfolk County Council,05-Jan-11,2855239,1814.95,,Eyre (Electrical) Limited,68818,,Children's Services,Boiler Servicing,A3660,,,,Revenue
http://statistics.data.gov.uk/doc/local-authority/33,Norfolk County Council,05-Jan-11,2855279,236518.5,,Kier Eastern,70845,,Children's Services,Architects Fees,C5120,,,,Capital
http://statistics.data.gov.uk/doc/local-authority/33,Norfolk County Council,05-Jan-11,2855310,501.5,,Mannpower Electrical Services Limited,71699,,Children's Services,Minor Building Repairs,A3800,,,,Revenue
http://statistics.data.gov.uk/doc/local-authority/33,Norfolk County Council,05-Jan-11,2855333,466.95,,Eyre (Electrical) Limited,68818,,Children's Services,Boiler Servicing,A3660,,,,Revenue
http://statistics.data.gov.uk/doc/local-authority/33,Norfolk County Council,05-Jan-11,2855352,428.36,,BNP Paribas Lease Group (Rentals) Ltd,135808,,Environment Transport & Development,Other Hired & Contracted Services,44810,,,,Revenue
http://statistics.data.gov.uk/doc/local-authority/33,Norfolk County Council,05-Jan-11,2855498,861.99,,Dimensions (NSO) Ltd,144113,,Community Services,Day Care / Supported Activities,52160,,,,Revenue
http://statistics.data.gov.uk/doc/local-authority/33,Norfolk County Council,05-Jan-11,2855502,1739.93,,Dimensions (NSO) Ltd,144113,,Community Services,Day Care / Supported Activities,52160,,,,Revenue
http://statistics.data.gov.uk/doc/local-authority/33,Norfolk County Council,05-Jan-11,2855504,1739.93,,Dimensions (NSO) Ltd,144113,,Community Services,Day Care / Supported Activities,52160,,,,Revenue
http://statistics.data.gov.uk/doc/local-authority/33,Norfolk County Council,05-Jan-11,2855508,3042.96,,Dimensions (NSO) Ltd,144113,,Community Services,Domiciliary Care,51610,,,,Revenue
http://statistics.data.gov.uk/doc/local-authority/33,Norfolk County Council,05-Jan-11,2855513,778.8,,Dimensions (NSO) Ltd,144113,,Community Services,Domiciliary Care,51610,,,,Revenue
http://statistics.data.gov.uk/doc/local-authority/33,Norfolk County Council,05-Jan-11,2855516,1632.31,,Dimensions (NSO) Ltd,144113,,Community Services,Day Care / Supported Activities,52160,,,,Revenue
http://statistics.data.gov.uk/doc/local-authority/33,Norfolk County Council,05-Jan-11,2855518,2048.67,,Dimensions (NSO) Ltd,144113,,Community Services,Day Care / Supported Activities,52160,,,,Revenue
http://statistics.data.gov.uk/doc/local-authority/33,Norfolk County Council,05-Jan-11,2855631,1439,,Redacted - Personal Data,Redacted,,Corporate Resources,Estate-Improvements,22510,,,,Revenue
http://statistics.data.gov.uk/doc/local-authority/33,Norfolk County Council,05-Jan-11,2855957,880.03,,Redacted - Personal Data,Redacted,,Environment Transport & Development,Materials Purchases,42160,,,,Revenue
http://statistics.data.gov.uk/doc/local-authority/33,Norfolk County Council,05-Jan-11,2855961,570.5,,ALcontrol UK Ltd,66013,,Environment Transport & Development,Other Hired & Contracted Services,44810,,,,Revenue
http://statistics.data.gov.uk/doc/local-authority/33,Norfolk County Council,05-Jan-11,2856649,1482.23,,Eyre (Electrical) Limited,68818,,Community Services,Boiler Servicing,A1660,,,,Revenue
http://statistics.data.gov.uk/doc/local-authority/33,Norfolk County Council,05-Jan-11,2856782,2489.44,,T C Garrett Ltd,75121,,Environment Transport & Development,Building Maintenance & Repairs,23300,,,,Revenue
http://statistics.data.gov.uk/doc/local-authority/33,Norfolk County Council,05-Jan-11,2856864,841.89,,FisherBullen,186099,,Community Services,Adaptations,41310,,,,Revenue
http://statistics.data.gov.uk/doc/local-authority/33,Norfolk County Council,05-Jan-11,2856864,841.89,,FisherBullen,186099,,Community Services,Adaptation/Improvement-Existing Buildings,C5320,,,,Capital
http://statistics.data.gov.uk/doc/local-authority/33,Norfolk County Council,05-Jan-11,2856886,5324.94,,Salt Union Limited,74402,,Environment Transport & Development,Highway Winter Salt Barn Availability Charge under PFI,59230,,,,Revenue
http://statistics.data.gov.uk/doc/local-authority/33,Norfolk County Council,05-Jan-11,2856972,846.81,,First Intuition,448326,,Children's Services,Staff Training Costs,17450,,,,Revenue
http://statistics.data.gov.uk/doc/local-authority/33,Norfolk County Council,05-Jan-11,2856982,2025,,Redacted - Personal Data,Redacted,,Environment Transport & Development,Road Maintenance Contractor Payments,45070,,,,Revenue
http://statistics.data.gov.uk/doc/local-authority/33,Norfolk County Council,05-Jan-11,2857836,518.48,,The Assist Trust,75365,,Community Services,Day Care / Supported Activities,52160,,,,Revenue
http://statistics.data.gov.uk/doc/local-authority/33,Norfolk County Council,05-Jan-11,2857841,518.48,,The Assist Trust,75365,,Community Services,Day Care / Supported Activities,52160,,,,Revenue
http://statistics.data.gov.uk/doc/local-authority/33,Norfolk County Council,05-Jan-11,2863663,1410,,Tribe,147423,,Environment Transport & Development,Other Hired & Contracted Services,44810,,,,Revenue
http://statistics.data.gov.uk/doc/local-authority/33,Norfolk County Council,05-Jan-11,2863919,259.7,,ALS-Akamas Limited,225003,,Children's Services,Other Travel Expenses,35430,,,,Revenue
http://statistics.data.gov.uk/doc/local-authority/33,Norfolk County Council,05-Jan-11,2863919,1075,,ALS-Akamas Limited,225003,,Children's Services,Staff Training Costs,17450,,,,Revenue
http://statistics.data.gov.uk/doc/local-authority/33,Norfolk County Council,05-Jan-11,2863981,75910.56,,Specialist Education Services Ltd,94257,,Children's Services,Payments to Organisations Providing Services To NCC,52000,,,,Revenue
http://statistics.data.gov.uk/doc/local-authority/33,Norfolk County Council,05-Jan-11,2863982,736.37,,Dimensions (NSO) Ltd,144113,,Community Services,Day Care / Supported Activities,52160,,,,Revenue
http://statistics.data.gov.uk/doc/local-authority/33,Norfolk County Council,05-Jan-11,2863984,2015.43,,Dimensions (NSO) Ltd,144113,,Community Services,Day Care / Supported Activities,52160,,,,Revenue
http://statistics.data.gov.uk/doc/local-authority/33,Norfolk County Council,05-Jan-11,2863993,1283.2,,Lynstead Candice Education Services Ltd,225005,,Children's Services,Payments to Organisations Providing Services To NCC,52000,,,,Revenue
http://statistics.data.gov.uk/doc/local-authority/33,Norfolk County Council,05-Jan-11,2864091,610.53,,Dimensions (NSO) Ltd,144113,,Community Services,Day Care / Supported Activities,52160,,,,Revenue
http://statistics.data.gov.uk/doc/local-authority/33,Norfolk County Council,05-Jan-11,2864098,1085.29,,Dimensions (NSO) Ltd,144113,,Community Services,Day Care / Supported Activities,52160,,,,Revenue
http://statistics.data.gov.uk/doc/local-authority/33,Norfolk County Council,05-Jan-11,2864099,1085.29,,Dimensions (NSO) Ltd,144113,,Community Services,Day Care / Supported Activities,52160,,,,Revenue
http://statistics.data.gov.uk/doc/local-authority/33,Norfolk County Council,05-Jan-11,2864282,1648.84,,Dimensions (NSO) Ltd,144113,,Community Services,Day Care / Supported Activities,52160,,,,Revenue
http://statistics.data.gov.uk/doc/local-authority/33,Norfolk County Council,05-Jan-11,2866170,939.38,,Dimensions (NSO) Ltd,144113,,Community Services,Day Care / Supported Activities,52160,,,,Revenue
http://statistics.data.gov.uk/doc/local-authority/33,Norfolk County Council,05-Jan-11,2866173,633.56,,Dimensions (NSO) Ltd,144113,,Community Services,Day Care / Supported Activities,52160,,,,Revenue
http://statistics.data.gov.uk/doc/local-authority/33,Norfolk County Council,05-Jan-11,2866174,2178.04,,Dimensions (NSO) Ltd,144113,,Community Services,Day Care / Supported Activities,52160,,,,Revenue
http://statistics.data.gov.uk/doc/local-authority/33,Norfolk County Council,05-Jan-11,2866179,3159.24,,Dimensions (NSO) Ltd,144113,,Community Services,Day Care / Supported Activities,52160,,,,Revenue
http://statistics.data.gov.uk/doc/local-authority/33,Norfolk County Council,05-Jan-11,2866923,839.2,,NETwork Interventions,277224,,Children's Services,Other Hired & Contracted Services,44810,,,,Revenue
http://statistics.data.gov.uk/doc/local-authority/33,Norfolk County Council,05-Jan-11,2866925,1675,,NETwork Interventions,277224,,Children's Services,Other Hired & Contracted Services,44810,,,,Revenue
http://statistics.data.gov.uk/doc/local-authority/33,Norfolk County Council,05-Jan-11,2866926,910.41,,NETwork Interventions,277224,,Children's Services,Other Hired & Contracted Services,44810,,,,Revenue
http://statistics.data.gov.uk/doc/local-authority/33,Norfolk County Council,05-Jan-11,2866927,551,,NETwork Interventions,277224,,Children's Services,Other Hired & Contracted Services,44810,,,,Revenue
http://statistics.data.gov.uk/doc/local-authority/33,Norfolk County Council,05-Jan-11,2867268,787.5,,Redacted - Personal Data,Redacted,,Community Services,Expenses On Behalf Of Clients,45530,,,,Revenue
http://statistics.data.gov.uk/doc/local-authority/33,Norfolk County Council,05-Jan-11,2867326,3207.55,,Trans Uk Supplies Limited,140479,,Community Services,Compact Discs,42760,,,,Revenue
http://statistics.data.gov.uk/doc/local-authority/33,Norfolk County Council,05-Jan-11,2867341,511.34,,BERTRAMS,66641,,Community Services,Library Books-Adult Non Fiction,42620,,,,Revenue
http://statistics.data.gov.uk/doc/local-authority/33,Norfolk County Council,05-Jan-11,2867350,765.67,,Coutts Information Services Ltd,100866,,Community Services,Library Books-Standing Orders,42630,,,,Revenue
http://statistics.data.gov.uk/doc/local-authority/33,Norfolk County Council,05-Jan-11,2867378,718.94,,Cintra Ltd,81669,,Community Services,Substance Misuse Budget,47290,,,,Revenue
http://statistics.data.gov.uk/doc/local-authority/33,Norfolk County Council,05-Jan-11,2867383,471.52,,Southern Electric,74726,,Community Services,Electricity,24340,,,,Revenue
http://statistics.data.gov.uk/doc/local-authority/33,Norfolk County Council,05-Jan-11,2867401,2000,,NGS Secure Limited,449316,,Corporate Resources,ICT Other Running Costs,43980,,,,Revenue
http://statistics.data.gov.uk/doc/local-authority/33,Norfolk County Council,05-Jan-11,2867404,646.3,,Cintra Ltd,81669,,Community Services,Substance Misuse Budget,47290,,,,Revenue
http://statistics.data.gov.uk/doc/local-authority/33,Norfolk County Council,05-Jan-11,2867405,567.48,,Southern Electric,74726,,Community Services,Electricity,24340,,,,Revenue
http://statistics.data.gov.uk/doc/local-authority/33,Norfolk County Council,05-Jan-11,2867443,3195.09,,Norfolk Community Health & Care,188303,,Community Services,Operational Staff - Scale A to J,8600,,,,Revenue
http://statistics.data.gov.uk/doc/local-authority/33,Norfolk County Council,05-Jan-11,2867450,6047.45,,SEASTAR,453291,,Environment Transport & Development,General Equipment,41480,,,,Revenue
http://statistics.data.gov.uk/doc/local-authority/33,Norfolk County Council,05-Jan-11,2867455,5161,,Norfolk Community Health & Care,188303,,Community Services,Consultancy,44750,,,,Revenue
http://statistics.data.gov.uk/doc/local-authority/33,Norfolk County Council,05-Jan-11,2867458,2515.32,,Norfolk Community Health & Care,188303,,Community Services,Operational - Manual,8800,,,,Revenue
http://statistics.data.gov.uk/doc/local-authority/33,Norfolk County Council,05-Jan-11,2867462,1241.66,,Norfolk Community Health & Care,188303,,Community Services,Operational - Manual,8800,,,,Revenue
http://statistics.data.gov.uk/doc/local-authority/33,Norfolk County Council,05-Jan-11,2867465,760,,Gordon Hamilton School Of Motoring Ltd,92217,,Environment Transport & Development,Advanced Driving Instructor Fees,44740,,,,Revenue
http://statistics.data.gov.uk/doc/local-authority/33,Norfolk County Council,05-Jan-11,2867468,662.03,,Norfolk Community Health & Care,188303,,Community Services,Operational - Manual,8800,,,,Revenue
http://statistics.data.gov.uk/doc/local-authority/33,Norfolk County Council,05-Jan-11,2867475,499.95,,Norfolk Community Health & Care,188303,,Community Services,Staff Car & Cycle Allowances,35770,,,,Revenue
http://statistics.data.gov.uk/doc/local-authority/33,Norfolk County Council,05-Jan-11,2867475,2783.78,,Norfolk Community Health & Care,188303,,Community Services,Operational Staff - Scale A to J,8600,,,,Revenue
http://statistics.data.gov.uk/doc/local-authority/33,Norfolk County Council,05-Jan-11,2867480,26161.99,,Norfolk Community Health & Care,188303,,Community Services,Long Term Residential Care,52070,,,,Revenue
http://statistics.data.gov.uk/doc/local-authority/33,Norfolk County Council,05-Jan-11,2867484,115668,,Norfolk Community Health & Care,188303,,Community Services,Long Term Residential Care,52070,,,,Revenue
http://statistics.data.gov.uk/doc/local-authority/33,Norfolk County Council,05-Jan-11,2867504,510.32,,The St Giles Clinic,95451,,Corporate Resources,Enquiry Agents Fees,45350,,,,Revenue
http://statistics.data.gov.uk/doc/local-authority/33,Norfolk County Council,05-Jan-11,2867519,1000,,MLM Consulting Engineers Ltd,196967,,Children's Services,Architects Fees,C5120,,,,Capital
http://statistics.data.gov.uk/doc/local-authority/33,Norfolk County Council,05-Jan-11,2867533,512.21,,Extra Hands Of Heacham Limited,68814,,Community Services,Domiciliary Care,51610,,,,Revenue
http://statistics.data.gov.uk/doc/local-authority/33,Norfolk County Council,05-Jan-11,2867540,282.6,,Extra Hands Of Heacham Limited,68814,,Community Services,Personal Budget - Domiciliary Care,60110,,,,Revenue
http://statistics.data.gov.uk/doc/local-authority/33,Norfolk County Council,05-Jan-11,2867540,58635.6,,Extra Hands Of Heacham Limited,68814,,Community Services,Domiciliary Care,51610,,,,Revenue
http://statistics.data.gov.uk/doc/local-authority/33,Norfolk County Council,05-Jan-11,2867550,1050,,NPS South East Ltd,174955,,Children's Services,Architects Fees,C5120,,,,Capital
http://statistics.data.gov.uk/doc/local-authority/33,Norfolk County Council,05-Jan-11,2867555,5250.4,,Kidde Products Ltd T/A Angus Fire,400027,,Fire & Rescue,Other Operational Equipment-Purchase,40310,,,,Revenue
http://statistics.data.gov.uk/doc/local-authority/33,Norfolk County Council,05-Jan-11,2867559,16750,,NPS South East Ltd,174955,,Children's Services,Architects Fees,C5120,,,,Capital
http://statistics.data.gov.uk/doc/local-authority/33,Norfolk County Council,05-Jan-11,2867605,643.25,,Crown Care & Support Limited,214902,,Community Services,Domiciliary Care,51610,,,,Revenue
http://statistics.data.gov.uk/doc/local-authority/33,Norfolk County Council,05-Jan-11,2867616,651,,Crown Care & Support Limited,214902,,Community Services,Domiciliary Care,51610,,,,Revenue
http://statistics.data.gov.uk/doc/local-authority/33,Norfolk County Council,05-Jan-11,2867620,868,,Crown Care & Support Limited,214902,,Community Services,Domiciliary Care,51610,,,,Revenue
http://statistics.data.gov.uk/doc/local-authority/33,Norfolk County Council,05-Jan-11,2867637,3700,,NPS South East Ltd,174955,,Children's Services,Architects Fees,C5120,,,,Capital
http://statistics.data.gov.uk/doc/local-authority/33,Norfolk County Council,05-Jan-11,2867890,586.03,,Southern Electric,74726,,Community Services,Electricity,24340,,,,Revenue
http://statistics.data.gov.uk/doc/local-authority/33,Norfolk County Council,05-Jan-11,2867908,465,,Westholme Ltd,76230,,Community Services,Equipment For Disabled People,41320,,,,Revenue
http://statistics.data.gov.uk/doc/local-authority/33,Norfolk County Council,05-Jan-11,2867920,3659.16,,Redacted - Personal Data,Redacted,,Community Services,Domiciliary Care,51610,,,,Revenue
http://statistics.data.gov.uk/doc/local-authority/33,Norfolk County Council,05-Jan-11,2867923,4029.08,,Redacted - Personal Data,Redacted,,Community Services,Domiciliary Care,51610,,,,Revenue
http://statistics.data.gov.uk/doc/local-authority/33,Norfolk County Council,05-Jan-11,2867924,69.09,,Shell Oil Uk Ltd,86669,,Environment Transport & Development,Fuel - General,33400,,,,Revenue
http://statistics.data.gov.uk/doc/local-authority/33,Norfolk County Council,05-Jan-11,2867924,277.56,,Shell Oil Uk Ltd,86669,,Environment Transport & Development,Petrol,33410,,,,Revenue
http://statistics.data.gov.uk/doc/local-authority/33,Norfolk County Council,05-Jan-11,2867924,831.61,,Shell Oil Uk Ltd,86669,,Environment Transport & Development,Vehicle Fuel,33420,,,,Revenue
http://statistics.data.gov.uk/doc/local-authority/33,Norfolk County Council,05-Jan-11,2867925,2430.75,,Redacted - Personal Data,Redacted,,Community Services,Domiciliary Care,51610,,,,Revenue
http://statistics.data.gov.uk/doc/local-authority/33,Norfolk County Council,05-Jan-11,2867932,591.75,,Dimensions (NSO) Ltd,144113,,Community Services,Domiciliary Care,51610,,,,Revenue
http://statistics.data.gov.uk/doc/local-authority/33,Norfolk County Council,05-Jan-11,2867950,5642.06,,James Paget Hospitals NHS Foundation Trust,124486,,Corporate Resources,Mortuary Facilities,44900,,,,Revenue
http://statistics.data.gov.uk/doc/local-authority/33,Norfolk County Council,05-Jan-11,2867957,1235,,Training in Healthcare,344020,,Community Services,Sessional Fees,44560,,,,Revenue
http://statistics.data.gov.uk/doc/local-authority/33,Norfolk County Council,05-Jan-11,2867966,97.78,,NPS Property Consultants Ltd,72669,,Environment Transport & Development,Estate-Improvements,22510,,,,Revenue
http://statistics.data.gov.uk/doc/local-authority/33,Norfolk County Council,05-Jan-11,2867966,327.79,,NPS Property Consultants Ltd,72669,,Corporate Resources,Fees/Expenses - Other Consultants,44530,,,,Revenue
http://statistics.data.gov.uk/doc/local-authority/33,Norfolk County Council,05-Jan-11,2867972,460.37,,NPS Property Consultants Ltd,72669,,Corporate Resources,Fees/Expenses - Other Consultants,44530,,,,Revenue
http://statistics.data.gov.uk/doc/local-authority/33,Norfolk County Council,05-Jan-11,2868000,1360,,Sandwell & W Birmingham Hosp NHS Trust,86599,,Corporate Resources,Pathological/Medical Practitioners,44910,,,,Revenue
http://statistics.data.gov.uk/doc/local-authority/33,Norfolk County Council,05-Jan-11,2868044,589,,NPS Property Consultants Ltd,72669,,Environment Transport & Development,Information Leaflets,46650,,,,Revenue
http://statistics.data.gov.uk/doc/local-authority/33,Norfolk County Council,05-Jan-11,2868057,2438,,Chiltern Invadex Ltd,67453,,Community Services,Equipment For Disabled People,41320,,,,Revenue
http://statistics.data.gov.uk/doc/local-authority/33,Norfolk County Council,05-Jan-11,2868072,983,,Felgains Care Centre,82779,,Community Services,Equipment For Disabled People,41320,,,,Revenue
http://statistics.data.gov.uk/doc/local-authority/33,Norfolk County Council,05-Jan-11,2868073,3057,,Helping Hand Company (Ledbury) Limited,69738,,Community Services,Purchase Of Equipment,C3100,,,,Capital
http://statistics.data.gov.uk/doc/local-authority/33,Norfolk County Council,05-Jan-11,2868083,2146.3,,Felgains Care Centre,82779,,Community Services,Equipment For Disabled People,41320,,,,Revenue
http://statistics.data.gov.uk/doc/local-authority/33,Norfolk County Council,05-Jan-11,2868093,656.66,,NPS Property Consultants Ltd,72669,,Corporate Resources,Other Miscellaneous Expenses,48080,,,,Revenue
http://statistics.data.gov.uk/doc/local-authority/33,Norfolk County Council,05-Jan-11,2868105,2930,,Discovery Research Ltd,245259,,Corporate Resources,Other Hired & Contracted Services,44810,,,,Revenue
http://statistics.data.gov.uk/doc/local-authority/33,Norfolk County Council,05-Jan-11,2868107,4287.5,,NPS South East Ltd,174955,,Children's Services,Architects Fees,C5120,,,,Capital
http://statistics.data.gov.uk/doc/local-authority/33,Norfolk County Council,05-Jan-11,2868122,500,,NPS South East Ltd,174955,,Children's Services,Architects Fees,C5120,,,,Capital
http://statistics.data.gov.uk/doc/local-authority/33,Norfolk County Council,05-Jan-11,2868128,4330,,NPS South East Ltd,174955,,Children's Services,Architects Fees,C5120,,,,Capital
http://statistics.data.gov.uk/doc/local-authority/33,Norfolk County Council,05-Jan-11,2868138,500,,NPS South East Ltd,174955,,Children's Services,Architects Fees,C5120,,,,Capital
http://statistics.data.gov.uk/doc/local-authority/33,Norfolk County Council,05-Jan-11,2868153,941.5,,Personal Strengths (UK) Ltd,198556,,Corporate Resources,Office Library Textbooks,40070,,,,Revenue
http://statistics.data.gov.uk/doc/local-authority/33,Norfolk County Council,05-Jan-11,2868263,515,,Mapus-Smith & Lemmon,71715,,Community Services,Other Miscellaneous Expenses,48080,,,,Revenue
http://statistics.data.gov.uk/doc/local-authority/33,Norfolk County Council,05-Jan-11,2868346,1152,,Redacted - Personal Data,Redacted,,Community Services,Personal Needs Of Client,41300,,,,Revenue
http://statistics.data.gov.uk/doc/local-authority/33,Norfolk County Council,05-Jan-11,2868352,874.42,,Sheppards,86674,,Community Services,Removal Of Office Furniture,25000,,,,Revenue
http://statistics.data.gov.uk/doc/local-authority/33,Norfolk County Council,05-Jan-11,2868369,594.6,,Redacted - Personal Data,Redacted,,Children's Services,Special Aptitudes,53750,,,,Revenue
http://statistics.data.gov.uk/doc/local-authority/33,Norfolk County Council,05-Jan-11,2868377,625.63,,Norfolk Primary Care Trust,126018,,Children's Services,Grants To Playgroups,49050,,,,Revenue
http://statistics.data.gov.uk/doc/local-authority/33,Norfolk County Council,05-Jan-11,2868378,1745,,Felgains Care Centre,82779,,Community Services,Equipment For Disabled People,41320,,,,Revenue
http://statistics.data.gov.uk/doc/local-authority/33,Norfolk County Council,05-Jan-11,2868391,12190.43,,NPS South East Ltd,174955,,Children's Services,Architects Fees,C5120,,,,Capital
http://statistics.data.gov.uk/doc/local-authority/33,Norfolk County Council,05-Jan-11,2868392,342.27,,Citygate Developments,140010,,Corporate Resources,Services Provided By Landlord,24600,,,,Revenue
http://statistics.data.gov.uk/doc/local-authority/33,Norfolk County Council,05-Jan-11,2868392,413.58,,Citygate Developments,140010,,Corporate Resources,Rents and Hire of Premises & Facilities,24500,,,,Revenue
http://statistics.data.gov.uk/doc/local-authority/33,Norfolk County Council,05-Jan-11,2868393,5534,,Citygate Developments,140010,,Corporate Resources,Rents and Hire of Premises & Facilities,24500,,,,Revenue
http://statistics.data.gov.uk/doc/local-authority/33,Norfolk County Council,05-Jan-11,2868393,7444.19,,Citygate Developments,140010,,Corporate Resources,Services Provided By Landlord,24600,,,,Revenue
http://statistics.data.gov.uk/doc/local-authority/33,Norfolk County Council,05-Jan-11,2868395,900,,Norfolk Community Health & Care,188303,,Children's Services,Purchase Of Furniture,C3000,,,,Capital
http://statistics.data.gov.uk/doc/local-authority/33,Norfolk County Council,05-Jan-11,2868398,609.24,,Anglia Freight Limited,66122,,Community Services,Delivery/Collection,32360,,,,Revenue
http://statistics.data.gov.uk/doc/local-authority/33,Norfolk County Council,05-Jan-11,2868400,621,,Saxon Packaging Limited,74437,,Community Services,Work Centre Materials,41630,,,,Revenue
http://statistics.data.gov.uk/doc/local-authority/33,Norfolk County Council,05-Jan-11,2868401,1369.54,,Saxon Packaging Limited,74437,,Community Services,Work Centre Materials,41630,,,,Revenue
http://statistics.data.gov.uk/doc/local-authority/33,Norfolk County Council,05-Jan-11,2868403,5805,,NW Textiles Ltd,154448,,Community Services,Work Centre Materials,41630,,,,Revenue
http://statistics.data.gov.uk/doc/local-authority/33,Norfolk County Council,05-Jan-11,2868404,8675.02,,NW Textiles Ltd,154448,,Community Services,Work Centre Materials,41630,,,,Revenue
http://statistics.data.gov.uk/doc/local-authority/33,Norfolk County Council,05-Jan-11,2868511,1086.95,,Southern Electric,74726,,Community Services,Electricity,24340,,,,Revenue
http://statistics.data.gov.uk/doc/local-authority/33,Norfolk County Council,05-Jan-11,2868514,695,,Bibby Factors Ltd,75747,,Environment Transport & Development,Road Maintenance Contractor Payments,45070,,,,Revenue
http://statistics.data.gov.uk/doc/local-authority/33,Norfolk County Council,05-Jan-11,2868522,887.58,,May Gurney Limited,71794,,Environment Transport & Development,Highway Patching to Carriageway,57000,,,,Revenue
http://statistics.data.gov.uk/doc/local-authority/33,Norfolk County Council,05-Jan-11,2868522,2735.65,,May Gurney Limited,71794,,Environment Transport & Development,Highway Patching to Footway,57050,,,,Revenue
http://statistics.data.gov.uk/doc/local-authority/33,Norfolk County Council,05-Jan-11,2868523,10801.46,,May Gurney Limited,71794,,Environment Transport & Development,Highway Patching to Footway,57050,,,,Revenue
http://statistics.data.gov.uk/doc/local-authority/33,Norfolk County Council,05-Jan-11,2868523,17223.7,,May Gurney Limited,71794,,Environment Transport & Development,Highway Patching to Carriageway,57000,,,,Revenue
http://statistics.data.gov.uk/doc/local-authority/33,Norfolk County Council,05-Jan-11,2868524,560.88,,May Gurney Limited,71794,,Environment Transport & Development,Highway Patching to Footway,57050,,,,Revenue
http://statistics.data.gov.uk/doc/local-authority/33,Norfolk County Council,05-Jan-11,2868524,7313.81,,May Gurney Limited,71794,,Environment Transport & Development,Highway Patching to Carriageway,57000,,,,Revenue
http://statistics.data.gov.uk/doc/local-authority/33,Norfolk County Council,05-Jan-11,2868525,2681.57,,May Gurney Limited,71794,,Environment Transport & Development,Highway Patching to Carriageway,57000,,,,Revenue
http://statistics.data.gov.uk/doc/local-authority/33,Norfolk County Council,05-Jan-11,2868526,73.24,,May Gurney Limited,71794,,Environment Transport & Development,Highway Patching to Footway,57050,,,,Revenue
http://statistics.data.gov.uk/doc/local-authority/33,Norfolk County Council,05-Jan-11,2868526,6069.61,,May Gurney Limited,71794,,Environment Transport & Development,Highway Patching to Carriageway,57000,,,,Revenue
http://statistics.data.gov.uk/doc/local-authority/33,Norfolk County Council,05-Jan-11,2868528,10077.61,,May Gurney Limited,71794,,Environment Transport & Development,Highway Road Markings,59340,,,,Revenue
http://statistics.data.gov.uk/doc/local-authority/33,Norfolk County Council,05-Jan-11,2868531,245,,May Gurney Limited,71794,,Environment Transport & Development,Highway Rechargeable Works Payments,54700,,,,Revenue
http://statistics.data.gov.uk/doc/local-authority/33,Norfolk County Council,05-Jan-11,2868531,33882.08,,May Gurney Limited,71794,,Environment Transport & Development,Construction Costs - Roads - Management,C2500,,,,Capital
http://statistics.data.gov.uk/doc/local-authority/33,Norfolk County Council,05-Jan-11,2868532,2039.51,,May Gurney Limited,71794,,Environment Transport & Development,Highway Rechargeable Works Payments,54700,,,,Revenue
http://statistics.data.gov.uk/doc/local-authority/33,Norfolk County Council,05-Jan-11,2868532,511532.92,,May Gurney Limited,71794,,Environment Transport & Development,Construction Costs - Roads - Management,C2500,,,,Capital
http://statistics.data.gov.uk/doc/local-authority/33,Norfolk County Council,05-Jan-11,2868533,155188.72,,May Gurney Limited,71794,,Environment Transport & Development,Construction Costs - Roads - Management,C2500,,,,Capital
http://statistics.data.gov.uk/doc/local-authority/33,Norfolk County Council,05-Jan-11,2868534,3344.54,,May Gurney Limited,71794,,Environment Transport & Development,Highway Drainage Repairs,58310,,,,Revenue
http://statistics.data.gov.uk/doc/local-authority/33,Norfolk County Council,05-Jan-11,2868535,3529.42,,May Gurney Limited,71794,,Environment Transport & Development,Highway Patching to Carriageway,57000,,,,Revenue
http://statistics.data.gov.uk/doc/local-authority/33,Norfolk County Council,05-Jan-11,2868538,4781.3,,May Gurney Limited,71794,,Environment Transport & Development,Construction Costs - Roads - Management,C2500,,,,Capital
http://statistics.data.gov.uk/doc/local-authority/33,Norfolk County Council,05-Jan-11,2868540,213.96,,May Gurney Limited,71794,,Environment Transport & Development,Highway Drainage Rodding and Jetting,58400,,,,Revenue
http://statistics.data.gov.uk/doc/local-authority/33,Norfolk County Council,05-Jan-11,2868540,856.44,,May Gurney Limited,71794,,Environment Transport & Development,Highway Road Markings,59340,,,,Revenue
http://statistics.data.gov.uk/doc/local-authority/33,Norfolk County Council,05-Jan-11,2868542,1045.38,,May Gurney Limited,71794,,Environment Transport & Development,Highway Road Markings,59340,,,,Revenue
http://statistics.data.gov.uk/doc/local-authority/33,Norfolk County Council,05-Jan-11,2868550,254480.97,,May Gurney Ltd,71794,,Environment Transport & Development,Construction Costs - Roads - Management,C2500,,,,Capital
http://statistics.data.gov.uk/doc/local-authority/33,Norfolk County Council,05-Jan-11,2868584,912.18,,Euro RSG Riley Ltd,82665,,Environment Transport & Development,Non Staff Advertising - Discretionary,47100,,,,Revenue
http://statistics.data.gov.uk/doc/local-authority/33,Norfolk County Council,05-Jan-11,2868585,996,,Affinity Trust,185008,,Community Services,Supported Living,52140,,,,Revenue
http://statistics.data.gov.uk/doc/local-authority/33,Norfolk County Council,05-Jan-11,2868590,653.73,,Prospects for People With Learning Disabilities,73427,,Community Services,Day Care / Supported Activities,52160,,,,Revenue
http://statistics.data.gov.uk/doc/local-authority/33,Norfolk County Council,05-Jan-11,2868594,28950,,All Trades Training Ltd,148475,,Environment Transport & Development,Grant Payments,49090,,,,Revenue
http://statistics.data.gov.uk/doc/local-authority/33,Norfolk County Council,05-Jan-11,2868688,896.7,,Southern Electric,74726,,Environment Transport & Development,Electricity,24340,,,,Revenue
http://statistics.data.gov.uk/doc/local-authority/33,Norfolk County Council,05-Jan-11,2868689,6750,,Broadland District Council,81165,,Environment Transport & Development,Grant Payments,49090,,,,Revenue
http://statistics.data.gov.uk/doc/local-authority/33,Norfolk County Council,05-Jan-11,2868691,3055.5,,Eyre (Electrical) Limited,68818,,Fire & Rescue,Boiler Servicing,A1660,,,,Revenue
http://statistics.data.gov.uk/doc/local-authority/33,Norfolk County Council,05-Jan-11,2868692,1050,,Construction Training Specialists Ltd,94559,,Environment Transport & Development,Grant Payments,49090,,,,Revenue
http://statistics.data.gov.uk/doc/local-authority/33,Norfolk County Council,05-Jan-11,2868695,1335.03,,Southern Electric,74726,,Environment Transport & Development,Electricity,24340,,,,Revenue
http://statistics.data.gov.uk/doc/local-authority/33,Norfolk County Council,05-Jan-11,2869013,10,,Co-Op Bank Financial Director Charges,81730,,Community Services,Bank Charges,72550,,,,Revenue
http://statistics.data.gov.uk/doc/local-authority/33,Norfolk County Council,05-Jan-11,2869013,668,,Co-Op Bank Financial Director Charges,81730,,Corporate Resources,On-Line Bank Charges,72560,,,,Revenue
http://statistics.data.gov.uk/doc/local-authority/33,Norfolk County Council,05-Jan-11,2869019,453.52,,Arval UK Ltd,80697,,Environment Transport & Development,Vehicle Fuel,33420,,,,Revenue
http://statistics.data.gov.uk/doc/local-authority/33,Norfolk County Council,05-Jan-11,2875732,1091.89,,Co-Op Bank Financial Director Charges,81730,,Resources,Bank Charges,A8800,,,,Revenue
http://statistics.data.gov.uk/doc/local-authority/33,Norfolk County Council,06-Jan-11,2762296,624.45,,Findel Education Ltd,74941,,Children's Services,Equipment Purchases,40850,,,,Revenue
http://statistics.data.gov.uk/doc/local-authority/33,Norfolk County Council,06-Jan-11,2777541,1875,,Redacted - Personal Data,Redacted,,Children's Services,Higher Education Places Payments,54160,,,,Revenue
http://statistics.data.gov.uk/doc/local-authority/33,Norfolk County Council,06-Jan-11,2821760,946,,Redacted - Personal Data,Redacted,,Children's Services,Allowance For Special Purposes,53910,,,,Revenue
http://statistics.data.gov.uk/doc/local-authority/33,Norfolk County Council,06-Jan-11,2834546,561.4,,Anglia Air Conditioning Ltd,80619,,Community Services,Purchase Of Fixtures & Fittings,24980,,,,Revenue
http://statistics.data.gov.uk/doc/local-authority/33,Norfolk County Council,06-Jan-11,2838653,314.3,,Staff Call Recruitment Specialists Ltd,74897,,Environment Transport & Development,Drivers,13050,,,,Revenue
http://statistics.data.gov.uk/doc/local-authority/33,Norfolk County Council,06-Jan-11,2838653,510.6,,Staff Call Recruitment Specialists Ltd,74897,,Environment Transport & Development,Admin & Clerical - Scale A to J,13600,,,,Revenue
http://statistics.data.gov.uk/doc/local-authority/33,Norfolk County Council,06-Jan-11,2838653,603.31,,Staff Call Recruitment Specialists Ltd,74897,,Environment Transport & Development,Agency Staff,13800,,,,Revenue
http://statistics.data.gov.uk/doc/local-authority/33,Norfolk County Council,06-Jan-11,2838653,632.33,,Staff Call Recruitment Specialists Ltd,74897,,Environment Transport & Development,Casual Labour,2100,,,,Revenue
http://statistics.data.gov.uk/doc/local-authority/33,Norfolk County Council,06-Jan-11,2838653,2968.83,,Staff Call Recruitment Specialists Ltd,74897,,Environment Transport & Development,Agency Staff,13800,,,,Revenue
http://statistics.data.gov.uk/doc/local-authority/33,Norfolk County Council,06-Jan-11,2839568,788.42,,NETwork Interventions,277224,,Children's Services,Other Hired & Contracted Services,44810,,,,Revenue
http://statistics.data.gov.uk/doc/local-authority/33,Norfolk County Council,06-Jan-11,2840771,480,,Norfolk Straw Products Ltd,138028,,Community Services,Livestock,46030,,,,Revenue
http://statistics.data.gov.uk/doc/local-authority/33,Norfolk County Council,06-Jan-11,2840787,2464,,Norfolk Straw Products Ltd,138028,,Community Services,Animal Feeding Stuffs,46100,,,,Revenue
http://statistics.data.gov.uk/doc/local-authority/33,Norfolk County Council,06-Jan-11,2843160,1653.41,,Stannah Lift Services Ltd,74920,,Corporate Resources,Lifts Maintenance & Repairs,A1680,,,,Revenue
http://statistics.data.gov.uk/doc/local-authority/33,Norfolk County Council,06-Jan-11,2844476,7512.51,,Aylsham Plant Hire Limited,66362,,Environment Transport & Development,Materials Purchases,42160,,,,Revenue
http://statistics.data.gov.uk/doc/local-authority/33,Norfolk County Council,06-Jan-11,2844487,1070.14,,Middleton Aggregates Limited,71882,,Environment Transport & Development,Materials Purchases,42160,,,,Revenue
http://statistics.data.gov.uk/doc/local-authority/33,Norfolk County Council,06-Jan-11,2844511,809.25,,Bure Valley Plant Hire Limited,66943,,Environment Transport & Development,Contract Plant & Machinery Hire,34930,,,,Revenue
http://statistics.data.gov.uk/doc/local-authority/33,Norfolk County Council,06-Jan-11,2844512,1146.65,,Middleton Aggregates Limited,71882,,Environment Transport & Development,Direct Materials,42150,,,,Revenue
http://statistics.data.gov.uk/doc/local-authority/33,Norfolk County Council,06-Jan-11,2844521,1560.3,,K Plant Ltd,70746,,Environment Transport & Development,Contract Plant & Machinery Hire,34930,,,,Revenue
http://statistics.data.gov.uk/doc/local-authority/33,Norfolk County Council,06-Jan-11,2844522,1274,,K Plant Ltd,70746,,Environment Transport & Development,Contract Plant & Machinery Hire,34930,,,,Revenue
http://statistics.data.gov.uk/doc/local-authority/33,Norfolk County Council,06-Jan-11,2844523,1274,,K Plant Ltd,70746,,Environment Transport & Development,Contract Plant & Machinery Hire,34930,,,,Revenue
http://statistics.data.gov.uk/doc/local-authority/33,Norfolk County Council,06-Jan-11,2844525,1513.4,,K Plant Ltd,70746,,Environment Transport & Development,Contract Plant & Machinery Hire,34930,,,,Revenue
http://statistics.data.gov.uk/doc/local-authority/33,Norfolk County Council,06-Jan-11,2844526,1316,,K Plant Ltd,70746,,Environment Transport & Development,Contract Plant & Machinery Hire,34930,,,,Revenue
http://statistics.data.gov.uk/doc/local-authority/33,Norfolk County Council,06-Jan-11,2844527,880,,Glen Bishop Builders Ltd,69355,,Environment Transport & Development,Contract Plant & Machinery Hire,34930,,,,Revenue
http://statistics.data.gov.uk/doc/local-authority/33,Norfolk County Council,06-Jan-11,2844529,855.4,,K Plant Ltd,70746,,Environment Transport & Development,Contract Plant & Machinery Hire,34930,,,,Revenue
http://statistics.data.gov.uk/doc/local-authority/33,Norfolk County Council,06-Jan-11,2847425,509.15,,Staff Call Recruitment Specialists Ltd,74897,,Environment Transport & Development,Materials Purchases,42160,,,,Revenue
http://statistics.data.gov.uk/doc/local-authority/33,Norfolk County Council,06-Jan-11,2847650,570.11,,Eyre (Electrical) Limited,68818,,Corporate Resources,Boiler Servicing,A1660,,,,Revenue
http://statistics.data.gov.uk/doc/local-authority/33,Norfolk County Council,06-Jan-11,2847825,1980,,Eyre (Electrical) Limited,68818,,Environment Transport & Development,Building Alterations & Improvements,23610,,,,Revenue
http://statistics.data.gov.uk/doc/local-authority/33,Norfolk County Council,06-Jan-11,2847831,1740,,Eyre (Electrical) Limited,68818,,Environment Transport & Development,Building Alterations & Improvements,23610,,,,Revenue
http://statistics.data.gov.uk/doc/local-authority/33,Norfolk County Council,06-Jan-11,2847835,2401.8,,Eyre (Electrical) Limited,68818,,Environment Transport & Development,Building Alterations & Improvements,23610,,,,Revenue
http://statistics.data.gov.uk/doc/local-authority/33,Norfolk County Council,06-Jan-11,2847839,925,,Eyre (Electrical) Limited,68818,,Corporate Resources,Building Alterations & Improvements,23610,,,,Revenue
http://statistics.data.gov.uk/doc/local-authority/33,Norfolk County Council,06-Jan-11,2847844,1532.95,,Eyre (Electrical) Limited,68818,,Corporate Resources,Building Alterations & Improvements,23610,,,,Revenue
http://statistics.data.gov.uk/doc/local-authority/33,Norfolk County Council,06-Jan-11,2847848,792,,Eyre (Electrical) Limited,68818,,Corporate Resources,Repairs Of Fixtures & Fittings,24990,,,,Revenue
http://statistics.data.gov.uk/doc/local-authority/33,Norfolk County Council,06-Jan-11,2849332,1329.78,,Phoenix Software Limited,73240,,Fire & Rescue,ICT Other Running Costs,43980,,,,Revenue
http://statistics.data.gov.uk/doc/local-authority/33,Norfolk County Council,06-Jan-11,2849468,6750,,Aspict Solutions Ltd,66273,,Children's Services,ICT System Improvements,44000,,,,Revenue
http://statistics.data.gov.uk/doc/local-authority/33,Norfolk County Council,06-Jan-11,2849573,1900,,Comm Tech Martham Limited,67613,,Fire & Rescue,Phone - Calls,43220,,,,Revenue
http://statistics.data.gov.uk/doc/local-authority/33,Norfolk County Council,06-Jan-11,2849607,3328.38,,NORSE Commercial Services,179148,,Children's Services,"Non Staff Course, Conference & Subsistence Expenses",46730,,,,Revenue
http://statistics.data.gov.uk/doc/local-authority/33,Norfolk County Council,06-Jan-11,2850729,1294.27,,Konica Minolta Business Solutions East Ltd,70912,,Children's Services,Printing,46510,,,,Revenue
http://statistics.data.gov.uk/doc/local-authority/33,Norfolk County Council,06-Jan-11,2850730,1247.7,,Konica Minolta Business Solutions East Ltd,70912,,Children's Services,Printing,46510,,,,Revenue
http://statistics.data.gov.uk/doc/local-authority/33,Norfolk County Council,06-Jan-11,2851000,1128.23,,Eyre (Electrical) Limited,68818,,Children's Services,Boiler Servicing,A3660,,,,Revenue
http://statistics.data.gov.uk/doc/local-authority/33,Norfolk County Council,06-Jan-11,2851300,1797.4,,F W Frost (Engineers) Ltd,106370,,Environment Transport & Development,Operational Equipment - Purchase,40300,,,,Revenue
http://statistics.data.gov.uk/doc/local-authority/33,Norfolk County Council,06-Jan-11,2851301,585,,NORSE Commercial Services,179148,,Community Services,Printing,46510,,,,Revenue
http://statistics.data.gov.uk/doc/local-authority/33,Norfolk County Council,06-Jan-11,2852118,1365,,Asbestrip Ltd,80701,,Children's Services,Office Equipment & Supplies,40000,,,,Revenue
http://statistics.data.gov.uk/doc/local-authority/33,Norfolk County Council,06-Jan-11,2852333,2288.37,,Gm-C Vehicle Communications Ltd,69364,,Fire & Rescue,Wireless - Maintenance,43660,,,,Revenue
http://statistics.data.gov.uk/doc/local-authority/33,Norfolk County Council,06-Jan-11,2852508,1279,,Ett Marcoms,68775,,Environment Transport & Development,ICT Other Running Costs,43980,,,,Revenue
http://statistics.data.gov.uk/doc/local-authority/33,Norfolk County Council,06-Jan-11,2852628,726,,NORSE Commercial Services,179148,,Community Services,Contract Cleaning & Other Cleaning Services,25300,,,,Revenue
http://statistics.data.gov.uk/doc/local-authority/33,Norfolk County Council,06-Jan-11,2852663,835.11,,DX Network Services Ltd,69689,,Community Services,Subscriptions To Other Libraries,42700,,,,Revenue
http://statistics.data.gov.uk/doc/local-authority/33,Norfolk County Council,06-Jan-11,2854542,14.4,,Redacted - Personal Data,Redacted,,Children's Services,Voluntary Driver Payments,35700,,,,Revenue
http://statistics.data.gov.uk/doc/local-authority/33,Norfolk County Council,06-Jan-11,2854542,514.75,,Lloyds TSB Commercial Finance Ltd,292400,,Children's Services,Agency Staff,13800,,,,Revenue
http://statistics.data.gov.uk/doc/local-authority/33,Norfolk County Council,06-Jan-11,2855300,1607.32,,Randstad 1 Ltd,171892,,Community Services,Panel Funded Staff,8100,,,,Revenue
http://statistics.data.gov.uk/doc/local-authority/33,Norfolk County Council,06-Jan-11,2856745,1236.39,,Arkle Finance,192856,,Community Services,Workshop Equipment,41740,,,,Revenue
http://statistics.data.gov.uk/doc/local-authority/33,Norfolk County Council,06-Jan-11,2856953,4036.5,,Wordingham Plant Hire Ltd,134000,,Environment Transport & Development,Road Maintenance Contractor Payments,45070,,,,Revenue
http://statistics.data.gov.uk/doc/local-authority/33,Norfolk County Council,06-Jan-11,2856959,3438.5,,Wordingham Plant Hire Ltd,134000,,Environment Transport & Development,Road Maintenance Contractor Payments,45070,,,,Revenue
http://statistics.data.gov.uk/doc/local-authority/33,Norfolk County Council,06-Jan-11,2856962,3059,,Wordingham Plant Hire Ltd,134000,,Environment Transport & Development,Road Maintenance Contractor Payments,45070,,,,Revenue
http://statistics.data.gov.uk/doc/local-authority/33,Norfolk County Council,06-Jan-11,2856971,2645,,Wordingham Plant Hire Ltd,134000,,Environment Transport & Development,Road Maintenance Contractor Payments,45070,,,,Revenue
http://statistics.data.gov.uk/doc/local-authority/33,Norfolk County Council,06-Jan-11,2857006,960,,Redacted - Personal Data,Redacted,,Environment Transport & Development,Road Maintenance Contractor Payments,45070,,,,Revenue
http://statistics.data.gov.uk/doc/local-authority/33,Norfolk County Council,06-Jan-11,2859549,2384.57,,Abacus Care (Norfolk & Suffolk) Ltd,65849,,Community Services,Operational Staff - Scale A to J,8600,,,,Revenue
http://statistics.data.gov.uk/doc/local-authority/33,Norfolk County Council,06-Jan-11,2866300,6737.5,,Crown Estate Re King Sturge Rental AC,192585,,Community Services,Rents and Hire of Premises & Facilities,24500,,,,Revenue
http://statistics.data.gov.uk/doc/local-authority/33,Norfolk County Council,06-Jan-11,2866336,904.9,,G4S Cash Solutions (UK) Ltd,379036,,Corporate Resources,Securicor Cash Collection,44870,,,,Revenue
http://statistics.data.gov.uk/doc/local-authority/33,Norfolk County Council,06-Jan-11,2866840,621.08,,Askews Library Services Ltd,91922,,Community Services,Library Books - Adult Fiction,42610,,,,Revenue
http://statistics.data.gov.uk/doc/local-authority/33,Norfolk County Council,06-Jan-11,2866842,588,,Askews Library Services Ltd,91922,,Community Services,Library Books - Adult Fiction,42610,,,,Revenue
http://statistics.data.gov.uk/doc/local-authority/33,Norfolk County Council,06-Jan-11,2866844,729.82,,Askews Library Services Ltd,91922,,Community Services,Library Books - Adult Fiction,42610,,,,Revenue
http://statistics.data.gov.uk/doc/local-authority/33,Norfolk County Council,06-Jan-11,2867263,811.83,,BERTRAMS,66641,,Community Services,Library Books-Adult Non Fiction,42620,,,,Revenue
http://statistics.data.gov.uk/doc/local-authority/33,Norfolk County Council,06-Jan-11,2867281,489.15,,BERTRAMS,66641,,Community Services,Library Books-Adult Non Fiction,42620,,,,Revenue
http://statistics.data.gov.uk/doc/local-authority/33,Norfolk County Council,06-Jan-11,2867884,1730.68,,Smitcare Ltd,74641,,Community Services,Equipment For Disabled People,41320,,,,Revenue
http://statistics.data.gov.uk/doc/local-authority/33,Norfolk County Council,06-Jan-11,2867894,1475,,Smitcare Ltd,74641,,Community Services,Equipment For Disabled People,41320,,,,Revenue
http://statistics.data.gov.uk/doc/local-authority/33,Norfolk County Council,06-Jan-11,2868031,1979.14,,NPS Property Consultants Ltd,72669,,Community Services,Other Miscellaneous Expenses,48080,,,,Revenue
http://statistics.data.gov.uk/doc/local-authority/33,Norfolk County Council,06-Jan-11,2868031,3547.46,,NPS Property Consultants Ltd,72669,,Community Services,Printing,46510,,,,Revenue
http://statistics.data.gov.uk/doc/local-authority/33,Norfolk County Council,06-Jan-11,2868219,4178.8,,NORSE Commercial Services,179148,,Children's Services,"Non Staff Course, Conference & Subsistence Expenses",46730,,,,Revenue
http://statistics.data.gov.uk/doc/local-authority/33,Norfolk County Council,06-Jan-11,2868696,473.96,,NORSE Commercial Services,179148,,Children's Services,Cleaning Materials Purchases,25100,,,,Revenue
http://statistics.data.gov.uk/doc/local-authority/33,Norfolk County Council,06-Jan-11,2868698,41.85,,Eyre (Electrical) Limited,68818,,Fire & Rescue,Gas Pressure Testing,A1640,,,,Revenue
http://statistics.data.gov.uk/doc/local-authority/33,Norfolk County Council,06-Jan-11,2868698,362.57,,Eyre (Electrical) Limited,68818,,Children's Services,Gas Pressure Testing,A3640,,,,Revenue
http://statistics.data.gov.uk/doc/local-authority/33,Norfolk County Council,06-Jan-11,2868698,403.65,,Eyre (Electrical) Limited,68818,,Community Services,Gas Pressure Testing,A1640,,,,Revenue
http://statistics.data.gov.uk/doc/local-authority/33,Norfolk County Council,06-Jan-11,2868705,1645,,DB Services (SEN) Ltd,152022,,Children's Services,Other Hired & Contracted Services,44810,,,,Revenue
http://statistics.data.gov.uk/doc/local-authority/33,Norfolk County Council,06-Jan-11,2868706,3173.14,,Eyre (Electrical) Limited,68818,,Children's Services,Electrical Installation Testing,A3700,,,,Revenue
http://statistics.data.gov.uk/doc/local-authority/33,Norfolk County Council,06-Jan-11,2868706,8551.21,,Eyre (Electrical) Limited,68818,,Community Services,Electrical Installation Testing,A1700,,,,Revenue
http://statistics.data.gov.uk/doc/local-authority/33,Norfolk County Council,06-Jan-11,2868707,1678.77,,VisitNorwich Limited,100874,,Other inc Agency,Fees/Expenses - Other Consultants,44530,,,,Revenue
http://statistics.data.gov.uk/doc/local-authority/33,Norfolk County Council,06-Jan-11,2868710,500.5,,Guideline Career Services Ltd,449303,,Children's Services,Room Hire,17600,,,,Revenue
http://statistics.data.gov.uk/doc/local-authority/33,Norfolk County Council,06-Jan-11,2868711,3503.58,,Eyre (Electrical) Limited,68818,,Children's Services,Electrical Installation Testing,A3700,,,,Revenue
http://statistics.data.gov.uk/doc/local-authority/33,Norfolk County Council,06-Jan-11,2868711,3818.36,,Eyre (Electrical) Limited,68818,,Community Services,Electrical Installation Testing,A1700,,,,Revenue
http://statistics.data.gov.uk/doc/local-authority/33,Norfolk County Council,06-Jan-11,2868716,1891.28,,Manor Court Care (Norfolk) Ltd,84819,,Community Services,Domiciliary Care,51610,,,,Revenue
http://statistics.data.gov.uk/doc/local-authority/33,Norfolk County Council,06-Jan-11,2868718,2054.31,,Eyre (Electrical) Limited,68818,,Children's Services,Plant Replacements,A3720,,,,Revenue
http://statistics.data.gov.uk/doc/local-authority/33,Norfolk County Council,06-Jan-11,2868719,1553.75,,Eyre (Electrical) Limited,68818,,Children's Services,Plant Replacements,A3720,,,,Revenue
http://statistics.data.gov.uk/doc/local-authority/33,Norfolk County Council,06-Jan-11,2868723,15895.87,,Resource Partners,76245,,Children's Services,Payments to Organisations Providing Services To NCC,52000,,,,Revenue
http://statistics.data.gov.uk/doc/local-authority/33,Norfolk County Council,06-Jan-11,2868724,4840.02,,Knights Warner (Kings Lynn) Ltd,84272,,Children's Services,Plant Replacements,A1720,,,,Revenue
http://statistics.data.gov.uk/doc/local-authority/33,Norfolk County Council,06-Jan-11,2868833,19919.36,,Resource Partners,76245,,Children's Services,Payments to Organisations Providing Services To NCC,52000,,,,Revenue
http://statistics.data.gov.uk/doc/local-authority/33,Norfolk County Council,06-Jan-11,2868844,15256.65,,Saccs Care Ltd,74380,,Children's Services,Payments to Organisations Providing Services To NCC,52000,,,,Revenue
http://statistics.data.gov.uk/doc/local-authority/33,Norfolk County Council,06-Jan-11,2868847,13361.62,,Resource Partners,76245,,Children's Services,Payments to Organisations Providing Services To NCC,52000,,,,Revenue
http://statistics.data.gov.uk/doc/local-authority/33,Norfolk County Council,06-Jan-11,2868849,1388.71,,F W Hendry (Kings Lynn) Limited,68852,,Children's Services,Electrical & Mechanical Maintenance.,A3790,,,,Revenue
http://statistics.data.gov.uk/doc/local-authority/33,Norfolk County Council,06-Jan-11,2868851,930,,Redacted - Personal Data,Redacted,,Community Services,Other Miscellaneous Expenses,48080,,,,Revenue
http://statistics.data.gov.uk/doc/local-authority/33,Norfolk County Council,06-Jan-11,2868852,13361.93,,Resource Partners,76245,,Children's Services,Payments to Organisations Providing Services To NCC,52000,,,,Revenue
http://statistics.data.gov.uk/doc/local-authority/33,Norfolk County Council,06-Jan-11,2868856,14744.22,,Resource Partners,76245,,Children's Services,Payments to Organisations Providing Services To NCC,52000,,,,Revenue
http://statistics.data.gov.uk/doc/local-authority/33,Norfolk County Council,06-Jan-11,2868859,14743.91,,Resource Partners,76245,,Children's Services,Payments to Organisations Providing Services To NCC,52000,,,,Revenue
http://statistics.data.gov.uk/doc/local-authority/33,Norfolk County Council,06-Jan-11,2868862,2077.52,,The Care Company UK Ltd,197447,,Community Services,Domiciliary Care,51610,,,,Revenue
http://statistics.data.gov.uk/doc/local-authority/33,Norfolk County Council,06-Jan-11,2868866,651,,The Care Company UK Ltd,197447,,Community Services,Domiciliary Care,51610,,,,Revenue
http://statistics.data.gov.uk/doc/local-authority/33,Norfolk County Council,06-Jan-11,2868872,13361.62,,Resource Partners,76245,,Children's Services,Payments to Organisations Providing Services To NCC,52000,,,,Revenue
http://statistics.data.gov.uk/doc/local-authority/33,Norfolk County Council,06-Jan-11,2868875,868,,The Care Company UK Ltd,197447,,Community Services,Domiciliary Care,51610,,,,Revenue
http://statistics.data.gov.uk/doc/local-authority/33,Norfolk County Council,06-Jan-11,2868878,13361.62,,Resource Partners,76245,,Children's Services,Payments to Organisations Providing Services To NCC,52000,,,,Revenue
http://statistics.data.gov.uk/doc/local-authority/33,Norfolk County Council,06-Jan-11,2868884,14743.91,,Resource Partners,76245,,Children's Services,Payments to Organisations Providing Services To NCC,52000,,,,Revenue
http://statistics.data.gov.uk/doc/local-authority/33,Norfolk County Council,06-Jan-11,2868887,542.64,,The Care Company UK Ltd,197447,,Community Services,Domiciliary Care,51610,,,,Revenue
http://statistics.data.gov.uk/doc/local-authority/33,Norfolk County Council,06-Jan-11,2868890,7471.14,,Mannpower Electrical Services Limited,71699,,Children's Services,"Certificate - Electricity, Power & Light",C2780,,,,Capital
http://statistics.data.gov.uk/doc/local-authority/33,Norfolk County Council,06-Jan-11,2868891,868,,The Care Company UK Ltd,197447,,Community Services,Domiciliary Care,51610,,,,Revenue
http://statistics.data.gov.uk/doc/local-authority/33,Norfolk County Council,06-Jan-11,2868892,503,,Southern Electric,74726,,Community Services,Electricity,24340,,,,Revenue
http://statistics.data.gov.uk/doc/local-authority/33,Norfolk County Council,06-Jan-11,2868893,6135.92,,Resource Partners SPV Ltd,189011,,Children's Services,Payments to Organisations Providing Services To NCC,52000,,,,Revenue
http://statistics.data.gov.uk/doc/local-authority/33,Norfolk County Council,06-Jan-11,2868895,980.52,,The Care Company UK Ltd,197447,,Community Services,Domiciliary Care,51610,,,,Revenue
http://statistics.data.gov.uk/doc/local-authority/33,Norfolk County Council,06-Jan-11,2868896,14150.47,,Mannpower Electrical Services Limited,71699,,Children's Services,"Certificate - Electricity, Power & Light",C2780,,,,Capital
http://statistics.data.gov.uk/doc/local-authority/33,Norfolk County Council,06-Jan-11,2868898,1178.52,,Redacted - Personal Data,Redacted,,Children's Services,Payments to Organisations Providing Services To NCC,52000,,,,Revenue
http://statistics.data.gov.uk/doc/local-authority/33,Norfolk County Council,06-Jan-11,2868900,5700,,Draper & Nichols Limited,68368,,Children's Services,Construction Cost-Adoption/Improvement Building,C2450,,,,Capital
http://statistics.data.gov.uk/doc/local-authority/33,Norfolk County Council,06-Jan-11,2868902,999.85,,The Care Company UK Ltd,197447,,Community Services,Domiciliary Care,51610,,,,Revenue
http://statistics.data.gov.uk/doc/local-authority/33,Norfolk County Council,06-Jan-11,2868906,1302,,The Care Company UK Ltd,197447,,Community Services,Domiciliary Care,51610,,,,Revenue
http://statistics.data.gov.uk/doc/local-authority/33,Norfolk County Council,06-Jan-11,2868907,16662,,Mannpower Electrical Services Limited,71699,,Children's Services,"Certificate - Electricity, Power & Light",C2780,,,,Capital
http://statistics.data.gov.uk/doc/local-authority/33,Norfolk County Council,06-Jan-11,2868909,1408.16,,The Care Company UK Ltd,197447,,Community Services,Domiciliary Care,51610,,,,Revenue
http://statistics.data.gov.uk/doc/local-authority/33,Norfolk County Council,06-Jan-11,2868912,94190.35,,Mansell Construction Services Limited,71704,,Children's Services,Construction Cost-Adoption/Improvement Building,C2450,,,,Capital
http://statistics.data.gov.uk/doc/local-authority/33,Norfolk County Council,06-Jan-11,2868915,24250,,Mansell Construction Services Limited,71704,,Children's Services,Construction Cost-Adoption/Improvement Building,C2450,,,,Capital
http://statistics.data.gov.uk/doc/local-authority/33,Norfolk County Council,06-Jan-11,2868920,16541.2,,M S Oakes Limited,71594,,Children's Services,Equipment Purchases,40850,,,,Revenue
http://statistics.data.gov.uk/doc/local-authority/33,Norfolk County Council,06-Jan-11,2868920,29598.83,,M S Oakes Limited,71594,,Children's Services,Construction Cost-Adoption/Improvement Building,C2450,,,,Capital
http://statistics.data.gov.uk/doc/local-authority/33,Norfolk County Council,06-Jan-11,2868923,1050,,Graphic Design & Print CIC,142659,,Environment Transport & Development,Grant Payments,49090,,,,Revenue
http://statistics.data.gov.uk/doc/local-authority/33,Norfolk County Council,06-Jan-11,2868924,1968.76,,The Care Company UK Ltd,197447,,Community Services,Domiciliary Care,51610,,,,Revenue
http://statistics.data.gov.uk/doc/local-authority/33,Norfolk County Council,06-Jan-11,2868931,64800,,KIER EASTERN,70845,,Children's Services,Construction Cost-Adoption/Improvement Building,C2450,,,,Capital
http://statistics.data.gov.uk/doc/local-authority/33,Norfolk County Council,06-Jan-11,2868933,8856.12,,The Care Company UK Ltd,197447,,Community Services,Domiciliary Care,51610,,,,Revenue
http://statistics.data.gov.uk/doc/local-authority/33,Norfolk County Council,06-Jan-11,2868936,221989.79,,KIER EASTERN,70845,,Children's Services,Construction Cost-Adoption/Improvement Building,C2450,,,,Capital
http://statistics.data.gov.uk/doc/local-authority/33,Norfolk County Council,06-Jan-11,2868943,12150,,North Lynn Discovery Limited,72554,,Environment Transport & Development,Grant Payments,49090,,,,Revenue
http://statistics.data.gov.uk/doc/local-authority/33,Norfolk County Council,06-Jan-11,2868945,1178.52,,Redacted - Personal Data,Redacted,,Children's Services,Payments to Organisations Providing Services To NCC,52000,,,,Revenue
http://statistics.data.gov.uk/doc/local-authority/33,Norfolk County Council,06-Jan-11,2868949,3067.99,,Province Building Services Ltd,171598,,Children's Services,External Redecoration,A3020,,,,Revenue
http://statistics.data.gov.uk/doc/local-authority/33,Norfolk County Council,06-Jan-11,2868954,13757,,Reeve Property Restoration Limited,73858,,Children's Services,Construction Cost-Adoption/Improvement Building,C2450,,,,Capital
http://statistics.data.gov.uk/doc/local-authority/33,Norfolk County Council,06-Jan-11,2868957,4000,,Lloyds TSB Commercial Finance,74440,,Community Services,"Certificate - Electricity, Power & Light",C2780,,,,Capital
http://statistics.data.gov.uk/doc/local-authority/33,Norfolk County Council,06-Jan-11,2868959,6000,,Lloyds TSB Commercial Finance,74440,,Corporate Resources,Building Maintenance & Repairs,23300,,,,Revenue
http://statistics.data.gov.uk/doc/local-authority/33,Norfolk County Council,06-Jan-11,2868960,1050,,NPS Property Consultants Ltd,72669,,Environment Transport & Development,Grant Payments,49090,,,,Revenue
http://statistics.data.gov.uk/doc/local-authority/33,Norfolk County Council,06-Jan-11,2868965,12500,,T & P Fire Ltd,172967,,Community Services,Plant Replacements,A1720,,,,Revenue
http://statistics.data.gov.uk/doc/local-authority/33,Norfolk County Council,06-Jan-11,2868965,12500,,T & P Fire Ltd,172967,,Community Services,Construction Cost-Adoption/Improvement Building,C2450,,,,Capital
http://statistics.data.gov.uk/doc/local-authority/33,Norfolk County Council,06-Jan-11,2868966,6300,,P2 Training,196305,,Environment Transport & Development,Grant Payments,49090,,,,Revenue
http://statistics.data.gov.uk/doc/local-authority/33,Norfolk County Council,06-Jan-11,2868981,876.47,,Bt Plc,81224,,Children's Services,Telephone Rental & Calls,43200,,,,Revenue
http://statistics.data.gov.uk/doc/local-authority/33,Norfolk County Council,06-Jan-11,2868984,588,,Capita Business Services Ltd,148696,,Children's Services,Staff Training Costs,17450,,,,Revenue
http://statistics.data.gov.uk/doc/local-authority/33,Norfolk County Council,06-Jan-11,2869005,-59.64,,Redacted - Personal Data,Redacted,,Community Services,Other Miscellaneous Expenses,48080,,,,Revenue
http://statistics.data.gov.uk/doc/local-authority/33,Norfolk County Council,06-Jan-11,2869005,-59.64,,Redacted - Personal Data,Redacted,,Community Services, Other Miscellaneous Expenses,48080,,,,Revenue
http://statistics.data.gov.uk/doc/local-authority/33,Norfolk County Council,06-Jan-11,2869005,562.5,,Redacted - Personal Data,Redacted,,Community Services,Consultancy,44750,,,,Revenue
http://statistics.data.gov.uk/doc/local-authority/33,Norfolk County Council,06-Jan-11,2869022,5050,,Melnyk & Scott Ltd,257665,,Community Services,Consultancy,44750,,,,Revenue
http://statistics.data.gov.uk/doc/local-authority/33,Norfolk County Council,06-Jan-11,2869028,3050,,Redacted - Personal Data,Redacted,,Corporate Resources,Fees/Expenses - Other Consultants,44530,,,,Revenue
http://statistics.data.gov.uk/doc/local-authority/33,Norfolk County Council,06-Jan-11,2869040,1477.44,,Redacted - Personal Data,Redacted,,Community Services,Hire Of Premises,24540,,,,Revenue
http://statistics.data.gov.uk/doc/local-authority/33,Norfolk County Council,06-Jan-11,2869041,761.4,,Broadland Guarding Services Limited,66869,,Children's Services,Security System,23710,,,,Revenue
http://statistics.data.gov.uk/doc/local-authority/33,Norfolk County Council,06-Jan-11,2869053,861.47,,Cintra Ltd,81669,,Community Services,Interpreters/Translators,49560,,,,Revenue
http://statistics.data.gov.uk/doc/local-authority/33,Norfolk County Council,06-Jan-11,2869061,705.33,,Southern Electric,74726,,Community Services,Electricity,24340,,,,Revenue
http://statistics.data.gov.uk/doc/local-authority/33,Norfolk County Council,06-Jan-11,2869072,7500,,Redacted - Personal Data,Redacted,,Children's Services,Grant Payments,49090,,,,Revenue
http://statistics.data.gov.uk/doc/local-authority/33,Norfolk County Council,06-Jan-11,2869073,4916.25,,Eyre (Electrical) Limited,68818,,Children's Services,Plant Replacements,A3720,,,,Revenue
http://statistics.data.gov.uk/doc/local-authority/33,Norfolk County Council,06-Jan-11,2869086,431.05,,Staff Call Recruitment Specialists Ltd,74897,,Corporate Resources,Temporary Staff Admin & Clerical,13750,,,,Revenue
http://statistics.data.gov.uk/doc/local-authority/33,Norfolk County Council,06-Jan-11,2869087,2980.29,,Redacted - Personal Data,Redacted,,Community Services,Direct Payment - Domiciliary Care,60010,,,,Revenue
http://statistics.data.gov.uk/doc/local-authority/33,Norfolk County Council,06-Jan-11,2869115,1058,,Redacted - Personal Data,Redacted,,Community Services,Personal Budget - Day Care,60120,,,,Revenue
http://statistics.data.gov.uk/doc/local-authority/33,Norfolk County Council,06-Jan-11,2869132,1134,,Recruitment Specialist Group Ltd,174534,,Children's Services,Operational Staff - Scale A to J,8600,,,,Revenue
http://statistics.data.gov.uk/doc/local-authority/33,Norfolk County Council,06-Jan-11,2869145,1398.6,,Recruitment Specialist Group Ltd,174534,,Children's Services,Operational Staff - Scale A to J,8600,,,,Revenue
http://statistics.data.gov.uk/doc/local-authority/33,Norfolk County Council,06-Jan-11,2869149,2720,,Caritas Recruitment,182620,,Children's Services,Operational Staff - Scale A to J,8600,,,,Revenue
http://statistics.data.gov.uk/doc/local-authority/33,Norfolk County Council,06-Jan-11,2869150,1973.68,,All Hallows HealthCare Trust Nursing Home,181585,,Community Services,Day Care / Supported Activities,52160,,,,Revenue
http://statistics.data.gov.uk/doc/local-authority/33,Norfolk County Council,06-Jan-11,2869161,1653.91,,Anglian Water Services Ltd,80641,,Fire & Rescue,Water Charges Unmetered,24800,,,,Revenue
http://statistics.data.gov.uk/doc/local-authority/33,Norfolk County Council,06-Jan-11,2869215,560,,Gapton Car & Van Hire,130217,,Community Services,Contract Transport Hire,34900,,,,Revenue
http://statistics.data.gov.uk/doc/local-authority/33,Norfolk County Council,06-Jan-11,2869226,686.43,,L G Perfect (Haulage) Ltd,124589,,Community Services,Other Vehicles Running Costs,34600,,,,Revenue
http://statistics.data.gov.uk/doc/local-authority/33,Norfolk County Council,06-Jan-11,2869246,651.28,,Medico Nursing and Homecare Limited,71816,,Community Services,Domiciliary Care,51610,,,,Revenue
http://statistics.data.gov.uk/doc/local-authority/33,Norfolk County Council,06-Jan-11,2869256,961.32,,Medico Nursing and Homecare Limited,71816,,Community Services,Domiciliary Care,51610,,,,Revenue
http://statistics.data.gov.uk/doc/local-authority/33,Norfolk County Council,06-Jan-11,2869264,1302,,Medico Nursing and Homecare Limited,71816,,Community Services,Domiciliary Care,51610,,,,Revenue
http://statistics.data.gov.uk/doc/local-authority/33,Norfolk County Council,06-Jan-11,2869269,573.52,,Medico Nursing and Homecare Limited,71816,,Community Services,Domiciliary Care,51610,,,,Revenue
http://statistics.data.gov.uk/doc/local-authority/33,Norfolk County Council,06-Jan-11,2869327,713,,Medico Nursing and Homecare Limited,71816,,Community Services,Domiciliary Care,51610,,,,Revenue
http://statistics.data.gov.uk/doc/local-authority/33,Norfolk County Council,06-Jan-11,2869366,5440,,Mojo Media Norfolk Ltd,443293,,Corporate Resources,Marketing Design Costs,47090,,,,Revenue
http://statistics.data.gov.uk/doc/local-authority/33,Norfolk County Council,06-Jan-11,2869381,5593.01,,Professional Cabling Solutions Ltd,122431,,Children's Services,Purchase Of IT,C3200,,,,Capital
http://statistics.data.gov.uk/doc/local-authority/33,Norfolk County Council,06-Jan-11,2869384,768.6,,Breckland Council,81088,,Environment Transport & Development,Other Local Authorities,50500,,,,Revenue
http://statistics.data.gov.uk/doc/local-authority/33,Norfolk County Council,06-Jan-11,2869419,1848.74,,T C Garrett Ltd,75121,,Children's Services,Building Repairs,A3780,,,,Revenue
http://statistics.data.gov.uk/doc/local-authority/33,Norfolk County Council,06-Jan-11,2869489,450,,Bramley Lakes Ltd,81076,,Community Services,Hire Of Premises,24540,,,,Revenue
http://statistics.data.gov.uk/doc/local-authority/33,Norfolk County Council,06-Jan-11,2869499,1050,,Norfolk Community Health & Care,188303,,Community Services,Sessional Fees,44560,,,,Revenue
http://statistics.data.gov.uk/doc/local-authority/33,Norfolk County Council,06-Jan-11,2869556,10075,,NPS South East Ltd,174955,,Community Services,Quantity Surveying/Structural Engineering Fees,C5150,,,,Capital
http://statistics.data.gov.uk/doc/local-authority/33,Norfolk County Council,06-Jan-11,2869583,446,,Redacted - Personal Data,Redacted,,Corporate Resources,Other Travel Expenses,35430,,,,Revenue
http://statistics.data.gov.uk/doc/local-authority/33,Norfolk County Council,06-Jan-11,2869606,8827.5,,Mas Services East Anglia Ltd,84846,,Children's Services,Reroofing,A3000,,,,Revenue
http://statistics.data.gov.uk/doc/local-authority/33,Norfolk County Council,06-Jan-11,2869627,247.39,,NPS Property Consultants Ltd,72669,,Environment Transport & Development,Property Services DSO Charges,45290,,,,Revenue
http://statistics.data.gov.uk/doc/local-authority/33,Norfolk County Council,06-Jan-11,2869627,495.49,,NPS Property Consultants Ltd,72669,,Environment Transport & Development,Fees/Expenses - Other Consultants,44530,,,,Revenue
http://statistics.data.gov.uk/doc/local-authority/33,Norfolk County Council,06-Jan-11,2869650,89359,,BREAK,79512,,Children's Services,Payment to Independent Schools,52200,,,,Revenue
http://statistics.data.gov.uk/doc/local-authority/33,Norfolk County Council,06-Jan-11,2869656,1658,,Linkage Community Trust (Riverside),71219,,Children's Services,Payment to Independent Schools,52200,,,,Revenue
http://statistics.data.gov.uk/doc/local-authority/33,Norfolk County Council,06-Jan-11,2869664,10659.32,,Greshams School Fees A/c,83172,,Children's Services,Payment to Independent Schools,52200,,,,Revenue
http://statistics.data.gov.uk/doc/local-authority/33,Norfolk County Council,06-Jan-11,2869673,7520.59,,Greshams School Fees A/c,83172,,Children's Services,Payment to Independent Schools,52200,,,,Revenue
http://statistics.data.gov.uk/doc/local-authority/33,Norfolk County Council,06-Jan-11,2869709,481.39,,TNLC Limited,139372,,Corporate Resources,Postage & Postal Services,43050,,,,Revenue
http://statistics.data.gov.uk/doc/local-authority/33,Norfolk County Council,06-Jan-11,2869712,747.65,,Anglian Water Services Ltd,80641,,Corporate Resources,Water and Sewerage Costs,24810,,,,Revenue
http://statistics.data.gov.uk/doc/local-authority/33,Norfolk County Council,06-Jan-11,2869732,2142,,Anglian Water Services Ltd,80641,,Corporate Resources,Water and Sewerage Costs,24810,,,,Revenue
http://statistics.data.gov.uk/doc/local-authority/33,Norfolk County Council,06-Jan-11,2869747,873.02,,Southern Electric,74726,,Community Services,Electricity,24340,,,,Revenue
http://statistics.data.gov.uk/doc/local-authority/33,Norfolk County Council,06-Jan-11,2869752,2967.51,,Southern Electric,74726,,Corporate Resources,Electricity,24340,,,,Revenue
http://statistics.data.gov.uk/doc/local-authority/33,Norfolk County Council,06-Jan-11,2869756,812.37,,Southern Electric,74726,,Corporate Resources,Electricity,24340,,,,Revenue
http://statistics.data.gov.uk/doc/local-authority/33,Norfolk County Council,06-Jan-11,2869761,445.25,,Southern Electric,74726,,Corporate Resources,Electricity,24340,,,,Revenue
http://statistics.data.gov.uk/doc/local-authority/33,Norfolk County Council,06-Jan-11,2869768,1250.22,,Southern Electric,74726,,Corporate Resources,Electricity,24340,,,,Revenue
http://statistics.data.gov.uk/doc/local-authority/33,Norfolk County Council,06-Jan-11,2869770,889.86,,Southern Electric,74726,,Corporate Resources,Electricity,24340,,,,Revenue
http://statistics.data.gov.uk/doc/local-authority/33,Norfolk County Council,06-Jan-11,2869799,818.86,,Anglian Water Services Ltd,80641,,Community Services,Water Services,24820,,,,Revenue
http://statistics.data.gov.uk/doc/local-authority/33,Norfolk County Council,06-Jan-11,2869804,3463.04,,Waste Recycling Group Limited,76094,,Environment Transport & Development,Private Contractor Site Operation Payments,52550,,,,Revenue
http://statistics.data.gov.uk/doc/local-authority/33,Norfolk County Council,06-Jan-11,2869806,34620.99,,Waste Recycling Group Limited,76094,,Environment Transport & Development,Private Contractor Site Operation Payments,52550,,,,Revenue
http://statistics.data.gov.uk/doc/local-authority/33,Norfolk County Council,06-Jan-11,2869809,628.29,,Waste Recycling Group Limited,76094,,Environment Transport & Development,Private Contractor Site Operation Payments,52550,,,,Revenue
http://statistics.data.gov.uk/doc/local-authority/33,Norfolk County Council,06-Jan-11,2869817,743.47,,BT Global Services,81223,,Community Services,Software Maintenance,44180,,,,Revenue
http://statistics.data.gov.uk/doc/local-authority/33,Norfolk County Council,06-Jan-11,2869822,697.9,,Waste Recycling Group Limited,76094,,Environment Transport & Development,Private Contractor Site Operation Payments,52550,,,,Revenue
http://statistics.data.gov.uk/doc/local-authority/33,Norfolk County Council,06-Jan-11,2869825,9522.52,,Waste Recycling Group Limited,76094,,Environment Transport & Development,Private Contractor Site Operation Payments,52550,,,,Revenue
http://statistics.data.gov.uk/doc/local-authority/33,Norfolk County Council,06-Jan-11,2869843,1052.59,,Waste Recycling Group Limited,76094,,Environment Transport & Development,Private Contractor Site Operation Payments,52550,,,,Revenue
http://statistics.data.gov.uk/doc/local-authority/33,Norfolk County Council,07-Jan-11,2546339,32486.3,,The Crossroads Group,197496,,Children's Services,Payments to Organisations Providing Services To NCC,52000,,,,Revenue
http://statistics.data.gov.uk/doc/local-authority/33,Norfolk County Council,07-Jan-11,2710890,72060.52,,The Crossroads Group,197496,,Children's Services,Payments to Organisations Providing Services To NCC,52000,,,,Revenue
http://statistics.data.gov.uk/doc/local-authority/33,Norfolk County Council,07-Jan-11,2814740,518.5,,Redacted - Personal Data,Redacted,,Children's Services,Foster Parents Payments,53600,,,,Revenue
http://statistics.data.gov.uk/doc/local-authority/33,Norfolk County Council,07-Jan-11,2841094,535,,Redacted - Personal Data,Redacted,,Environment Transport & Development,Building Maintenance & Repairs,23300,,,,Revenue
http://statistics.data.gov.uk/doc/local-authority/33,Norfolk County Council,07-Jan-11,2841288,1346.63,,Gold Group Ltd,375020,,Environment Transport & Development,Other Hired & Contracted Services,44810,,,,Revenue
http://statistics.data.gov.uk/doc/local-authority/33,Norfolk County Council,07-Jan-11,2841289,1094.63,,Gold Group Ltd,375020,,Environment Transport & Development,Other Hired & Contracted Services,44810,,,,Revenue
http://statistics.data.gov.uk/doc/local-authority/33,Norfolk County Council,07-Jan-11,2841290,984.38,,Gold Group Ltd,375020,,Environment Transport & Development,Other Hired & Contracted Services,44810,,,,Revenue
http://statistics.data.gov.uk/doc/local-authority/33,Norfolk County Council,07-Jan-11,2841291,1134,,Gold Group Ltd,375020,,Environment Transport & Development,Other Hired & Contracted Services,44810,,,,Revenue
http://statistics.data.gov.uk/doc/local-authority/33,Norfolk County Council,07-Jan-11,2844236,575,,T & P Fire Ltd,172967,,Children's Services,School Equipment Inspection/Testing,A3610,,,,Revenue
http://statistics.data.gov.uk/doc/local-authority/33,Norfolk County Council,07-Jan-11,2844457,600,,Mervyn Lambert Plant Ltd,71849,,Environment Transport & Development,Contract Plant & Machinery Hire,34930,,,,Revenue
http://statistics.data.gov.uk/doc/local-authority/33,Norfolk County Council,07-Jan-11,2844464,447.88,,Mervyn Lambert Plant Ltd,71849,,Environment Transport & Development,Contract Plant & Machinery Hire,34930,,,,Revenue
http://statistics.data.gov.uk/doc/local-authority/33,Norfolk County Council,07-Jan-11,2844530,470,,Redacted - Personal Data,Redacted,,Environment Transport & Development,Road Maintenance Contractor Payments,45070,,,,Revenue
http://statistics.data.gov.uk/doc/local-authority/33,Norfolk County Council,07-Jan-11,2844533,871.5,,Bure Valley Plant Hire Limited,66943,,Environment Transport & Development,Contract Plant & Machinery Hire,34930,,,,Revenue
http://statistics.data.gov.uk/doc/local-authority/33,Norfolk County Council,07-Jan-11,2844534,830,,Bure Valley Plant Hire Limited,66943,,Environment Transport & Development,Contract Plant & Machinery Hire,34930,,,,Revenue
http://statistics.data.gov.uk/doc/local-authority/33,Norfolk County Council,07-Jan-11,2844535,1081.91,,Middleton Aggregates Limited,71882,,Environment Transport & Development,Materials Purchases,42160,,,,Revenue
http://statistics.data.gov.uk/doc/local-authority/33,Norfolk County Council,07-Jan-11,2844541,432,,NORSE Commercial Services,179148,,Environment Transport & Development,Road Maintenance Contractor Payments,45070,,,,Revenue
http://statistics.data.gov.uk/doc/local-authority/33,Norfolk County Council,07-Jan-11,2844543,639.91,,Longwater Gravel Co Limited,71323,,Environment Transport & Development,Materials Purchases,42160,,,,Revenue
http://statistics.data.gov.uk/doc/local-authority/33,Norfolk County Council,07-Jan-11,2844549,598.34,,WOLSELEY UK LTD,76320,,Environment Transport & Development,Materials Purchases,42160,,,,Revenue
http://statistics.data.gov.uk/doc/local-authority/33,Norfolk County Council,07-Jan-11,2845114,453.04,,Norwich Electrical Co Ltd,85436,,Fire & Rescue,Minor Building Repairs,A1800,,,,Revenue
http://statistics.data.gov.uk/doc/local-authority/33,Norfolk County Council,07-Jan-11,2845410,850,,HOLEX,124538,,Community Services,Cost of Licenses & Subscriptions,49020,,,,Revenue
http://statistics.data.gov.uk/doc/local-authority/33,Norfolk County Council,07-Jan-11,2846968,1068,,CID Group,177382,,Environment Transport & Development,Small Tools & Plant - Purchase,42130,,,,Revenue
http://statistics.data.gov.uk/doc/local-authority/33,Norfolk County Council,07-Jan-11,2847057,565.5,,Faith in Families,196899,,Children's Services,Placement Cost - Agency Fee,54430,,,,Revenue
http://statistics.data.gov.uk/doc/local-authority/33,Norfolk County Council,07-Jan-11,2847171,6250,,Norfolk Police Authority,85302,,Community Services,Payments to Organisations Providing Services To NCC,52000,,,,Revenue
http://statistics.data.gov.uk/doc/local-authority/33,Norfolk County Council,07-Jan-11,2847173,1700,,Norfolk Police Authority,85302,,Community Services,Community Safety Projects,49570,,,,Revenue
http://statistics.data.gov.uk/doc/local-authority/33,Norfolk County Council,07-Jan-11,2847337,492.8,,N D Brown Limited,72143,,Environment Transport & Development,Contract Plant & Machinery Hire,34930,,,,Revenue
http://statistics.data.gov.uk/doc/local-authority/33,Norfolk County Council,07-Jan-11,2847338,492.8,,N D Brown Limited,72143,,Environment Transport & Development,Contract Plant & Machinery Hire,34930,,,,Revenue
http://statistics.data.gov.uk/doc/local-authority/33,Norfolk County Council,07-Jan-11,2847339,492.8,,N D Brown Limited,72143,,Environment Transport & Development,Contract Plant & Machinery Hire,34930,,,,Revenue
http://statistics.data.gov.uk/doc/local-authority/33,Norfolk County Council,07-Jan-11,2847342,492.8,,N D Brown Limited,72143,,Environment Transport & Development,Contract Plant & Machinery Hire,34930,,,,Revenue
http://statistics.data.gov.uk/doc/local-authority/33,Norfolk County Council,07-Jan-11,2847343,468.18,,N D Brown Limited,72143,,Environment Transport & Development,Contract Plant & Machinery Hire,34930,,,,Revenue
http://statistics.data.gov.uk/doc/local-authority/33,Norfolk County Council,07-Jan-11,2847365,540,,Northgate Vehicle Hire (East Anglia) Ltd,311935,,Environment Transport & Development,Contract Plant & Machinery Hire,34930,,,,Revenue
http://statistics.data.gov.uk/doc/local-authority/33,Norfolk County Council,07-Jan-11,2847366,578.57,,Northgate Vehicle Hire (East Anglia) Ltd,311935,,Environment Transport & Development,Contract Plant & Machinery Hire,34930,,,,Revenue
http://statistics.data.gov.uk/doc/local-authority/33,Norfolk County Council,07-Jan-11,2847370,4694.5,,Dig Contractors Ltd,149513,,Environment Transport & Development,Contract Plant & Machinery Hire,34930,,,,Revenue
http://statistics.data.gov.uk/doc/local-authority/33,Norfolk County Council,07-Jan-11,2847371,4782.5,,Dig Contractors Ltd,149513,,Environment Transport & Development,Contract Plant & Machinery Hire,34930,,,,Revenue
http://statistics.data.gov.uk/doc/local-authority/33,Norfolk County Council,07-Jan-11,2847372,4717.5,,Dig Contractors Ltd,149513,,Environment Transport & Development,Contract Plant & Machinery Hire,34930,,,,Revenue
http://statistics.data.gov.uk/doc/local-authority/33,Norfolk County Council,07-Jan-11,2847373,5074.5,,Dig Contractors Ltd,149513,,Environment Transport & Development,Contract Plant & Machinery Hire,34930,,,,Revenue
http://statistics.data.gov.uk/doc/local-authority/33,Norfolk County Council,07-Jan-11,2847374,4440,,Dig Contractors Ltd,149513,,Environment Transport & Development,Contract Plant & Machinery Hire,34930,,,,Revenue
http://statistics.data.gov.uk/doc/local-authority/33,Norfolk County Council,07-Jan-11,2847375,4572,,Dig Contractors Ltd,149513,,Environment Transport & Development,Contract Plant & Machinery Hire,34930,,,,Revenue
http://statistics.data.gov.uk/doc/local-authority/33,Norfolk County Council,07-Jan-11,2847378,492.8,,N D Brown Limited,72143,,Environment Transport & Development,Contract Plant & Machinery Hire,34930,,,,Revenue
http://statistics.data.gov.uk/doc/local-authority/33,Norfolk County Council,07-Jan-11,2847387,468.18,,N D Brown Limited,72143,,Environment Transport & Development,Contract Plant & Machinery Hire,34930,,,,Revenue
http://statistics.data.gov.uk/doc/local-authority/33,Norfolk County Council,07-Jan-11,2847388,492.8,,N D Brown Limited,72143,,Environment Transport & Development,Contract Plant & Machinery Hire,34930,,,,Revenue
http://statistics.data.gov.uk/doc/local-authority/33,Norfolk County Council,07-Jan-11,2847399,538.54,,Northgate Vehicle Hire (East Anglia) Ltd,311935,,Environment Transport & Development,Contract Plant & Machinery Hire,34930,,,,Revenue
http://statistics.data.gov.uk/doc/local-authority/33,Norfolk County Council,07-Jan-11,2847400,578.57,,Northgate Vehicle Hire (East Anglia) Ltd,311935,,Environment Transport & Development,Contract Plant & Machinery Hire,34930,,,,Revenue
http://statistics.data.gov.uk/doc/local-authority/33,Norfolk County Council,07-Jan-11,2847401,585,,Country Grounds Maintenance Limited,67742,,Environment Transport & Development,Materials Purchases,42160,,,,Revenue
http://statistics.data.gov.uk/doc/local-authority/33,Norfolk County Council,07-Jan-11,2847408,2715.44,,E E Green & Son Limited,68448,,Environment Transport & Development,Materials Purchases,42160,,,,Revenue
http://statistics.data.gov.uk/doc/local-authority/33,Norfolk County Council,07-Jan-11,2847411,700,,Redacted - Personal Data,Redacted,,Environment Transport & Development,Materials Purchases,42160,,,,Revenue
http://statistics.data.gov.uk/doc/local-authority/33,Norfolk County Council,07-Jan-11,2847424,4759.04,,Staff Call Recruitment Specialists Ltd,74897,,Environment Transport & Development,Materials Purchases,42160,,,,Revenue
http://statistics.data.gov.uk/doc/local-authority/33,Norfolk County Council,07-Jan-11,2847631,650,,Monthind Ltd,403024,,Corporate Resources,Contract Cleaning-Non NCS,25330,,,,Revenue
http://statistics.data.gov.uk/doc/local-authority/33,Norfolk County Council,07-Jan-11,2848341,686.81,,A C Leigh (Norwich) Ltd,80286,,Children's Services,Building Repairs,A3780,,,,Revenue
http://statistics.data.gov.uk/doc/local-authority/33,Norfolk County Council,07-Jan-11,2848347,1607.4,,Admiral Civil Engineering Ltd,132632,,Children's Services,Building Repairs,A3780,,,,Revenue
http://statistics.data.gov.uk/doc/local-authority/33,Norfolk County Council,07-Jan-11,2848926,1002.65,,NORSE Commercial Services,179148,,Community Services,Contract Cleaning & Other Cleaning Services,25300,,,,Revenue
http://statistics.data.gov.uk/doc/local-authority/33,Norfolk County Council,07-Jan-11,2848956,530.95,,NORSE Commercial Services,179148,,Community Services,Contract Cleaning & Other Cleaning Services,25300,,,,Revenue
http://statistics.data.gov.uk/doc/local-authority/33,Norfolk County Council,07-Jan-11,2849492,1985.4,,M Bissell Display Ltd,71399,,Environment Transport & Development,"Printing, Stationery and Photocopying",46500,,,,Revenue
http://statistics.data.gov.uk/doc/local-authority/33,Norfolk County Council,07-Jan-11,2851123,843.2,,Nemco Utilities Ltd,85169,,Children's Services,Tank Clean/Water System Disinfection,A3630,,,,Revenue
http://statistics.data.gov.uk/doc/local-authority/33,Norfolk County Council,07-Jan-11,2851149,479,,Redacted - Personal Data,Redacted,,Children's Services,Allowance For Special Purposes,53910,,,,Revenue
http://statistics.data.gov.uk/doc/local-authority/33,Norfolk County Council,07-Jan-11,2851164,1147.24,,Province Building Services Ltd,171598,,Children's Services,Building Repairs,A3780,,,,Revenue
http://statistics.data.gov.uk/doc/local-authority/33,Norfolk County Council,07-Jan-11,2851174,1008,,Redacted - Personal Data,Redacted,,Children's Services,Providing Financial Assistance to Service Users,45650,,,,Revenue
http://statistics.data.gov.uk/doc/local-authority/33,Norfolk County Council,07-Jan-11,2851177,1472.28,,Redacted - Personal Data,Redacted,,Children's Services,Operational Staff - Scale A to J,8600,,,,Revenue
http://statistics.data.gov.uk/doc/local-authority/33,Norfolk County Council,07-Jan-11,2851183,1464.45,,Redacted - Personal Data,Redacted,,Children's Services,Operational Staff - Scale A to J,8600,,,,Revenue
http://statistics.data.gov.uk/doc/local-authority/33,Norfolk County Council,07-Jan-11,2851212,730.93,,P J Plumbing & Heating & Maintenance,94417,,Children's Services,Minor Building Repairs,A3800,,,,Revenue
http://statistics.data.gov.uk/doc/local-authority/33,Norfolk County Council,07-Jan-11,2851355,3398.53,,Capstone Vision Foster Care Ltd,364004,,Children's Services,Payments to Organisations Providing Services To NCC,52000,,,,Revenue
http://statistics.data.gov.uk/doc/local-authority/33,Norfolk County Council,07-Jan-11,2851356,3398.53,,Capstone Vision Foster Care Ltd,364004,,Children's Services,Payments to Organisations Providing Services To NCC,52000,,,,Revenue
http://statistics.data.gov.uk/doc/local-authority/33,Norfolk County Council,07-Jan-11,2851357,3288.9,,Capstone Vision Foster Care Ltd,364004,,Children's Services,Payments to Organisations Providing Services To NCC,52000,,,,Revenue
http://statistics.data.gov.uk/doc/local-authority/33,Norfolk County Council,07-Jan-11,2851359,3288.9,,Capstone Vision Foster Care Ltd,364004,,Children's Services,Payments to Organisations Providing Services To NCC,52000,,,,Revenue
http://statistics.data.gov.uk/doc/local-authority/33,Norfolk County Council,07-Jan-11,2851361,3398.53,,Capstone Vision Foster Care Ltd,364004,,Children's Services,Payments to Organisations Providing Services To NCC,52000,,,,Revenue
http://statistics.data.gov.uk/doc/local-authority/33,Norfolk County Council,07-Jan-11,2851362,3398.53,,Capstone Vision Foster Care Ltd,364004,,Children's Services,Payments to Organisations Providing Services To NCC,52000,,,,Revenue
http://statistics.data.gov.uk/doc/local-authority/33,Norfolk County Council,07-Jan-11,2851364,3288.9,,Capstone Vision Foster Care Ltd,364004,,Children's Services,Payments to Organisations Providing Services To NCC,52000,,,,Revenue
http://statistics.data.gov.uk/doc/local-authority/33,Norfolk County Council,07-Jan-11,2851365,3288.9,,Capstone Vision Foster Care Ltd,364004,,Children's Services,Payments to Organisations Providing Services To NCC,52000,,,,Revenue
http://statistics.data.gov.uk/doc/local-authority/33,Norfolk County Council,07-Jan-11,2851441,755.3,,Mervyn Lambert Plant Ltd,71849,,Environment Transport & Development,Contract Plant & Machinery Hire,34930,,,,Revenue
http://statistics.data.gov.uk/doc/local-authority/33,Norfolk County Council,07-Jan-11,2851442,1102.57,,Middleton Aggregates Limited,71882,,Environment Transport & Development,Materials Purchases,42160,,,,Revenue
http://statistics.data.gov.uk/doc/local-authority/33,Norfolk County Council,07-Jan-11,2851445,798,,Redacted - Personal Data,Redacted,,Environment Transport & Development,Materials Purchases,42160,,,,Revenue
http://statistics.data.gov.uk/doc/local-authority/33,Norfolk County Council,07-Jan-11,2851446,1882.2,,FRIMSTONE LTD,69097,,Environment Transport & Development,Materials Purchases,42160,,,,Revenue
http://statistics.data.gov.uk/doc/local-authority/33,Norfolk County Council,07-Jan-11,2851465,480,,Amitola Ltd,147137,,Environment Transport & Development,Road Maintenance Contractor Payments,45070,,,,Revenue
http://statistics.data.gov.uk/doc/local-authority/33,Norfolk County Council,07-Jan-11,2852387,5743.25,,Redacted - Personal Data,Redacted,,Environment Transport & Development,Counsel's Fees,45090,,,,Revenue
http://statistics.data.gov.uk/doc/local-authority/33,Norfolk County Council,07-Jan-11,2852391,2916.9,,Redacted - Personal Data,Redacted,,Environment Transport & Development,Counsel's Fees,45090,,,,Revenue
http://statistics.data.gov.uk/doc/local-authority/33,Norfolk County Council,07-Jan-11,2852456,563.8,,Anglian Health & Safety Supplies,80639,,Community Services,Protective Clothing and Uniforms,46350,,,,Revenue
http://statistics.data.gov.uk/doc/local-authority/33,Norfolk County Council,07-Jan-11,2852541,624.51,,Espo,68527,,Children's Services,Gas (mains supplied),24360,,,,Revenue
http://statistics.data.gov.uk/doc/local-authority/33,Norfolk County Council,07-Jan-11,2852543,738.55,,Edwards & Blake Ltd,116004,,Children's Services,Private Contractor Catering Payments,52600,,,,Revenue
http://statistics.data.gov.uk/doc/local-authority/33,Norfolk County Council,07-Jan-11,2852550,680.85,,Edwards & Blake Ltd,116004,,Children's Services,Private Contractor Catering Payments,52600,,,,Revenue
http://statistics.data.gov.uk/doc/local-authority/33,Norfolk County Council,07-Jan-11,2852579,1149.51,,Mott MacDonald,71980,,Environment Transport & Development,Other Professional Services,44650,,,,Revenue
http://statistics.data.gov.uk/doc/local-authority/33,Norfolk County Council,07-Jan-11,2852604,3111.7,,Norwich City Council,90769,,Community Services,Allocation of Contingency Provision,48230,,,,Revenue
http://statistics.data.gov.uk/doc/local-authority/33,Norfolk County Council,07-Jan-11,2852641,521.7,,NORWICH SUNBLINDS,72648,,Community Services,Default,0,,,,Revenue
http://statistics.data.gov.uk/doc/local-authority/33,Norfolk County Council,07-Jan-11,2852912,500,,Norvic Training Associates (UK) Ltd,122940,,Community Services,Training Centre Courses,17620,,,,Revenue
http://statistics.data.gov.uk/doc/local-authority/33,Norfolk County Council,07-Jan-11,2852952,614,,Sapere,245272,,Children's Services,Books and Publications,40800,,,,Revenue
http://statistics.data.gov.uk/doc/local-authority/33,Norfolk County Council,07-Jan-11,2854434,575,,Konica Minolta Business Solutions East Ltd,70912,,Corporate Resources,"Printing, Stationery and Photocopying",46500,,,,Revenue
http://statistics.data.gov.uk/doc/local-authority/33,Norfolk County Council,07-Jan-11,2854436,475,,Konica Minolta Business Solutions East Ltd,70912,,Corporate Resources,"Printing, Stationery and Photocopying",46500,,,,Revenue
http://statistics.data.gov.uk/doc/local-authority/33,Norfolk County Council,07-Jan-11,2854445,500,,Konica Minolta Business Solutions East Ltd,70912,,Corporate Resources,"Printing, Stationery and Photocopying",46500,,,,Revenue
http://statistics.data.gov.uk/doc/local-authority/33,Norfolk County Council,07-Jan-11,2854456,500,,Redacted - Personal Data,Redacted,,Environment Transport & Development,Maintenance Of Site,22620,,,,Revenue
http://statistics.data.gov.uk/doc/local-authority/33,Norfolk County Council,07-Jan-11,2854473,945.99,,Norfolk Police Authority,85302,,Environment Transport & Development,Construction Costs Roads Other,C2570,,,,Capital
http://statistics.data.gov.uk/doc/local-authority/33,Norfolk County Council,07-Jan-11,2854582,1214.74,,Comm Tech Martham Limited,67613,,Fire & Rescue,Phone - Calls,43220,,,,Revenue
http://statistics.data.gov.uk/doc/local-authority/33,Norfolk County Council,07-Jan-11,2854582,4055.95,,Comm Tech Martham Limited,67613,,Fire & Rescue,Phone Rentals,43210,,,,Revenue
http://statistics.data.gov.uk/doc/local-authority/33,Norfolk County Council,07-Jan-11,2854666,529.05,,Redacted - Personal Data,Redacted,,Children's Services,Minor Building Repairs,A3800,,,,Revenue
http://statistics.data.gov.uk/doc/local-authority/33,Norfolk County Council,07-Jan-11,2855155,1096.06,,Espo,68527,,Corporate Resources,"Printing, Stationery and Photocopying",46500,,,,Revenue
http://statistics.data.gov.uk/doc/local-authority/33,Norfolk County Council,07-Jan-11,2855294,546,,Espo,68527,,Children's Services,"Printing, Stationery and Photocopying",46500,,,,Revenue
http://statistics.data.gov.uk/doc/local-authority/33,Norfolk County Council,07-Jan-11,2855384,507.38,,Province Building Services Ltd,171598,,Children's Services,Minor Building Repairs,A3800,,,,Revenue
http://statistics.data.gov.uk/doc/local-authority/33,Norfolk County Council,07-Jan-11,2855485,445.4,,Glazewing Ltd,69351,,Environment Transport & Development,Refuse Collection Costs,25270,,,,Revenue
http://statistics.data.gov.uk/doc/local-authority/33,Norfolk County Council,07-Jan-11,2855496,1466.68,,NORSE Commercial Services,179148,,Children's Services,Participants Subsistence,46760,,,,Revenue
http://statistics.data.gov.uk/doc/local-authority/33,Norfolk County Council,07-Jan-11,2855512,454.61,,Supplies Team Ltd,116242,,Children's Services,ICT Equipment Purchases,43900,,,,Revenue
http://statistics.data.gov.uk/doc/local-authority/33,Norfolk County Council,07-Jan-11,2855578,2965.02,,Eyre (Electrical) Limited,68818,,Children's Services,Construction Costs-Mobile Classrooms,C2460,,,,Capital
http://statistics.data.gov.uk/doc/local-authority/33,Norfolk County Council,07-Jan-11,2855618,675.49,,Konica Minolta Business Solutions East Ltd,70912,,Children's Services,Photocopying - General,46520,,,,Revenue
http://statistics.data.gov.uk/doc/local-authority/33,Norfolk County Council,07-Jan-11,2855667,1213.79,,T & P Fire Ltd,172967,,Children's Services,Fire Alarms,A1690,,,,Revenue
http://statistics.data.gov.uk/doc/local-authority/33,Norfolk County Council,07-Jan-11,2855720,30264,,Deloitte LLP,196888,,Children's Services,Architects Fees,C5120,,,,Capital
http://statistics.data.gov.uk/doc/local-authority/33,Norfolk County Council,07-Jan-11,2855742,160,,Axiell Ltd,172428,,Community Services,ICT Equipment Purchases,43900,,,,Revenue
http://statistics.data.gov.uk/doc/local-authority/33,Norfolk County Council,07-Jan-11,2855742,660,,Axiell Ltd,172428,,Community Services,ICT Other Running Costs,43980,,,,Revenue
http://statistics.data.gov.uk/doc/local-authority/33,Norfolk County Council,07-Jan-11,2855742,3876,,Axiell Ltd,172428,,Community Services,Computer Hardware Purchase,43910,,,,Revenue
http://statistics.data.gov.uk/doc/local-authority/33,Norfolk County Council,07-Jan-11,2855959,1067.96,,Middleton Aggregates Limited,71882,,Environment Transport & Development,Materials Purchases,42160,,,,Revenue
http://statistics.data.gov.uk/doc/local-authority/33,Norfolk County Council,07-Jan-11,2855960,1066.5,,Middleton Aggregates Limited,71882,,Environment Transport & Development,Materials Purchases,42160,,,,Revenue
http://statistics.data.gov.uk/doc/local-authority/33,Norfolk County Council,07-Jan-11,2856757,481.54,,R G Carter Building Ltd,86043,,Children's Services,Minor Building Repairs,A3800,,,,Revenue
http://statistics.data.gov.uk/doc/local-authority/33,Norfolk County Council,07-Jan-11,2856772,781,,P J Plumbing & Heating & Maintenance,94417,,Children's Services,Minor Building Repairs,A3800,,,,Revenue
http://statistics.data.gov.uk/doc/local-authority/33,Norfolk County Council,07-Jan-11,2856822,440.77,,Wensum Valley Services Ltd,123784,,Children's Services,Minor Building Repairs,A3800,,,,Revenue
http://statistics.data.gov.uk/doc/local-authority/33,Norfolk County Council,07-Jan-11,2856935,4967.67,,Admiral Civil Engineering Ltd,132632,,Environment Transport & Development,Maintenance Of Site,22620,,,,Revenue
http://statistics.data.gov.uk/doc/local-authority/33,Norfolk County Council,07-Jan-11,2857003,764,,T&A Plant Hire Ltd,75102,,Environment Transport & Development,Road Maintenance Contractor Payments,45070,,,,Revenue
http://statistics.data.gov.uk/doc/local-authority/33,Norfolk County Council,07-Jan-11,2857005,3876,,Redacted - Personal Data,Redacted,,Environment Transport & Development,Road Maintenance Contractor Payments,45070,,,,Revenue
http://statistics.data.gov.uk/doc/local-authority/33,Norfolk County Council,07-Jan-11,2857562,578.57,,Northgate Vehicle Hire (East Anglia) Ltd,311935,,Environment Transport & Development,Short-term Vehicle Hire,34920,,,,Revenue
http://statistics.data.gov.uk/doc/local-authority/33,Norfolk County Council,07-Jan-11,2857574,515.28,,Reliance Employment Ltd,187549,,Community Services,Operational - Manual,8800,,,,Revenue
http://statistics.data.gov.uk/doc/local-authority/33,Norfolk County Council,07-Jan-11,2857581,704.38,,Abacus Care (Norfolk & Suffolk) Ltd,65849,,Community Services,Operational - Manual,8800,,,,Revenue
http://statistics.data.gov.uk/doc/local-authority/33,Norfolk County Council,07-Jan-11,2857637,829,,Norwich Electrical Co Ltd,85436,,Fire & Rescue,Construction Cost-Adoption/Improvement Building,C2450,,,,Capital
http://statistics.data.gov.uk/doc/local-authority/33,Norfolk County Council,07-Jan-11,2857646,1203,,Knights Warner (Kings Lynn) Ltd,84272,,Children's Services,Electrical & Mechanical Maintenance.,A3790,,,,Revenue
http://statistics.data.gov.uk/doc/local-authority/33,Norfolk County Council,07-Jan-11,2857647,542.46,,Veolia ES (UK) Ltd,131626,,Fire & Rescue,Refuse Collection Costs,25270,,,,Revenue
http://statistics.data.gov.uk/doc/local-authority/33,Norfolk County Council,07-Jan-11,2857742,596.15,,Asco Educational Supplies Limited,66250,,Children's Services,Equipment Purchases,40850,,,,Revenue
http://statistics.data.gov.uk/doc/local-authority/33,Norfolk County Council,07-Jan-11,2857744,13.5,,Moss Express,345010,,Community Services,Delivery/Collection,32360,,,,Revenue
http://statistics.data.gov.uk/doc/local-authority/33,Norfolk County Council,07-Jan-11,2857744,587.8,,Moss Express,345010,,Community Services,Consumable Stores,40660,,,,Revenue
http://statistics.data.gov.uk/doc/local-authority/33,Norfolk County Council,07-Jan-11,2857783,814.28,,Alarm Company (Norwich) Ltd,66000,,Children's Services,Purchase Of Fixtures & Fittings,24980,,,,Revenue
http://statistics.data.gov.uk/doc/local-authority/33,Norfolk County Council,07-Jan-11,2857789,2598,,The World Market Company Ltd,128947,,Corporate Resources,Other Hired & Contracted Services,44810,,,,Revenue
http://statistics.data.gov.uk/doc/local-authority/33,Norfolk County Council,07-Jan-11,2857886,1223.69,,Greenland Houchen Pomeroy Solicitors,134620,,Corporate Resources,Services of Solicitors Agents,44770,,,,Revenue
http://statistics.data.gov.uk/doc/local-authority/33,Norfolk County Council,07-Jan-11,2857899,3050,,Redacted - Personal Data,Redacted,,Corporate Resources,Counsel's Fees,45090,,,,Revenue
http://statistics.data.gov.uk/doc/local-authority/33,Norfolk County Council,07-Jan-11,2857922,1275,,Bisbey Limited,66675,,Corporate Resources,Witnesses Expenses and Reports,46860,,,,Revenue
http://statistics.data.gov.uk/doc/local-authority/33,Norfolk County Council,07-Jan-11,2863643,1351.12,,May Gurney Ltd,71794,,Environment Transport & Development,Site Invest/Surveys,C2130,,,,Capital
http://statistics.data.gov.uk/doc/local-authority/33,Norfolk County Council,07-Jan-11,2863901,216.55,,In-Trac Training & Consultancy Ltd,144659,,Children's Services,Other Travel Expenses,35430,,,,Revenue
http://statistics.data.gov.uk/doc/local-authority/33,Norfolk County Council,07-Jan-11,2863901,1500,,In-Trac Training & Consultancy Ltd,144659,,Children's Services,Staff Training Costs,17450,,,,Revenue
http://statistics.data.gov.uk/doc/local-authority/33,Norfolk County Council,07-Jan-11,2866176,54.08,,May Gurney Ltd,71794,,Environment Transport & Development,Highway Rechargeable Works Payments,54700,,,,Revenue
http://statistics.data.gov.uk/doc/local-authority/33,Norfolk County Council,07-Jan-11,2866176,99.97,,May Gurney Ltd,71794,,Environment Transport & Development,Maintenance Of Site,22620,,,,Revenue
http://statistics.data.gov.uk/doc/local-authority/33,Norfolk County Council,07-Jan-11,2866176,8258.97,,May Gurney Ltd,71794,,Environment Transport & Development,Site Invest/Surveys,C2130,,,,Capital
http://statistics.data.gov.uk/doc/local-authority/33,Norfolk County Council,07-Jan-11,2866268,1356.95,,Enco Energy Utilities Ltd,190395,,Environment Transport & Development,Electricity,24340,,,,Revenue
http://statistics.data.gov.uk/doc/local-authority/33,Norfolk County Council,07-Jan-11,2866274,1330.22,,L R Wyard-Scott Ltd,145638,,Environment Transport & Development,Direct Materials,42150,,,,Revenue
http://statistics.data.gov.uk/doc/local-authority/33,Norfolk County Council,07-Jan-11,2866290,581.48,,Prestige Nursing,73367,,Community Services,Domiciliary Care,51610,,,,Revenue
http://statistics.data.gov.uk/doc/local-authority/33,Norfolk County Council,07-Jan-11,2866294,9265,,ARH Groundworks Ltd,411135,,Environment Transport & Development,Road Maintenance Contractor Payments,45070,,,,Revenue
http://statistics.data.gov.uk/doc/local-authority/33,Norfolk County Council,07-Jan-11,2866295,1966.5,,Redacted - Personal Data,Redacted,,Environment Transport & Development,Road Maintenance Contractor Payments,45070,,,,Revenue
http://statistics.data.gov.uk/doc/local-authority/33,Norfolk County Council,07-Jan-11,2866415,4754.04,,Sheppards,86674,,Community Services,Purchase Of Furniture,C3000,,,,Capital
http://statistics.data.gov.uk/doc/local-authority/33,Norfolk County Council,07-Jan-11,2866789,3200,,Redacted - Personal Data,Redacted,,Environment Transport & Development,Conservation Grants,49070,,,,Revenue
http://statistics.data.gov.uk/doc/local-authority/33,Norfolk County Council,07-Jan-11,2866929,1100,,Wordswell Limited,101316,,Children's Services,Other Hired & Contracted Services,44810,,,,Revenue
http://statistics.data.gov.uk/doc/local-authority/33,Norfolk County Council,07-Jan-11,2866969,947.46,,Abacus Care (Norfolk & Suffolk) Ltd,65849,,Community Services,Operational - Manual,8800,,,,Revenue
http://statistics.data.gov.uk/doc/local-authority/33,Norfolk County Council,07-Jan-11,2866973,630.9,,Abacus Care (Norfolk & Suffolk) Ltd,65849,,Community Services,Operational - Manual,8800,,,,Revenue
http://statistics.data.gov.uk/doc/local-authority/33,Norfolk County Council,07-Jan-11,2866974,1393.16,,Abacus Care (Norfolk & Suffolk) Ltd,65849,,Community Services,Operational - Manual,8800,,,,Revenue
http://statistics.data.gov.uk/doc/local-authority/33,Norfolk County Council,07-Jan-11,2866977,2250,,Protocol Skills Ltd,85935,,Fire & Rescue,Staff Training Costs,17450,,,,Revenue
http://statistics.data.gov.uk/doc/local-authority/33,Norfolk County Council,07-Jan-11,2866983,2250,,Protocol Skills Ltd,85935,,Fire & Rescue,Staff Training Costs,17450,,,,Revenue
http://statistics.data.gov.uk/doc/local-authority/33,Norfolk County Council,07-Jan-11,2866989,2123.4,,Redacted - Personal Data,Redacted,,Children's Services,Staff Training Costs,17450,,,,Revenue
http://statistics.data.gov.uk/doc/local-authority/33,Norfolk County Council,07-Jan-11,2867029,1714.92,,Johnsons Apparelmaster Ltd,129343,,Fire & Rescue,Contract Cleaning & Other Cleaning Services,25300,,,,Revenue
http://statistics.data.gov.uk/doc/local-authority/33,Norfolk County Council,07-Jan-11,2867219,643.28,,Askews Library Services Ltd,91922,,Community Services,Library Books - Adult Fiction,42610,,,,Revenue
http://statistics.data.gov.uk/doc/local-authority/33,Norfolk County Council,07-Jan-11,2867321,651.92,,Trans Uk Supplies Limited,140479,,Community Services,DVD'S,42750,,,,Revenue
http://statistics.data.gov.uk/doc/local-authority/33,Norfolk County Council,07-Jan-11,2867324,806.99,,Trans Uk Supplies Limited,140479,,Community Services,DVD'S,42750,,,,Revenue
http://statistics.data.gov.uk/doc/local-authority/33,Norfolk County Council,07-Jan-11,2867333,435,,Multichannel Solutions for Entertainment(MSE)Ltd,410151,,Community Services,DVD'S,42750,,,,Revenue
http://statistics.data.gov.uk/doc/local-authority/33,Norfolk County Council,07-Jan-11,2867481,18198.3,,LexisNexis,84444,,Corporate Resources,"ICT Software Purchases, Licenses & Maintenance",44170,,,,Revenue
http://statistics.data.gov.uk/doc/local-authority/33,Norfolk County Council,07-Jan-11,2867506,475,,Redacted - Personal Data,Redacted,,Corporate Resources,Counsel's Fees,45090,,,,Revenue
http://statistics.data.gov.uk/doc/local-authority/33,Norfolk County Council,07-Jan-11,2867525,2750,,Redacted - Personal Data,Redacted,,Corporate Resources,Counsel's Fees,45090,,,,Revenue
http://statistics.data.gov.uk/doc/local-authority/33,Norfolk County Council,07-Jan-11,2867564,1952.72,,Carewatch (Norwich),73930,,Community Services,Domiciliary Care,51610,,,,Revenue
http://statistics.data.gov.uk/doc/local-authority/33,Norfolk County Council,07-Jan-11,2867586,992,,Carewatch (Norwich),73930,,Community Services,Domiciliary Care,51610,,,,Revenue
http://statistics.data.gov.uk/doc/local-authority/33,Norfolk County Council,07-Jan-11,2867589,1088.88,,Carewatch (Norwich),73930,,Community Services,Domiciliary Care,51610,,,,Revenue
http://statistics.data.gov.uk/doc/local-authority/33,Norfolk County Council,07-Jan-11,2867780,651.28,,Crown Care & Support Limited,214902,,Community Services,Domiciliary Care,51610,,,,Revenue
http://statistics.data.gov.uk/doc/local-authority/33,Norfolk County Council,07-Jan-11,2867887,751.89,,Crown Care & Support Limited,214902,,Community Services,Domiciliary Care,51610,,,,Revenue
http://statistics.data.gov.uk/doc/local-authority/33,Norfolk County Council,07-Jan-11,2867892,2170.56,,Crown Care & Support Limited,214902,,Community Services,Domiciliary Care,51610,,,,Revenue
http://statistics.data.gov.uk/doc/local-authority/33,Norfolk County Council,07-Jan-11,2867900,1029.64,,Allied Healthcare Group Ltd,104517,,Community Services,Domiciliary Care,51610,,,,Revenue
http://statistics.data.gov.uk/doc/local-authority/33,Norfolk County Council,07-Jan-11,2867968,454.5,,The Helplines Association,193437,,Community Services,Sessional Fees,44560,,,,Revenue
http://statistics.data.gov.uk/doc/local-authority/33,Norfolk County Council,07-Jan-11,2867987,4800,,British Cycling,169081,,Community Services,Teaching Support,45900,,,,Revenue
http://statistics.data.gov.uk/doc/local-authority/33,Norfolk County Council,07-Jan-11,2867989,710,,HSBC Invoice Finance,186951,,Corporate Resources,Pathological/Medical Practitioners,44910,,,,Revenue
http://statistics.data.gov.uk/doc/local-authority/33,Norfolk County Council,07-Jan-11,2868009,600,,Central Laundry,93217,,Community Services,Linen Hire,41590,,,,Revenue
http://statistics.data.gov.uk/doc/local-authority/33,Norfolk County Council,07-Jan-11,2868077,1223.35,,Linstock Communications Ltd,156038,,Other inc Agency,Fees/Expenses - Other Consultants,44530,,,,Revenue
http://statistics.data.gov.uk/doc/local-authority/33,Norfolk County Council,07-Jan-11,2868079,607.79,,Knights Warner (Kings Lynn) Ltd,84272,,Children's Services,Electrical & Mechanical Maintenance.,A3790,,,,Revenue
http://statistics.data.gov.uk/doc/local-authority/33,Norfolk County Council,07-Jan-11,2868106,1365,,Gorleston Pavilion Theatre,196028,,Children's Services,Other Hired & Contracted Services,44810,,,,Revenue
http://statistics.data.gov.uk/doc/local-authority/33,Norfolk County Council,07-Jan-11,2868164,1312.48,,Whitwell Hall Country Centre,94287,,Children's Services,Hire Of Premises,24540,,,,Revenue
http://statistics.data.gov.uk/doc/local-authority/33,Norfolk County Council,07-Jan-11,2868254,1489.68,,Severn House Large Print,74516,,Community Services,Library Books - Large Print,42580,,,,Revenue
http://statistics.data.gov.uk/doc/local-authority/33,Norfolk County Council,07-Jan-11,2868258,1120.8,,Oakhill Publishing Ltd,112312,,Community Services,Spoken Word Cassettes,42650,,,,Revenue
http://statistics.data.gov.uk/doc/local-authority/33,Norfolk County Council,07-Jan-11,2868279,581.71,,Bertram Library Services,101082,,Community Services,Library Books-Adult Non Fiction,42620,,,,Revenue
http://statistics.data.gov.uk/doc/local-authority/33,Norfolk County Council,07-Jan-11,2868288,1020.82,,Bertram Library Services,101082,,Community Services,Library Books-Adult Non Fiction,42620,,,,Revenue
http://statistics.data.gov.uk/doc/local-authority/33,Norfolk County Council,07-Jan-11,2868296,518.4,,W F Howes Ltd,76011,,Community Services,Spoken Word Cassettes,42650,,,,Revenue
http://statistics.data.gov.uk/doc/local-authority/33,Norfolk County Council,07-Jan-11,2868325,392.47,,G4S Secure Solutions UK Ltd,181441,,Community Services,Security Guards,44400,,,,Revenue
http://statistics.data.gov.uk/doc/local-authority/33,Norfolk County Council,07-Jan-11,2868329,392.47,,G4S Secure Solutions UK Ltd,181441,,Community Services,Security Guards,44400,,,,Revenue
http://statistics.data.gov.uk/doc/local-authority/33,Norfolk County Council,07-Jan-11,2868380,2491,,James Leckey Design Limited,70554,,Community Services,Equipment For Disabled People,41320,,,,Revenue
http://statistics.data.gov.uk/doc/local-authority/33,Norfolk County Council,07-Jan-11,2868389,499.5,,Barclays Asset & Sales Finance,76150,,Community Services,Equipment For Disabled People,41320,,,,Revenue
http://statistics.data.gov.uk/doc/local-authority/33,Norfolk County Council,07-Jan-11,2868390,4407.5,,Barclays Asset & Sales Finance,76150,,Community Services,Equipment For Disabled People,41320,,,,Revenue
http://statistics.data.gov.uk/doc/local-authority/33,Norfolk County Council,07-Jan-11,2868854,1069.24,,EDF Energy Customers Plc,178255,,Children's Services,Office Equipment & Supplies,40000,,,,Revenue
http://statistics.data.gov.uk/doc/local-authority/33,Norfolk County Council,07-Jan-11,2868873,1028.5,,Freeclix Limited,69072,,Environment Transport & Development,Hired & Contracted Services-Software,44040,,,,Revenue
http://statistics.data.gov.uk/doc/local-authority/33,Norfolk County Council,07-Jan-11,2868876,750,,Redacted - Personal Data,Redacted,,Corporate Resources,Counsel's Fees,45090,,,,Revenue
http://statistics.data.gov.uk/doc/local-authority/33,Norfolk County Council,07-Jan-11,2868886,1855.2,,British Telecom,66854,,Community Services,Phones-Chronically Sick and Disabled Persons Act,41340,,,,Revenue
http://statistics.data.gov.uk/doc/local-authority/33,Norfolk County Council,07-Jan-11,2868901,689.5,,Redacted - Personal Data,Redacted,,Corporate Resources,Witnesses Expenses and Reports,46860,,,,Revenue
http://statistics.data.gov.uk/doc/local-authority/33,Norfolk County Council,07-Jan-11,2869024,148.54,,Staff Call Recruitment Specialists Ltd,74897,,Community Services,Admin & Clerical - Scale A to J,13600,,,,Revenue
http://statistics.data.gov.uk/doc/local-authority/33,Norfolk County Council,07-Jan-11,2869024,449.18,,Staff Call Recruitment Specialists Ltd,74897,,Community Services,Temporary Staff Admin & Clerical,13750,,,,Revenue
http://statistics.data.gov.uk/doc/local-authority/33,Norfolk County Council,07-Jan-11,2869024,875.61,,Staff Call Recruitment Specialists Ltd,74897,,Community Services,Agency Staff,13800,,,,Revenue
http://statistics.data.gov.uk/doc/local-authority/33,Norfolk County Council,07-Jan-11,2869056,976.55,,L G Perfect Limited,117265,,Children's Services,Gas (mains supplied),24360,,,,Revenue
http://statistics.data.gov.uk/doc/local-authority/33,Norfolk County Council,07-Jan-11,2869066,550,,The Morrisby Organisation,71972,,Children's Services,Room Hire,17600,,,,Revenue
http://statistics.data.gov.uk/doc/local-authority/33,Norfolk County Council,07-Jan-11,2869076,1000,,Redacted - Personal Data,Redacted,,Environment Transport & Development,Recharge Legal Services DSO,45280,,,,Revenue
http://statistics.data.gov.uk/doc/local-authority/33,Norfolk County Council,07-Jan-11,2869160,309.74,,Staff Call Recruitment Specialists Ltd,74897,,Environment Transport & Development,Drivers,13050,,,,Revenue
http://statistics.data.gov.uk/doc/local-authority/33,Norfolk County Council,07-Jan-11,2869160,510.6,,Staff Call Recruitment Specialists Ltd,74897,,Environment Transport & Development,Admin & Clerical - Scale A to J,13600,,,,Revenue
http://statistics.data.gov.uk/doc/local-authority/33,Norfolk County Council,07-Jan-11,2869160,556.11,,Staff Call Recruitment Specialists Ltd,74897,,Environment Transport & Development,Agency Staff,13800,,,,Revenue
http://statistics.data.gov.uk/doc/local-authority/33,Norfolk County Council,07-Jan-11,2869160,756.73,,Staff Call Recruitment Specialists Ltd,74897,,Environment Transport & Development,Casual Labour,2100,,,,Revenue
http://statistics.data.gov.uk/doc/local-authority/33,Norfolk County Council,07-Jan-11,2869160,2228.15,,Staff Call Recruitment Specialists Ltd,74897,,Environment Transport & Development,Agency Staff,13800,,,,Revenue
http://statistics.data.gov.uk/doc/local-authority/33,Norfolk County Council,07-Jan-11,2869199,441.3,,Province Building Services Ltd,171598,,Children's Services,Building Repairs,A3780,,,,Revenue
http://statistics.data.gov.uk/doc/local-authority/33,Norfolk County Council,07-Jan-11,2869219,1057.75,,Henacraft Ltd,69747,,Community Services,Day Care / Supported Activities,52160,,,,Revenue
http://statistics.data.gov.uk/doc/local-authority/33,Norfolk County Council,07-Jan-11,2869309,540.66,,Norwich Electrical Co Ltd,85436,,Children's Services,Minor Building Repairs,A3800,,,,Revenue
http://statistics.data.gov.uk/doc/local-authority/33,Norfolk County Council,07-Jan-11,2869329,546.95,,Redacted - Personal Data,Redacted,,Children's Services,Minor Building Repairs,A3800,,,,Revenue
http://statistics.data.gov.uk/doc/local-authority/33,Norfolk County Council,07-Jan-11,2869363,540,,Redacted - Personal Data,Redacted,,Community Services,Livestock,46030,,,,Revenue
http://statistics.data.gov.uk/doc/local-authority/33,Norfolk County Council,07-Jan-11,2869377,770,,City & Guilds Of London Institute,67485,,Community Services,Examining Body Costs,44670,,,,Revenue
http://statistics.data.gov.uk/doc/local-authority/33,Norfolk County Council,07-Jan-11,2869533,595,,Redacted - Personal Data,Redacted,,Children's Services,Architects Fees,C5120,,,,Capital
http://statistics.data.gov.uk/doc/local-authority/33,Norfolk County Council,07-Jan-11,2869575,16197.5,,Audit Commission,80763,,Corporate Resources,Audit Fees - Grants,72510,,,,Revenue
http://statistics.data.gov.uk/doc/local-authority/33,Norfolk County Council,07-Jan-11,2869575,24083,,Audit Commission,80763,,Corporate Resources,Audit Fees - Accounts,72500,,,,Revenue
http://statistics.data.gov.uk/doc/local-authority/33,Norfolk County Council,07-Jan-11,2869592,11500,,Mott MacDonald,71980,,Environment Transport & Development,Other Professional Services,44650,,,,Revenue
http://statistics.data.gov.uk/doc/local-authority/33,Norfolk County Council,07-Jan-11,2869716,20608.95,,Sharpe Pritchard,99526,,Corporate Resources,Other Professional Services,44650,,,,Revenue
http://statistics.data.gov.uk/doc/local-authority/33,Norfolk County Council,07-Jan-11,2869718,2600,,Pace Fuelcare Ltd,198157,,Community Services,Fuel Oil,24300,,,,Revenue
http://statistics.data.gov.uk/doc/local-authority/33,Norfolk County Council,07-Jan-11,2869723,2600,,Pace Fuelcare Ltd,198157,,Community Services,Fuel Oil,24300,,,,Revenue
http://statistics.data.gov.uk/doc/local-authority/33,Norfolk County Council,07-Jan-11,2869830,778.34,,NORSE Commercial Services,179148,,Community Services,Contract Cleaning & Other Cleaning Services,25300,,,,Revenue
http://statistics.data.gov.uk/doc/local-authority/33,Norfolk County Council,07-Jan-11,2869940,25973,,Flagship Housing Group Ltd,79648,,Community Services,Domiciliary Care,51610,,,,Revenue
http://statistics.data.gov.uk/doc/local-authority/33,Norfolk County Council,07-Jan-11,2869993,2665.56,,NPS Property Consultants Ltd,72669,,Children's Services,Building Alterations & Improvements,23610,,,,Revenue
http://statistics.data.gov.uk/doc/local-authority/33,Norfolk County Council,07-Jan-11,2869996,983.59,,Askham House Care Home,80722,,Community Services,Other Miscellaneous Expenses,48080,,,,Revenue
http://statistics.data.gov.uk/doc/local-authority/33,Norfolk County Council,07-Jan-11,2869998,463,,T C Garrett Ltd,75121,,Children's Services,Building Maintenance & Repairs,23300,,,,Revenue
http://statistics.data.gov.uk/doc/local-authority/33,Norfolk County Council,07-Jan-11,2870007,70879.2,,The Crossroads Group,197496,,Children's Services,Payments to Organisations Providing Services To NCC,52000,,,,Revenue
http://statistics.data.gov.uk/doc/local-authority/33,Norfolk County Council,07-Jan-11,2870013,434.04,,Premier Travel Inn,108776,,Corporate Resources,Staff Subsistence & Conference Expenses,46700,,,,Revenue
http://statistics.data.gov.uk/doc/local-authority/33,Norfolk County Council,07-Jan-11,2870014,1102.4,,Sportspark At Uea,74791,,Environment Transport & Development,Hire Of Premises,24540,,,,Revenue
http://statistics.data.gov.uk/doc/local-authority/33,Norfolk County Council,07-Jan-11,2870018,434.04,,Premier Travel Inn,108776,,Corporate Resources,Staff Subsistence & Conference Expenses,46700,,,,Revenue
http://statistics.data.gov.uk/doc/local-authority/33,Norfolk County Council,07-Jan-11,2870021,7893.29,,Treetots Playgroup,75746,,Children's Services,Payment Pre School Provider,44430,,,,Revenue
http://statistics.data.gov.uk/doc/local-authority/33,Norfolk County Council,07-Jan-11,2870028,2825.46,,Sportspark At Uea,74791,,Environment Transport & Development,Hire Of Premises,24540,,,,Revenue
http://statistics.data.gov.uk/doc/local-authority/33,Norfolk County Council,07-Jan-11,2870041,1329.1,,Mooncrete Precast Concrete Ltd,126361,,Fire & Rescue,Other Operational Equipment-Purchase,40310,,,,Revenue
http://statistics.data.gov.uk/doc/local-authority/33,Norfolk County Council,07-Jan-11,2870042,5303.95,,PLK Group (UK) Limited,73071,,Children's Services,Other Hired & Contracted Services,44810,,,,Revenue
http://statistics.data.gov.uk/doc/local-authority/33,Norfolk County Council,07-Jan-11,2870044,4676.75,,Salec Travel Ltd,86582,,Environment Transport & Development,Home To School Transport Contract Service,36500,,,,Revenue
http://statistics.data.gov.uk/doc/local-authority/33,Norfolk County Council,07-Jan-11,2870047,780,,Fenland,82787,,Environment Transport & Development,Home To School Transport Contract Service,36500,,,,Revenue
http://statistics.data.gov.uk/doc/local-authority/33,Norfolk County Council,07-Jan-11,2870048,1014,,Fenland,82787,,Environment Transport & Development,Home To School Transport Contract Service,36500,,,,Revenue
http://statistics.data.gov.uk/doc/local-authority/33,Norfolk County Council,07-Jan-11,2870049,520,,Fenland,82787,,Environment Transport & Development,Home To School Transport Contract Service,36500,,,,Revenue
http://statistics.data.gov.uk/doc/local-authority/33,Norfolk County Council,07-Jan-11,2870053,4420,,Redacted - Personal Data,Redacted,,Environment Transport & Development,Home To School Transport Contract Service,36500,,,,Revenue
http://statistics.data.gov.uk/doc/local-authority/33,Norfolk County Council,07-Jan-11,2870054,2754.83,,Redacted - Personal Data,Redacted,,Environment Transport & Development,Home To School Transport Contract Service,36500,,,,Revenue
http://statistics.data.gov.uk/doc/local-authority/33,Norfolk County Council,07-Jan-11,2870055,14297.5,,Maretts Chariots,71720,,Environment Transport & Development,Home To School Transport Contract Service,36500,,,,Revenue
http://statistics.data.gov.uk/doc/local-authority/33,Norfolk County Council,07-Jan-11,2870056,1290,,Redacted - Personal Data,Redacted,,Environment Transport & Development,Home To School Transport Contract Service,36500,,,,Revenue
http://statistics.data.gov.uk/doc/local-authority/33,Norfolk County Council,07-Jan-11,2870057,735,,Redacted - Personal Data,Redacted,,Environment Transport & Development,School Transport Taxi,35310,,,,Revenue
http://statistics.data.gov.uk/doc/local-authority/33,Norfolk County Council,07-Jan-11,2870058,520,,Redacted - Personal Data,Redacted,,Environment Transport & Development,Home To School Transport Contract Service,36500,,,,Revenue
http://statistics.data.gov.uk/doc/local-authority/33,Norfolk County Council,07-Jan-11,2870059,1625,,Redacted - Personal Data,Redacted,,Environment Transport & Development,Home To School Transport Contract Service,36500,,,,Revenue
http://statistics.data.gov.uk/doc/local-authority/33,Norfolk County Council,07-Jan-11,2870060,935,,Redacted - Personal Data,Redacted,,Environment Transport & Development,Home To School Transport Contract Service,36500,,,,Revenue
http://statistics.data.gov.uk/doc/local-authority/33,Norfolk County Council,07-Jan-11,2870061,1300,,Redacted - Personal Data,Redacted,,Environment Transport & Development,Home To School Transport Contract Service,36500,,,,Revenue
http://statistics.data.gov.uk/doc/local-authority/33,Norfolk County Council,07-Jan-11,2870062,2210,,Redacted - Personal Data,Redacted,,Environment Transport & Development,Home To School Transport Contract Service,36500,,,,Revenue
http://statistics.data.gov.uk/doc/local-authority/33,Norfolk County Council,07-Jan-11,2870064,600,,Redacted - Personal Data,Redacted,,Environment Transport & Development,Home To School Transport Contract Service,36500,,,,Revenue
http://statistics.data.gov.uk/doc/local-authority/33,Norfolk County Council,07-Jan-11,2870065,3749.92,,PEOPLEMOVERS (EAST ANGLIA) LTD,73190,,Environment Transport & Development,Home To School Transport Contract Service,36500,,,,Revenue
http://statistics.data.gov.uk/doc/local-authority/33,Norfolk County Council,07-Jan-11,2870066,903.5,,Redacted - Personal Data,Redacted,,Environment Transport & Development,Home To School Transport Contract Service,36500,,,,Revenue
http://statistics.data.gov.uk/doc/local-authority/33,Norfolk County Council,07-Jan-11,2870068,1300,,STREETCARS LTD,74989,,Environment Transport & Development,Home To School Transport Contract Service,36500,,,,Revenue
http://statistics.data.gov.uk/doc/local-authority/33,Norfolk County Council,07-Jan-11,2870069,468,,STREETCARS LTD,74989,,Environment Transport & Development,Home To School Transport Contract Service,36500,,,,Revenue
http://statistics.data.gov.uk/doc/local-authority/33,Norfolk County Council,07-Jan-11,2870070,2010.97,,STREETCARS LTD,74989,,Environment Transport & Development,Home To School Transport Contract Service,36500,,,,Revenue
http://statistics.data.gov.uk/doc/local-authority/33,Norfolk County Council,07-Jan-11,2870071,1014,,Redacted - Personal Data,Redacted,,Environment Transport & Development,Home To School Transport Contract Service,36500,,,,Revenue
http://statistics.data.gov.uk/doc/local-authority/33,Norfolk County Council,07-Jan-11,2870072,2304.36,,Redacted - Personal Data,Redacted,,Environment Transport & Development,Home To School Transport Contract Service,36500,,,,Revenue
http://statistics.data.gov.uk/doc/local-authority/33,Norfolk County Council,07-Jan-11,2870073,2596.75,,Redacted - Personal Data,Redacted,,Environment Transport & Development,Home To School Transport Contract Service,36500,,,,Revenue
http://statistics.data.gov.uk/doc/local-authority/33,Norfolk County Council,07-Jan-11,2870074,748,,Redacted - Personal Data,Redacted,,Environment Transport & Development,Home To School Transport Contract Service,36500,,,,Revenue
http://statistics.data.gov.uk/doc/local-authority/33,Norfolk County Council,07-Jan-11,2870078,715,,Redacted - Personal Data,Redacted,,Environment Transport & Development,Home To School Transport Contract Service,36500,,,,Revenue
http://statistics.data.gov.uk/doc/local-authority/33,Norfolk County Council,07-Jan-11,2870079,494,,Redacted - Personal Data,Redacted,,Environment Transport & Development,Home To School Transport Contract Service,36500,,,,Revenue
http://statistics.data.gov.uk/doc/local-authority/33,Norfolk County Council,07-Jan-11,2870082,1096,,Taxi Ko,389042,,Environment Transport & Development,Home To School Transport Contract Service,36500,,,,Revenue
http://statistics.data.gov.uk/doc/local-authority/33,Norfolk County Council,07-Jan-11,2870085,2462.85,,Redacted - Personal Data,Redacted,,Environment Transport & Development,Home To School Transport Contract Service,36500,,,,Revenue
http://statistics.data.gov.uk/doc/local-authority/33,Norfolk County Council,07-Jan-11,2870086,1846,,Redacted - Personal Data,Redacted,,Environment Transport & Development,Home To School Transport Contract Service,36500,,,,Revenue
http://statistics.data.gov.uk/doc/local-authority/33,Norfolk County Council,07-Jan-11,2870088,2080,,Redacted - Personal Data,Redacted,,Environment Transport & Development,Home To School Transport Contract Service,36500,,,,Revenue
http://statistics.data.gov.uk/doc/local-authority/33,Norfolk County Council,07-Jan-11,2870089,585,,Redacted - Personal Data,Redacted,,Environment Transport & Development,Home To School Transport Contract Service,36500,,,,Revenue
http://statistics.data.gov.uk/doc/local-authority/33,Norfolk County Council,07-Jan-11,2870090,909,,Redacted - Personal Data,Redacted,,Environment Transport & Development,Home To School Transport Contract Service,36500,,,,Revenue
http://statistics.data.gov.uk/doc/local-authority/33,Norfolk County Council,07-Jan-11,2870091,1222,,Redacted - Personal Data,Redacted,,Environment Transport & Development,Home To School Transport Contract Service,36500,,,,Revenue
http://statistics.data.gov.uk/doc/local-authority/33,Norfolk County Council,07-Jan-11,2870099,6537.44,,Redacted - Personal Data,Redacted,,Environment Transport & Development,Home To School Transport Contract Service,36500,,,,Revenue
http://statistics.data.gov.uk/doc/local-authority/33,Norfolk County Council,07-Jan-11,2870102,715,,Griff's Taxi,126609,,Environment Transport & Development,Home To School Transport Contract Service,36500,,,,Revenue
http://statistics.data.gov.uk/doc/local-authority/33,Norfolk County Council,07-Jan-11,2870108,595,,Redacted - Personal Data,Redacted,,Environment Transport & Development,Home To School Transport Contract Service,36500,,,,Revenue
http://statistics.data.gov.uk/doc/local-authority/33,Norfolk County Council,07-Jan-11,2870113,1170,,Redacted - Personal Data,Redacted,,Environment Transport & Development,Home To School Transport Contract Service,36500,,,,Revenue
http://statistics.data.gov.uk/doc/local-authority/33,Norfolk County Council,07-Jan-11,2870115,2015,,Max Services Ltd,141236,,Environment Transport & Development,Home To School Transport Contract Service,36500,,,,Revenue
http://statistics.data.gov.uk/doc/local-authority/33,Norfolk County Council,07-Jan-11,2870116,2080,,Max Services Ltd,141236,,Environment Transport & Development,Home To School Transport Contract Service,36500,,,,Revenue
http://statistics.data.gov.uk/doc/local-authority/33,Norfolk County Council,07-Jan-11,2870117,2453.1,,Max Services Ltd,141236,,Environment Transport & Development,Home To School Transport Contract Service,36500,,,,Revenue
http://statistics.data.gov.uk/doc/local-authority/33,Norfolk County Council,07-Jan-11,2870118,1185.8,,Redacted - Personal Data,Redacted,,Environment Transport & Development,Home To School Transport Contract Service,36500,,,,Revenue
http://statistics.data.gov.uk/doc/local-authority/33,Norfolk County Council,07-Jan-11,2870123,520,,Redacted - Personal Data,Redacted,,Environment Transport & Development,Home To School Transport Contract Service,36500,,,,Revenue
http://statistics.data.gov.uk/doc/local-authority/33,Norfolk County Council,07-Jan-11,2870125,1224,,Redacted - Personal Data,Redacted,,Environment Transport & Development,Home To School Transport Contract Service,36500,,,,Revenue
http://statistics.data.gov.uk/doc/local-authority/33,Norfolk County Council,07-Jan-11,2870126,1128,,Redacted - Personal Data,Redacted,,Environment Transport & Development,Home To School Transport Contract Service,36500,,,,Revenue
http://statistics.data.gov.uk/doc/local-authority/33,Norfolk County Council,07-Jan-11,2870127,728,,Redacted - Personal Data,Redacted,,Environment Transport & Development,School Transport Taxi,35310,,,,Revenue
http://statistics.data.gov.uk/doc/local-authority/33,Norfolk County Council,07-Jan-11,2870129,845,,Redacted - Personal Data,Redacted,,Environment Transport & Development,Home To School Transport Contract Service,36500,,,,Revenue
http://statistics.data.gov.uk/doc/local-authority/33,Norfolk County Council,07-Jan-11,2870131,792,,Redacted - Personal Data,Redacted,,Environment Transport & Development,Home To School Transport Contract Service,36500,,,,Revenue
http://statistics.data.gov.uk/doc/local-authority/33,Norfolk County Council,07-Jan-11,2870134,5663,,Redacted - Personal Data,Redacted,,Environment Transport & Development,Home To School Transport Contract Service,36500,,,,Revenue
http://statistics.data.gov.uk/doc/local-authority/33,Norfolk County Council,07-Jan-11,2870136,780,,Redacted - Personal Data,Redacted,,Environment Transport & Development,Home To School Transport Contract Service,36500,,,,Revenue
http://statistics.data.gov.uk/doc/local-authority/33,Norfolk County Council,07-Jan-11,2870142,11583,,Breckland Travel Ltd,177494,,Environment Transport & Development,Home To School Transport Contract Service,36500,,,,Revenue
http://statistics.data.gov.uk/doc/local-authority/33,Norfolk County Council,07-Jan-11,2870146,19368.31,,Coach Services Ltd,67566,,Environment Transport & Development,Home To School Transport Contract Service,36500,,,,Revenue
http://statistics.data.gov.uk/doc/local-authority/33,Norfolk County Council,07-Jan-11,2870147,1011.53,,Emblings Coaches Limited,68705,,Environment Transport & Development,Home To School Transport Contract Service,36500,,,,Revenue
http://statistics.data.gov.uk/doc/local-authority/33,Norfolk County Council,07-Jan-11,2870147,1583.92,,Emblings Coaches Limited,68705,,Environment Transport & Development,Private Contractor Subsidy Payments,52500,,,,Revenue
http://statistics.data.gov.uk/doc/local-authority/33,Norfolk County Council,07-Jan-11,2870148,17217.97,,Eagles Coaches,122317,,Environment Transport & Development,Home To School Transport Contract Service,36500,,,,Revenue
http://statistics.data.gov.uk/doc/local-authority/33,Norfolk County Council,07-Jan-11,2870149,19752.68,,Lloyds TSB Commercial Finance,67864,,Environment Transport & Development,Home To School Transport Contract Service,36500,,,,Revenue
http://statistics.data.gov.uk/doc/local-authority/33,Norfolk County Council,07-Jan-11,2870150,9639.89,,J P Lloyd T/A Matthews Coaches,70421,,Environment Transport & Development,Home To School Transport Contract Service,36500,,,,Revenue
http://statistics.data.gov.uk/doc/local-authority/33,Norfolk County Council,07-Jan-11,2870151,6334.38,,H S Neave & Son Ltd,69570,,Environment Transport & Development,Home To School Transport Contract Service,36500,,,,Revenue
http://statistics.data.gov.uk/doc/local-authority/33,Norfolk County Council,07-Jan-11,2870152,2201.16,,Redacted - Personal Data,Redacted,,Environment Transport & Development,Home To School Transport Contract Service,36500,,,,Revenue
http://statistics.data.gov.uk/doc/local-authority/33,Norfolk County Council,07-Jan-11,2870153,2454.14,,Redacted - Personal Data,Redacted,,Environment Transport & Development,Home To School Transport Contract Service,36500,,,,Revenue
http://statistics.data.gov.uk/doc/local-authority/33,Norfolk County Council,07-Jan-11,2870154,2067,,Redacted - Personal Data,Redacted,,Environment Transport & Development,Home To School Transport Contract Service,36500,,,,Revenue
http://statistics.data.gov.uk/doc/local-authority/33,Norfolk County Council,07-Jan-11,2870155,2381.6,,Routespek Coach Hire Limited,74002,,Environment Transport & Development,Home To School Transport Contract Service,36500,,,,Revenue
http://statistics.data.gov.uk/doc/local-authority/33,Norfolk County Council,07-Jan-11,2870156,2405,,Spratts Coaches (East Anglian & Continental) Limited,74793,,Environment Transport & Development,Home To School Transport Contract Service,36500,,,,Revenue
http://statistics.data.gov.uk/doc/local-authority/33,Norfolk County Council,07-Jan-11,2870157,2340,,Spratts Coaches (East Anglian & Continental) Limited,74793,,Environment Transport & Development,Home To School Transport Contract Service,36500,,,,Revenue
http://statistics.data.gov.uk/doc/local-authority/33,Norfolk County Council,07-Jan-11,2870158,2405,,Spratts Coaches (East Anglian & Continental) Limited,74793,,Environment Transport & Development,Home To School Transport Contract Service,36500,,,,Revenue
http://statistics.data.gov.uk/doc/local-authority/33,Norfolk County Council,07-Jan-11,2870159,17379.31,,Redacted - Personal Data,Redacted,,Environment Transport & Development,Home To School Transport Contract Service,36500,,,,Revenue
http://statistics.data.gov.uk/doc/local-authority/33,Norfolk County Council,07-Jan-11,2870160,840.58,,Redacted - Personal Data,Redacted,,Environment Transport & Development,Home To School Transport Contract Service,36500,,,,Revenue
http://statistics.data.gov.uk/doc/local-authority/33,Norfolk County Council,07-Jan-11,2870162,24264.5,,Reynolds Coaches,73902,,Environment Transport & Development,Home To School Transport Contract Service,36500,,,,Revenue
http://statistics.data.gov.uk/doc/local-authority/33,Norfolk County Council,07-Jan-11,2870163,1885,,Redacted - Personal Data,Redacted,,Environment Transport & Development,Home To School Transport Contract Service,36500,,,,Revenue
http://statistics.data.gov.uk/doc/local-authority/33,Norfolk County Council,07-Jan-11,2870164,2314,,R W Chenery,73730,,Environment Transport & Development,Home To School Transport Contract Service,36500,,,,Revenue
http://statistics.data.gov.uk/doc/local-authority/33,Norfolk County Council,07-Jan-11,2870165,2210,,R W Chenery,73730,,Environment Transport & Development,Home To School Transport Contract Service,36500,,,,Revenue
http://statistics.data.gov.uk/doc/local-authority/33,Norfolk County Council,07-Jan-11,2870166,2241.46,,R W Chenery,73730,,Environment Transport & Development,Home To School Transport Contract Service,36500,,,,Revenue
http://statistics.data.gov.uk/doc/local-authority/33,Norfolk County Council,07-Jan-11,2870167,2101.45,,R W Chenery,73730,,Environment Transport & Development,Home To School Transport Contract Service,36500,,,,Revenue
http://statistics.data.gov.uk/doc/local-authority/33,Norfolk County Council,07-Jan-11,2870168,2171.52,,R W Chenery,73730,,Environment Transport & Development,Home To School Transport Contract Service,36500,,,,Revenue
http://statistics.data.gov.uk/doc/local-authority/33,Norfolk County Council,07-Jan-11,2870170,3777,,Our Hire Taxis,72808,,Environment Transport & Development,Home To School Transport Contract Service,36500,,,,Revenue
http://statistics.data.gov.uk/doc/local-authority/33,Norfolk County Council,07-Jan-11,2870171,65,,Our Hire Taxis,72808,,Environment Transport & Development,Private Contractor Subsidy Payments,52500,,,,Revenue
http://statistics.data.gov.uk/doc/local-authority/33,Norfolk County Council,07-Jan-11,2870171,1478.88,,Our Hire Taxis,72808,,Environment Transport & Development,Home To School Transport Contract Service,36500,,,,Revenue
http://statistics.data.gov.uk/doc/local-authority/33,Norfolk County Council,07-Jan-11,2870172,65,,Our Hire Taxis,72808,,Environment Transport & Development,Private Contractor Subsidy Payments,52500,,,,Revenue
http://statistics.data.gov.uk/doc/local-authority/33,Norfolk County Council,07-Jan-11,2870172,1587.32,,Our Hire Taxis,72808,,Environment Transport & Development,Home To School Transport Contract Service,36500,,,,Revenue
http://statistics.data.gov.uk/doc/local-authority/33,Norfolk County Council,07-Jan-11,2870173,6812,,Our Hire Taxis,72808,,Environment Transport & Development,Home To School Transport Contract Service,36500,,,,Revenue
http://statistics.data.gov.uk/doc/local-authority/33,Norfolk County Council,07-Jan-11,2870174,6227.22,,Our Hire Taxis,72808,,Environment Transport & Development,Home To School Transport Contract Service,36500,,,,Revenue
http://statistics.data.gov.uk/doc/local-authority/33,Norfolk County Council,07-Jan-11,2870175,4494.88,,Redacted - Personal Data,Redacted,,Environment Transport & Development,Home To School Transport Contract Service,36500,,,,Revenue
http://statistics.data.gov.uk/doc/local-authority/33,Norfolk County Council,07-Jan-11,2870176,520,,Redacted - Personal Data,Redacted,,Environment Transport & Development,Home To School Transport Contract Service,36500,,,,Revenue
http://statistics.data.gov.uk/doc/local-authority/33,Norfolk County Council,07-Jan-11,2870178,1683.5,,Redacted - Personal Data,Redacted,,Environment Transport & Development,Home To School Transport Contract Service,36500,,,,Revenue
http://statistics.data.gov.uk/doc/local-authority/33,Norfolk County Council,07-Jan-11,2870179,5909,,Albies Taxis,66006,,Environment Transport & Development,Contract Taxi Hire,35400,,,,Revenue
http://statistics.data.gov.uk/doc/local-authority/33,Norfolk County Council,07-Jan-11,2870180,880,,Albies Taxis,66006,,Environment Transport & Development,School Transport Taxi,35310,,,,Revenue
http://statistics.data.gov.uk/doc/local-authority/33,Norfolk County Council,07-Jan-11,2870180,22085,,Albies Taxis,66006,,Environment Transport & Development,Home To School Transport Contract Service,36500,,,,Revenue
http://statistics.data.gov.uk/doc/local-authority/33,Norfolk County Council,07-Jan-11,2870181,3300,,Albies Taxis,66006,,Environment Transport & Development,School Transport Taxi,35310,,,,Revenue
http://statistics.data.gov.uk/doc/local-authority/33,Norfolk County Council,07-Jan-11,2870181,8310,,Albies Taxis,66006,,Environment Transport & Development,Home To School Transport Contract Service,36500,,,,Revenue
http://statistics.data.gov.uk/doc/local-authority/33,Norfolk County Council,07-Jan-11,2870182,4230,,Albies Taxis,66006,,Environment Transport & Development,Home To School Transport Contract Service,36500,,,,Revenue
http://statistics.data.gov.uk/doc/local-authority/33,Norfolk County Council,07-Jan-11,2870183,10630,,Albies Taxis,66006,,Environment Transport & Development,Home To School Transport Contract Service,36500,,,,Revenue
http://statistics.data.gov.uk/doc/local-authority/33,Norfolk County Council,07-Jan-11,2870184,805,,Albies Taxis,66006,,Environment Transport & Development,Contract Taxi Hire,35400,,,,Revenue
http://statistics.data.gov.uk/doc/local-authority/33,Norfolk County Council,07-Jan-11,2870184,900,,Albies Taxis,66006,,Environment Transport & Development,School Transport Taxi,35310,,,,Revenue
http://statistics.data.gov.uk/doc/local-authority/33,Norfolk County Council,07-Jan-11,2870184,6300,,Albies Taxis,66006,,Environment Transport & Development,Home To School Transport Contract Service,36500,,,,Revenue
http://statistics.data.gov.uk/doc/local-authority/33,Norfolk County Council,07-Jan-11,2870185,2288,,Eurosun Coaches,142296,,Environment Transport & Development,Home To School Transport Contract Service,36500,,,,Revenue
http://statistics.data.gov.uk/doc/local-authority/33,Norfolk County Council,07-Jan-11,2870186,2042,,Eurosun Coaches,142296,,Environment Transport & Development,Home To School Transport Contract Service,36500,,,,Revenue
http://statistics.data.gov.uk/doc/local-authority/33,Norfolk County Council,07-Jan-11,2870195,194275,,Norfolk Community Health & Care,188303,,Children's Services,Other Hired & Contracted Services,44810,,,,Revenue
http://statistics.data.gov.uk/doc/local-authority/33,Norfolk County Council,07-Jan-11,2870211,875,,Albies Taxis,66006,,Environment Transport & Development,Contract Transport Hire,34900,,,,Revenue
http://statistics.data.gov.uk/doc/local-authority/33,Norfolk County Council,07-Jan-11,2870222,530,,Redacted - Personal Data,Redacted,,Environment Transport & Development,Contract Transport Hire,34900,,,,Revenue
http://statistics.data.gov.uk/doc/local-authority/33,Norfolk County Council,07-Jan-11,2870224,587,,Redacted - Personal Data,Redacted,,Environment Transport & Development,Contract Transport Hire,34900,,,,Revenue
http://statistics.data.gov.uk/doc/local-authority/33,Norfolk County Council,07-Jan-11,2870227,700,,Albies Taxis,66006,,Environment Transport & Development,Contract Transport Hire,34900,,,,Revenue
http://statistics.data.gov.uk/doc/local-authority/33,Norfolk County Council,07-Jan-11,2870230,528,,Redacted - Personal Data,Redacted,,Environment Transport & Development,Contract Transport Hire,34900,,,,Revenue
http://statistics.data.gov.uk/doc/local-authority/33,Norfolk County Council,07-Jan-11,2870236,1390.5,,Redacted - Personal Data,Redacted,,Environment Transport & Development,Contract Transport Hire,34900,,,,Revenue
http://statistics.data.gov.uk/doc/local-authority/33,Norfolk County Council,07-Jan-11,2870245,615,,Albies Taxis,66006,,Environment Transport & Development,Contract Transport Hire,34900,,,,Revenue
http://statistics.data.gov.uk/doc/local-authority/33,Norfolk County Council,07-Jan-11,2870246,1090,,Redacted - Personal Data,Redacted,,Environment Transport & Development,Contract Transport Hire,34900,,,,Revenue
http://statistics.data.gov.uk/doc/local-authority/33,Norfolk County Council,07-Jan-11,2870252,1050,,Redacted - Personal Data,Redacted,,Environment Transport & Development,Contract Transport Hire,34900,,,,Revenue
http://statistics.data.gov.uk/doc/local-authority/33,Norfolk County Council,07-Jan-11,2870253,1457,,Redacted - Personal Data,Redacted,,Environment Transport & Development,Contract Transport Hire,34900,,,,Revenue
http://statistics.data.gov.uk/doc/local-authority/33,Norfolk County Council,07-Jan-11,2870267,7835,,Albies Taxis,66006,,Environment Transport & Development,Contract Transport Hire,34900,,,,Revenue
http://statistics.data.gov.uk/doc/local-authority/33,Norfolk County Council,07-Jan-11,2870275,660,,Hickman Langley Compliance Ltd,453294,,Environment Transport & Development,Staff Training Costs,17450,,,,Revenue
http://statistics.data.gov.uk/doc/local-authority/33,Norfolk County Council,07-Jan-11,2870276,489,,Matrix Display Systems Ltd,84854,,Children's Services,ICT Equipment Purchases,43900,,,,Revenue
http://statistics.data.gov.uk/doc/local-authority/33,Norfolk County Council,07-Jan-11,2870284,1385.24,,Southern Electric,74726,,Corporate Resources,Electricity,24340,,,,Revenue
http://statistics.data.gov.uk/doc/local-authority/33,Norfolk County Council,07-Jan-11,2870287,5384.25,,Redacted - Personal Data,Redacted,,Community Services,Private Contractor Catering Payments,52600,,,,Revenue
http://statistics.data.gov.uk/doc/local-authority/33,Norfolk County Council,07-Jan-11,2870289,579,,BTTG Testing & Certification Ltd,375036,,Fire & Rescue,Protective Clothing and Uniforms,46350,,,,Revenue
http://statistics.data.gov.uk/doc/local-authority/33,Norfolk County Council,07-Jan-11,2870293,18181.5,,Castle Homes Care Ltd,81550,,Children's Services,Payments to Organisations Providing Services To NCC,52000,,,,Revenue
http://statistics.data.gov.uk/doc/local-authority/33,Norfolk County Council,07-Jan-11,2870302,512.5,,Jolliffe Daking LLP,167366,,Children's Services,Swimming & Games Facilities,24640,,,,Revenue
http://statistics.data.gov.uk/doc/local-authority/33,Norfolk County Council,07-Jan-11,2870304,18181.5,,Castle Homes Care Ltd,81550,,Children's Services,Payments to Organisations Providing Services To NCC,52000,,,,Revenue
http://statistics.data.gov.uk/doc/local-authority/33,Norfolk County Council,07-Jan-11,2870305,676.2,,Southern Electric,74726,,Children's Services,Electricity,24340,,,,Revenue
http://statistics.data.gov.uk/doc/local-authority/33,Norfolk County Council,07-Jan-11,2870306,5250,,Redacted - Personal Data,Redacted,,Corporate Resources,Consultancy,44750,,,,Revenue
http://statistics.data.gov.uk/doc/local-authority/33,Norfolk County Council,07-Jan-11,2870308,3440.08,,Kingfisher Fostering Ltd,284254,,Children's Services,Payments to Organisations Providing Services To NCC,52000,,,,Revenue
http://statistics.data.gov.uk/doc/local-authority/33,Norfolk County Council,07-Jan-11,2870312,20553,,Castle Homes Care Ltd,81550,,Children's Services,Payments to Organisations Providing Services To NCC,52000,,,,Revenue
http://statistics.data.gov.uk/doc/local-authority/33,Norfolk County Council,07-Jan-11,2870316,20553,,Castle Homes Care Ltd,81550,,Children's Services,Payments to Organisations Providing Services To NCC,52000,,,,Revenue
http://statistics.data.gov.uk/doc/local-authority/33,Norfolk County Council,07-Jan-11,2870318,2053.83,,Redacted - Personal Data,Redacted,,Community Services,Other Hired & Contracted Services,44810,,,,Revenue
http://statistics.data.gov.uk/doc/local-authority/33,Norfolk County Council,07-Jan-11,2870327,1730.7,,Waste Recycling Group Limited,76094,,Environment Transport & Development,Private Contractor Site Operation Payments,52550,,,,Revenue
http://statistics.data.gov.uk/doc/local-authority/33,Norfolk County Council,07-Jan-11,2870331,1517,,Blue Group International Ltd,81011,,Children's Services,Operational Staff - Scale A to J,8600,,,,Revenue
http://statistics.data.gov.uk/doc/local-authority/33,Norfolk County Council,07-Jan-11,2870341,1255.81,,Waste Recycling Group Limited,76094,,Environment Transport & Development,Private Contractor Site Operation Payments,52550,,,,Revenue
http://statistics.data.gov.uk/doc/local-authority/33,Norfolk County Council,07-Jan-11,2870345,656.19,,Waste Recycling Group Limited,76094,,Environment Transport & Development,Private Contractor Site Operation Payments,52550,,,,Revenue
http://statistics.data.gov.uk/doc/local-authority/33,Norfolk County Council,07-Jan-11,2870349,7460.46,,Gemini,83047,,Community Services,Day Care / Supported Activities,52160,,,,Revenue
http://statistics.data.gov.uk/doc/local-authority/33,Norfolk County Council,07-Jan-11,2870350,10044,,The Regard Partnership Ltd,164096,,Children's Services,Payments to Organisations Providing Services To NCC,52000,,,,Revenue
http://statistics.data.gov.uk/doc/local-authority/33,Norfolk County Council,07-Jan-11,2870351,3640,,Ashbourne/Brundall Nursing Home,80706,,Community Services,Long Term Residential Care,52070,,,,Revenue
http://statistics.data.gov.uk/doc/local-authority/33,Norfolk County Council,07-Jan-11,2870358,2000,,Burlingham House,350992,,Community Services,Long Term Residential Care,52070,,,,Revenue
http://statistics.data.gov.uk/doc/local-authority/33,Norfolk County Council,07-Jan-11,2870359,3119.71,,Burlingham House,350992,,Community Services,Long Term Residential Care,52070,,,,Revenue
http://statistics.data.gov.uk/doc/local-authority/33,Norfolk County Council,07-Jan-11,2870362,3982,,R Sons (Homes) Ltd,104080,,Community Services,Long Term Residential Care,52070,,,,Revenue
http://statistics.data.gov.uk/doc/local-authority/33,Norfolk County Council,07-Jan-11,2870363,5585.14,,R Sons (Homes) Ltd,104080,,Community Services,Long Term Residential Care,52070,,,,Revenue
http://statistics.data.gov.uk/doc/local-authority/33,Norfolk County Council,07-Jan-11,2870364,3869.14,,Healthcare Homes Ltd,107619,,Community Services,Long Term Residential Care,52070,,,,Revenue
http://statistics.data.gov.uk/doc/local-authority/33,Norfolk County Council,07-Jan-11,2870370,4594.29,,Norfolk Care Ltd,104155,,Community Services,Long Term Residential Care,52070,,,,Revenue
http://statistics.data.gov.uk/doc/local-authority/33,Norfolk County Council,07-Jan-11,2870371,4029.57,,Norfolk Care Ltd,104155,,Community Services,Long Term Residential Care,52070,,,,Revenue
http://statistics.data.gov.uk/doc/local-authority/33,Norfolk County Council,07-Jan-11,2870372,2430.57,,Norfolk Care Ltd,104155,,Community Services,Long Term Residential Care,52070,,,,Revenue
http://statistics.data.gov.uk/doc/local-authority/33,Norfolk County Council,07-Jan-11,2870373,6192.86,,SBDP1 Ltd,191737,,Community Services,Long Term Residential Care,52070,,,,Revenue
http://statistics.data.gov.uk/doc/local-authority/33,Norfolk County Council,07-Jan-11,2870374,5403.57,,SBDP1 Ltd,191737,,Community Services,Long Term Residential Care,52070,,,,Revenue
http://statistics.data.gov.uk/doc/local-authority/33,Norfolk County Council,07-Jan-11,2870375,5403.57,,SBDP1 Ltd,191737,,Community Services,Long Term Residential Care,52070,,,,Revenue
http://statistics.data.gov.uk/doc/local-authority/33,Norfolk County Council,07-Jan-11,2870386,550,,Inh - Holmwood Swaffham,94854,,Community Services,Short Term Residential Care,50210,,,,Revenue
http://statistics.data.gov.uk/doc/local-authority/33,Norfolk County Council,07-Jan-11,2870394,564,,Redacted - Personal Data,Redacted,,Children's Services,Accreditation Scheme Payments,53620,,,,Revenue
http://statistics.data.gov.uk/doc/local-authority/33,Norfolk County Council,07-Jan-11,2870421,516.57,,Redacted - Personal Data,Redacted,,Community Services,Long Term Residential Care,52070,,,,Revenue
http://statistics.data.gov.uk/doc/local-authority/33,Norfolk County Council,07-Jan-11,2870422,8467.71,,Redacted - Personal Data,Redacted,,Community Services,Long Term Residential Care,52070,,,,Revenue
http://statistics.data.gov.uk/doc/local-authority/33,Norfolk County Council,07-Jan-11,2870425,3907.43,,Redacted - Personal Data,Redacted,,Community Services,Long Term Residential Care,52070,,,,Revenue
http://statistics.data.gov.uk/doc/local-authority/33,Norfolk County Council,07-Jan-11,2870426,3908.57,,Redacted - Personal Data,Redacted,,Community Services,Long Term Residential Care,52070,,,,Revenue
http://statistics.data.gov.uk/doc/local-authority/33,Norfolk County Council,07-Jan-11,2870427,7190.86,,Halsey House,69614,,Community Services,Long Term Residential Care,52070,,,,Revenue
http://statistics.data.gov.uk/doc/local-authority/33,Norfolk County Council,07-Jan-11,2870433,2656.79,,Waste Recycling Group Limited,76094,,Environment Transport & Development,Private Contractor Site Operation Payments,52550,,,,Revenue
http://statistics.data.gov.uk/doc/local-authority/33,Norfolk County Council,07-Jan-11,2870435,427.09,,Waste Recycling Group Limited,76094,,Environment Transport & Development,Private Contractor Site Operation Payments,52550,,,,Revenue
http://statistics.data.gov.uk/doc/local-authority/33,Norfolk County Council,07-Jan-11,2870440,538.72,,Norwich City Football Club,85430,,Children's Services,"Non Staff Course, Conference & Subsistence Expenses",46730,,,,Revenue
http://statistics.data.gov.uk/doc/local-authority/33,Norfolk County Council,07-Jan-11,2870445,538.72,,Norwich City Football Club,85430,,Children's Services,"Non Staff Course, Conference & Subsistence Expenses",46730,,,,Revenue
http://statistics.data.gov.uk/doc/local-authority/33,Norfolk County Council,07-Jan-11,2870451,705.69,,Waste Recycling Group Limited,76094,,Environment Transport & Development,Private Contractor Site Operation Payments,52550,,,,Revenue
http://statistics.data.gov.uk/doc/local-authority/33,Norfolk County Council,07-Jan-11,2870454,566.64,,Drayton Windows Ltd,68373,,Children's Services,Minor Building Repairs,A3800,,,,Revenue
http://statistics.data.gov.uk/doc/local-authority/33,Norfolk County Council,07-Jan-11,2870462,10851.36,,Waste Recycling Group Limited,76094,,Environment Transport & Development,Private Contractor Site Operation Payments,52550,,,,Revenue
http://statistics.data.gov.uk/doc/local-authority/33,Norfolk County Council,07-Jan-11,2870475,6923.42,,Waste Recycling Group Limited,76094,,Environment Transport & Development,Private Contractor Site Operation Payments,52550,,,,Revenue
http://statistics.data.gov.uk/doc/local-authority/33,Norfolk County Council,07-Jan-11,2870478,27092,,Norfolk Community Health & Care,188303,,Children's Services,Other Hired & Contracted Services,44810,,,,Revenue
http://statistics.data.gov.uk/doc/local-authority/33,Norfolk County Council,07-Jan-11,2870479,946.71,,Redacted - Personal Data,Redacted,,Children's Services,Minor Building Repairs,A3800,,,,Revenue
http://statistics.data.gov.uk/doc/local-authority/33,Norfolk County Council,07-Jan-11,2870501,1352.57,,Liquid Personnel,248576,,Children's Services,Operational Staff - Scale A to J,8600,,,,Revenue
http://statistics.data.gov.uk/doc/local-authority/33,Norfolk County Council,07-Jan-11,2870543,573.37,,Cintra Ltd,81669,,Children's Services,Interpreters/Translators,49560,,,,Revenue
http://statistics.data.gov.uk/doc/local-authority/33,Norfolk County Council,07-Jan-11,2870551,5000,,Redacted - Personal Data,Redacted,,Community Services,Compensation & Ex-Gratia Payments,65000,,,,Revenue
http://statistics.data.gov.uk/doc/local-authority/33,Norfolk County Council,07-Jan-11,2870557,16483.94,,Waste Recycling Group Limited,76094,,Environment Transport & Development,Private Contractor Site Operation Payments,52550,,,,Revenue
http://statistics.data.gov.uk/doc/local-authority/33,Norfolk County Council,07-Jan-11,2870564,953.27,,Southern Electric,74726,,Community Services,Electricity,24340,,,,Revenue
http://statistics.data.gov.uk/doc/local-authority/33,Norfolk County Council,07-Jan-11,2870567,150,,Redacted - Personal Data,Redacted,,Children's Services,Initial Fostering Allowance,53700,,,,Revenue
http://statistics.data.gov.uk/doc/local-authority/33,Norfolk County Council,07-Jan-11,2870567,396.17,,Redacted - Personal Data,Redacted,,Children's Services,Adoption - Introductory Expenses,54510,,,,Revenue
http://statistics.data.gov.uk/doc/local-authority/33,Norfolk County Council,07-Jan-11,2870571,11495.69,,Waste Recycling Group Limited,76094,,Environment Transport & Development,Private Contractor Site Operation Payments,52550,,,,Revenue
http://statistics.data.gov.uk/doc/local-authority/33,Norfolk County Council,07-Jan-11,2870575,1826.55,,Province Building Services Ltd,171598,,Children's Services,Minor Building Repairs,A1800,,,,Revenue
http://statistics.data.gov.uk/doc/local-authority/33,Norfolk County Council,07-Jan-11,2870577,1915.03,,Waste Recycling Group Limited,76094,,Environment Transport & Development,Private Contractor Site Operation Payments,52550,,,,Revenue
http://statistics.data.gov.uk/doc/local-authority/33,Norfolk County Council,07-Jan-11,2870590,4317.59,,Heritage Care Limited,69759,,Community Services,Day Care / Supported Activities,52160,,,,Revenue
http://statistics.data.gov.uk/doc/local-authority/33,Norfolk County Council,07-Jan-11,2870604,491,,Keystone Development Trust,84230,,Environment Transport & Development,Hire Of Premises,24540,,,,Revenue
http://statistics.data.gov.uk/doc/local-authority/33,Norfolk County Council,07-Jan-11,2870613,1037.23,,Sportspark At Uea,74791,,Environment Transport & Development,Hire Of Premises,24540,,,,Revenue
http://statistics.data.gov.uk/doc/local-authority/33,Norfolk County Council,07-Jan-11,2870640,1418.5,,Bloom Construction Ltd,176697,,Corporate Resources,Internal Redecoration,A1030,,,,Revenue
http://statistics.data.gov.uk/doc/local-authority/33,Norfolk County Council,07-Jan-11,2870656,968,,Randstad 1 Ltd,171892,,Community Services,Panel Funded Staff,8100,,,,Revenue
http://statistics.data.gov.uk/doc/local-authority/33,Norfolk County Council,07-Jan-11,2870687,880.18,,Heritage Care Limited,69759,,Community Services,Day Care / Supported Activities,52160,,,,Revenue
http://statistics.data.gov.uk/doc/local-authority/33,Norfolk County Council,07-Jan-11,2870692,2568,,Matrix Display Systems Ltd,84854,,Children's Services,Purchase Of IT,C3200,,,,Capital
http://statistics.data.gov.uk/doc/local-authority/33,Norfolk County Council,07-Jan-11,2870694,851.79,,Heritage Care Limited,69759,,Community Services,Day Care / Supported Activities,52160,,,,Revenue
http://statistics.data.gov.uk/doc/local-authority/33,Norfolk County Council,07-Jan-11,2870722,560,,Redacted - Personal Data,Redacted,,Children's Services,Homelessness Section 17,45680,,,,Revenue
http://statistics.data.gov.uk/doc/local-authority/33,Norfolk County Council,07-Jan-11,2870733,1350,,Norwich Accommodation Ltd,85395,,Children's Services,Homelessness Section 17,45680,,,,Revenue
http://statistics.data.gov.uk/doc/local-authority/33,Norfolk County Council,07-Jan-11,2870765,2501.8,,Autism Anglia,159584,,Community Services,Day Care / Supported Activities,52160,,,,Revenue
http://statistics.data.gov.uk/doc/local-authority/33,Norfolk County Council,07-Jan-11,2870768,683.55,,Autism Anglia,159584,,Community Services,Day Care / Supported Activities,52160,,,,Revenue
http://statistics.data.gov.uk/doc/local-authority/33,Norfolk County Council,07-Jan-11,2870776,6480,,Hilton Community Services Ltd,154104,,Community Services,Day Care / Supported Activities,52160,,,,Revenue
http://statistics.data.gov.uk/doc/local-authority/33,Norfolk County Council,07-Jan-11,2870777,1668,,Royal Mencap Society,74022,,Community Services,Day Care / Supported Activities,52160,,,,Revenue
http://statistics.data.gov.uk/doc/local-authority/33,Norfolk County Council,07-Jan-11,2870788,1960,,Kingsley Care Homes T/A Lynfield House,95789,,Community Services,Supported Living,52140,,,,Revenue
http://statistics.data.gov.uk/doc/local-authority/33,Norfolk County Council,07-Jan-11,2870790,641.67,,British Telecommunications Plc,81154,,Corporate Resources,General Disbursements,45100,,,,Revenue
http://statistics.data.gov.uk/doc/local-authority/33,Norfolk County Council,07-Jan-11,2870808,7343.75,,Adventure Playgrounds Ltd,65962,,Children's Services,Other Expenses,C5280,,,,Capital
http://statistics.data.gov.uk/doc/local-authority/33,Norfolk County Council,07-Jan-11,2870813,1479.86,,Redacted - Personal Data,Redacted,,Fire & Rescue,Staff Medical & Eyesight Fees,18290,,,,Revenue
http://statistics.data.gov.uk/doc/local-authority/33,Norfolk County Council,07-Jan-11,2870814,510.18,,Central Laundry,93217,,Community Services,Linen Hire,41590,,,,Revenue
http://statistics.data.gov.uk/doc/local-authority/33,Norfolk County Council,07-Jan-11,2870828,21284.24,,Waste Recycling Group Limited,76094,,Environment Transport & Development,Private Contractor Site Operation Payments,52550,,,,Revenue
http://statistics.data.gov.uk/doc/local-authority/33,Norfolk County Council,07-Jan-11,2870832,10814.86,,Waste Recycling Group Limited,76094,,Environment Transport & Development,Private Contractor Site Operation Payments,52550,,,,Revenue
http://statistics.data.gov.uk/doc/local-authority/33,Norfolk County Council,07-Jan-11,2870835,1366.39,,Waste Recycling Group Limited,76094,,Environment Transport & Development,Private Contractor Site Operation Payments,52550,,,,Revenue
http://statistics.data.gov.uk/doc/local-authority/33,Norfolk County Council,07-Jan-11,2870839,606.81,,Waste Recycling Group Limited,76094,,Environment Transport & Development,Private Contractor Site Operation Payments,52550,,,,Revenue
http://statistics.data.gov.uk/doc/local-authority/33,Norfolk County Council,07-Jan-11,2870841,850,,Redacted - Personal Data,Redacted,,Corporate Resources,Counsel's Fees,45090,,,,Revenue
http://statistics.data.gov.uk/doc/local-authority/33,Norfolk County Council,07-Jan-11,2870844,4.8,,DLeeves Social Care Ltd,459300,,Children's Services,Car Allowance-Essential Users,35760,,,,Revenue
http://statistics.data.gov.uk/doc/local-authority/33,Norfolk County Council,07-Jan-11,2870844,9,,DLeeves Social Care Ltd,459300,,Children's Services,Non Staff Public Transport Costs,35510,,,,Revenue
http://statistics.data.gov.uk/doc/local-authority/33,Norfolk County Council,07-Jan-11,2870844,61.43,,DLeeves Social Care Ltd,459300,,Children's Services,Staff Subsistence & Conference Expenses,46700,,,,Revenue
http://statistics.data.gov.uk/doc/local-authority/33,Norfolk County Council,07-Jan-11,2870844,695.5,,DLeeves Social Care Ltd,459300,,Children's Services,Operational Staff - Scale A to J,8600,,,,Revenue
http://statistics.data.gov.uk/doc/local-authority/33,Norfolk County Council,07-Jan-11,2870847,2805,,Norfolk Community Health & Care,188303,,Corporate Resources,Witnesses Expenses and Reports,46860,,,,Revenue
http://statistics.data.gov.uk/doc/local-authority/33,Norfolk County Council,07-Jan-11,2870858,1332,,Caritas Recruitment,182620,,Children's Services,Operational Staff - Scale A to J,8600,,,,Revenue
http://statistics.data.gov.uk/doc/local-authority/33,Norfolk County Council,07-Jan-11,2870860,1672.1,,Redacted - Personal Data,Redacted,,Children's Services,Operational Staff - Scale A to J,8600,,,,Revenue
http://statistics.data.gov.uk/doc/local-authority/33,Norfolk County Council,07-Jan-11,2870864,1360.72,,Southern Electric,74726,,Community Services,Electricity,24340,,,,Revenue
http://statistics.data.gov.uk/doc/local-authority/33,Norfolk County Council,07-Jan-11,2870865,1196.25,,Redacted - Personal Data,Redacted,,Children's Services,Fees/Expenses - Other Consultants,44530,,,,Revenue
http://statistics.data.gov.uk/doc/local-authority/33,Norfolk County Council,07-Jan-11,2870886,630,,Redacted - Personal Data,Redacted,,Environment Transport & Development,Grounds Maintenance Costs,22500,,,,Revenue
http://statistics.data.gov.uk/doc/local-authority/33,Norfolk County Council,07-Jan-11,2870892,8326,,Flagship Housing Group Ltd,79648,,Community Services,Service Level Agreement With Organisations Providing Services to NCC,52260,,,,Revenue
http://statistics.data.gov.uk/doc/local-authority/33,Norfolk County Council,07-Jan-11,2870925,4997.4,,Redacted - Personal Data,Redacted,,Children's Services,Purchase Of Furniture,C3000,,,,Capital
http://statistics.data.gov.uk/doc/local-authority/33,Norfolk County Council,07-Jan-11,2870929,1175.94,,Jark Healthcare Ltd,134618,,Community Services,Operational - Manual,8800,,,,Revenue
http://statistics.data.gov.uk/doc/local-authority/33,Norfolk County Council,07-Jan-11,2870931,17488,,Waste Recycling Group Limited,76094,,Environment Transport & Development,Private Contractor Site Operation Payments,52550,,,,Revenue
http://statistics.data.gov.uk/doc/local-authority/33,Norfolk County Council,07-Jan-11,2870937,13244.39,,Waste Recycling Group Limited,76094,,Environment Transport & Development,Private Contractor Site Operation Payments,52550,,,,Revenue
http://statistics.data.gov.uk/doc/local-authority/33,Norfolk County Council,07-Jan-11,2870942,600,,C & G M Limited,181746,,Community Services,Day Care / Supported Activities,52160,,,,Revenue
http://statistics.data.gov.uk/doc/local-authority/33,Norfolk County Council,07-Jan-11,2870950,1406.75,,Redacted - Personal Data,Redacted,,Corporate Resources,Estate-Improvements,22510,,,,Revenue
http://statistics.data.gov.uk/doc/local-authority/33,Norfolk County Council,07-Jan-11,2870971,11500,,Lloyds TSB Commercial Finance,74440,,Children's Services,"Certificate - Electricity, Power & Light",C2780,,,,Capital
http://statistics.data.gov.uk/doc/local-authority/33,Norfolk County Council,07-Jan-11,2870977,12000,,Lloyds TSB Commercial Finance,74440,,Children's Services,"Certificate - Electricity, Power & Light",C2780,,,,Capital
http://statistics.data.gov.uk/doc/local-authority/33,Norfolk County Council,07-Jan-11,2870978,1227.24,,Randstad 1 Ltd,171892,,Community Services,Operational - Manual,8800,,,,Revenue
http://statistics.data.gov.uk/doc/local-authority/33,Norfolk County Council,07-Jan-11,2870979,1347.5,,Redacted - Personal Data,Redacted,,Corporate Resources,Estate-Improvements,22510,,,,Revenue
http://statistics.data.gov.uk/doc/local-authority/33,Norfolk County Council,07-Jan-11,2870981,8840,,Dobson Danby Ltd,273060,,Corporate Resources,Agency Staff - Admin/Chief Officers - Scale K and Above,13660,,,,Revenue
http://statistics.data.gov.uk/doc/local-authority/33,Norfolk County Council,07-Jan-11,2870985,44558.82,,R G Carter Building Ltd,86043,,Children's Services,Architects Fees,C5120,,,,Capital
http://statistics.data.gov.uk/doc/local-authority/33,Norfolk County Council,07-Jan-11,2870988,11590,,Dobson Danby Ltd,273060,,Corporate Resources,Agency Staff - Admin/Chief Officers - Scale K and Above,13660,,,,Revenue
http://statistics.data.gov.uk/doc/local-authority/33,Norfolk County Council,07-Jan-11,2870990,9806.95,,Briar Services Limited,66797,,Children's Services,Construction Cost-Adoption/Improvement Building,C2450,,,,Capital
http://statistics.data.gov.uk/doc/local-authority/33,Norfolk County Council,07-Jan-11,2870991,555.11,,Randstad 1 Ltd,171892,,Community Services,Operational - Manual,8800,,,,Revenue
http://statistics.data.gov.uk/doc/local-authority/33,Norfolk County Council,07-Jan-11,2870995,590.97,,Randstad 1 Ltd,171892,,Community Services,Operational - Manual,8800,,,,Revenue
http://statistics.data.gov.uk/doc/local-authority/33,Norfolk County Council,07-Jan-11,2870996,1249.34,,G W Gooch & Sons Limited,69227,,Community Services,Construction Cost-Adoption/Improvement Building,C2450,,,,Capital
http://statistics.data.gov.uk/doc/local-authority/33,Norfolk County Council,07-Jan-11,2871000,1052.74,,Bertram Library Services,101082,,Community Services,Library Books-Adult Non Fiction,42620,,,,Revenue
http://statistics.data.gov.uk/doc/local-authority/33,Norfolk County Council,07-Jan-11,2871002,27768,,Eyre (Electrical) Limited,68818,,Children's Services,Plant Replacements,A3720,,,,Revenue
http://statistics.data.gov.uk/doc/local-authority/33,Norfolk County Council,07-Jan-11,2871009,1220.76,,Bertram Library Services,101082,,Community Services,Library Books-Adult Non Fiction,42620,,,,Revenue
